Workbook

Sheet Inputs (hidden)
AR1: Tier-1 Capital
AR2: Upper Tier-2 Capital
X3: Data da última actualização | AR3: Lower Tier-2 Capital
X4: =+NOW() -> 2026-04-09T09:42:08.520 | AR4: Senior
AR5: Covered
AJ8: 1 5/8 | BD8: =+MIN(Table3[SETTLE_DT])*1-1 -> 2026-04-28 | BF8: Accrual Date | BQ8: conv ratio | CC8: =+SMALL(($CC$13:$HK$13),COUNTIF($CC$13:$HK$13,0)+1) -> 2026-10-29 | CD8: =MATCH(CouponChecker,Table3[DES_CASH_FLOW],0)+ROW(Table3[[#Headers],[DES_CASH_FLOW]]) -> 13
B10: SECURITY_NAME | C10: Short_NAME | D10: CRNCY | E10: PX_ASK | F10: CHG_PCT_1D | G10: CHG_PCT_YTD | H10: PX_BID | I10: PX_ASK | J10: YLD_YTC_ASK | K10: YLD_TRUE_GROSS_ASK | L10: CPN | M10: Nxt_call_dt | N10: FINAL_MATURITY | O10: NXT_CALL_PX | P10: STRUCTURED_NOTE_CPN_FORMULA | R10: DUR_ADJ_MID | S10: YAS_ZSPREAD | T10: MIN_PIECE | U10: AMT_ISSUED_MMM | W10: RTG_SP | X10: use_of_proceeds | Y10: ISIN | Z10: COUNTRY_FULL_NAME | AA10: CNTRY_OF_RISK | AC10: RTG_SP | AD10: RTG_MOODY | AE10: RTG_FITCH | AF10: RTG_SP_LT_LC_ISSUER_CREDIT | AZ10: EXTENDIBLE_IS_STILL_EXTENDIBLE | BM10: CPN_FREQ
M11: Nxt_put_dt | AZ11: MTY_TYP
A12: Publish | B12: Descrição | C12: Nome | D12: Moeda | E12: Preço | F12: Valor Nominal | G12: Variação YTD (%) | H12: BID | I12: ASK | J12: YTC | K12: YTM | L12: Cupão (%) | M12: Call/Put Date | N12: Maturidade | O12: Call Price | P12: Indexante | Q12: Não Exerce Call | R12: Duration Years | S12: Spread (bp) | T12: Minimo Invest. | U12: Montante Emitido | V12: Agency | W12: Rating | X12: Tipo de Colateral | Y12: ISIN | Z12: País de Emissão | AA12: País de Risco | AB12: COLLAT_TYP | AC12: S&P | AD12: MOODYs | AE12: FITCH | AF12: RTG_SP_LT_LC_ISSUER_CREDIT | AG12: Floater_Underlying | AH12: Floater_spread | AI12: Date_Helper | AJ12: Coupon_Helper1 | AK12: Coupon_Helper2 | AL12: Des_For_Web_Simu | AM12: Make_Whole_call | AN12: MAKE_WHOLE_CALL_SPREAD | AO12: MAKE_WHOLE_TERMINATION_DATE | AP12: IS_STILL_CALLABLE | AQ12: CALLABLE | AR12: TIER1_CAPITAL | AS12: UPPER_TIER2_CAPITAL | AT12: LOWER_TIER2_CAPITAL | AU12: IS_COVERED | AV12: SENIOR | AW12: IS_SUBORDINATED | AX12: is_Unsecured | AY12: is_secured | AZ12: Maturity Type | BA12: INT_ACC | BB12: CPN_TYP | BC12: MARKET_SECTOR | BD12: SETTLE_DT | BE12: ISSUE_DT | BF12: PREV_CPN_DT | BG12: NXT_CPN_DT | BH12: LAST_CALLABLE_DATE | BI12: MIN_INCREMENT | BJ12: INDUSTRY_SECTOR | BK12: ISSUER | BL12: DAY_CNT_DES | BM12: Periodicidade | BN12: PAYMENT_RANK | BO12: DES_NOTES | BP12: AMT_OUTSTANDING_MMM | BQ12: YAS_ZSPREAD | BR12: YAS_ISPREAD_TO_GOVT | BS12: NAME | BT12: CALC_TYP_DES | BU12: MARKET_ISSUE | BV12: ANNOUNCE_DT | BW12: RTG_SP_OUTLOOK | BX12: RTG_MDY_OUTLOOK | BY12: RTG_FITCH_OUTLOOK | BZ12: AMT_ISSUED | CA12: AMT_OUTSTANDING | CB12: IsOk | CC12: DES_CASH_FLOW | CD12: Column3 | CE12: Column4 | CF12: Column5 | CG12: Column6 | CH12: Column7 | CI12: Column8 | CJ12: Column9 | CK12: Column10 | CL12: Column11 | CM12: Column12 | CN12: Column13 | CO12: Column14 | CP12: Column15 | CQ12: Column16 | CR12: Column17 | CS12: Column18 | CT12: Column19 | CU12: Column20 | CV12: Column21 | CW12: Column22 | CX12: Column23 | CY12: Column24 | CZ12: Column25 | DA12: Column26 | DB12: Column27 | DC12: Column28 | DD12: Column29 | DE12: Column30 | DF12: Column31 | DG12: Column32 | DH12: Column33 | DI12: Column34 | DJ12: Column35 | DK12: Column36 | DL12: Column37 | DM12: Column38 | DN12: Column39 | DO12: Column40 | DP12: Column41 | DQ12: Column42 | DR12: Column43 | DS12: Column44 | DT12: Column45 | DU12: Column46 | DV12: Column47 | DW12: Column48 | DX12: Column49 | DY12: Column50 | DZ12: Column51 | EA12: Column52 | EB12: Column53 | EC12: Column54 | ED12: Column55 | EE12: Column56 | EF12: Column57 | EG12: Column58 | EH12: Column59 | EI12: Column60 | EJ12: Column61 | EK12: Column62 | EL12: Column63 | EM12: Column64 | EN12: Column65 | EO12: Column66 | EP12: Column67 | EQ12: Column68 | ER12: Column69 | ES12: Column70 | ET12: Column71 | EU12: Column72 | EV12: Column73 | EW12: Column74 | EX12: Column75 | EY12: Column76 | EZ12: Column77 | FA12: Column78 | FB12: Column79 | FC12: Column80 | FD12: Column81 | FE12: Column82 | FF12: Column83 | FG12: Column84 | FH12: Column85 | FI12: Column86 | FJ12: Column87 | FK12: Column88 | FL12: Column89 | FM12: Column90 | FN12: Column91 | FO12: Column92 | FP12: Column93 | FQ12: Column94 | FR12: Column95 | FS12: Column96 | FT12: Column97 | FU12: Column98 | FV12: Column99 | FW12: Column100 | FX12: Column101 | FY12: Column102 | FZ12: Column103 | GA12: Column104 | GB12: Column105 | GC12: Column106 | GD12: Column107 | GE12: Column108 | GF12: Column109 | GG12: Column110 | GH12: Column111 | GI12: Column112 | GJ12: Column113 | GK12: Column114 | GL12: Column115 | GM12: Column116 | GN12: Column117 | GO12: Column118 | GP12: Column119 | GQ12: Column120 | GR12: Column121 | GS12: Column122 | GT12: Column123 | GU12: Column124 | GV12: Column125 | GW12: Column126 | GX12: Column127 | GY12: Column128 | GZ12: Column129 | HA12: Column130 | HB12: Column131 | HC12: Column132 | HD12: Column133 | HE12: Column134 | HF12: Column135 | HG12: Column136 | HH12: Column137 | HI12: Column138 | HJ12: Column139 | HK12: Column140 | HL12: Column228 | HM12: Column229 | HN12: Column230 | HO12: Column231 | HP12: Column232 | HQ12: Column233 | HR12: Column234 | HS12: Column235 | HT12: Column236 | HU12: Column237 | HV12: Column238 | HW12: Column239 | HX12: Column240 | HY12: Column241 | HZ12: Column242 | IA12: Column243 | IB12: Column244 | IC12: Column245 | ID12: Column246 | IE12: Column247 | IF12: Column248 | IG12: Column249 | IH12: Column250 | II12: Column251 | IJ12: Column252 | IK12: Column253 | IL12: Column254 | IM12: Column255 | IN12: Column256 | IO12: Column257 | IP12: Column258 | IQ12: Column259
A13: =AND(NOT(Table3[[#This Row],[Tipo de Colateral]]="Subordinada"),Table3[[#This Row],[ASK]]<>"",Table3[[#This Row],[YTM]]<50,Table3[[#This Row],[Preço]]>40) -> FALSE | B13: Benfica 2026-2031 | C13: Benfica 2026-2031 | D13: EUR | E13: 5 | F13: 5 | H13: =+Table3[Preço] -> 5 | I13: =+Table3[Preço] -> 5 | L13: 4.65 | N13: 2031-04-29 | T13: 2500 | U13: 40000000 | X13: Senior | Y13: PTSLBAOM0028 | Z13: PORTUGAL | AA13: =+Table3[País de Emissão] -> PORTUGAL | AL13: =+Table3[Descrição] -> Benfica 2026-2031 | AQ13: FALSE | AV13: TRUE | AZ13: AT MATURITY | BB13: FIXED | BC13: 8 | BD13: 2026-04-29 | BE13: =+Table3[SETTLE_DT] -> 2026-04-29 | BF13: 2026-04-29 | BG13: =EDATE(Table3[SETTLE_DT],IF(Table3[Periodicidade]="Anual",12,IF(Table3[Periodicidade]="Semestral",6,"#"))) -> 2026-10-29 | BH13: 0 | BI13: 5 | BJ13: Corporate | BK13: =+Table3[Descrição] -> Benfica 2026-2031 | BL13: 30/360 | BM13: Semestral | BN13: =+IF(Table3[[#This Row],[is_secured]],"Secured",IF(Table3[[#This Row],[TIER1_CAPITAL]],"Tier 1",IF(Table3[[#This Row],[UPPER_TIER2_CAPITAL]],"Upper Tier 2",IF(Table3[[#This Row],[LOWER_TIER2_CAPITAL]],"Lower Tier 2","")))) ->  | BS13: =+Table3[Nome] -> Benfica 2026-2031 | CB13: TRUE | CC13: =WORKDAY(WORKDAY(Table3[[#This Row],[NXT_CPN_DT]]*1,-1),1) -> 2026-10-29 | CD13: =IF(Table3[[#This Row],[CPN_TYP]]="ZERO",0,IF(EDATE(Table3[[#This Row],[NXT_CPN_DT]],12/INDEX(Tabelas!$I$4:$I$8,MATCH(Table3[[#This Row],[Periodicidade]],Tabelas!$J$4:$J$8,0)))<=Table3[[#This Row],[Maturidade]],EDATE(Table3[[#This Row],[NXT_CPN_DT]],12/INDEX(Tabelas!$I$4:$I$8,MATCH(Table3[[#This Row],[Periodicidade]],Tabelas!$J$4:$J$8,0))),0)) -> 2027-04-29 | CE13: =IF(CD13=0,0,IF(EDATE(CD13,12/INDEX(Tabelas!$I$4:$I$8,MATCH(Table3[[#This Row],[Periodicidade]],Tabelas!$J$4:$J$8,0)))<=Table3[[#This Row],[Maturidade]],EDATE(CD13,12/INDEX(Tabelas!$I$4:$I$8,MATCH(Table3[[#This Row],[Periodicidade]],Tabelas!$J$4:$J$8,0))),0)) -> 2027-10-29 | CF13: =IF(CE13=0,0,IF(EDATE(CE13,12/INDEX(Tabelas!$I$4:$I$8,MATCH(Table3[[#This Row],[Periodicidade]],Tabelas!$J$4:$J$8,0)))<=Table3[[#This Row],[Maturidade]],EDATE(CE13,12/INDEX(Tabelas!$I$4:$I$8,MATCH(Table3[[#This Row],[Periodicidade]],Tabelas!$J$4:$J$8,0))),0)) -> 2028-04-29 | CG13: =IF(CF13=0,0,IF(EDATE(CF13,12/INDEX(Tabelas!$I$4:$I$8,MATCH(Table3[[#This Row],[Periodicidade]],Tabelas!$J$4:$J$8,0)))<=Table3[[#This Row],[Maturidade]],EDATE(CF13,12/INDEX(Tabelas!$I$4:$I$8,MATCH(Table3[[#This Row],[Periodicidade]],Tabelas!$J$4:$J$8,0))),0)) -> 2028-10-29 | CH13: =IF(CG13=0,0,IF(EDATE(CG13,12/INDEX(Tabelas!$I$4:$I$8,MATCH(Table3[[#This Row],[Periodicidade]],Tabelas!$J$4:$J$8,0)))<=Table3[[#This Row],[Maturidade]],EDATE(CG13,12/INDEX(Tabelas!$I$4:$I$8,MATCH(Table3[[#This Row],[Periodicidade]],Tabelas!$J$4:$J$8,0))),0)) -> 2029-04-29 | CI13: =IF(CH13=0,0,IF(EDATE(CH13,12/INDEX(Tabelas!$I$4:$I$8,MATCH(Table3[[#This Row],[Periodicidade]],Tabelas!$J$4:$J$8,0)))<=Table3[[#This Row],[Maturidade]],EDATE(CH13,12/INDEX(Tabelas!$I$4:$I$8,MATCH(Table3[[#This Row],[Periodicidade]],Tabelas!$J$4:$J$8,0))),0)) -> 2029-10-29 | CJ13: =IF(CI13=0,0,IF(EDATE(CI13,12/INDEX(Tabelas!$I$4:$I$8,MATCH(Table3[[#This Row],[Periodicidade]],Tabelas!$J$4:$J$8,0)))<=Table3[[#This Row],[Maturidade]],EDATE(CI13,12/INDEX(Tabelas!$I$4:$I$8,MATCH(Table3[[#This Row],[Periodicidade]],Tabelas!$J$4:$J$8,0))),0)) -> 2030-04-29 | CK13: =IF(CJ13=0,0,IF(EDATE(CJ13,12/INDEX(Tabelas!$I$4:$I$8,MATCH(Table3[[#This Row],[Periodicidade]],Tabelas!$J$4:$J$8,0)))<=Table3[[#This Row],[Maturidade]],EDATE(CJ13,12/INDEX(Tabelas!$I$4:$I$8,MATCH(Table3[[#This Row],[Periodicidade]],Tabelas!$J$4:$J$8,0))),0)) -> 2030-10-29 | CL13: =IF(CK13=0,0,IF(EDATE(CK13,12/INDEX(Tabelas!$I$4:$I$8,MATCH(Table3[[#This Row],[Periodicidade]],Tabelas!$J$4:$J$8,0)))<=Table3[[#This Row],[Maturidade]],EDATE(CK13,12/INDEX(Tabelas!$I$4:$I$8,MATCH(Table3[[#This Row],[Periodicidade]],Tabelas!$J$4:$J$8,0))),0)) -> 2031-04-29 | CM13: =IF(CL13=0,0,IF(EDATE(CL13,12/INDEX(Tabelas!$I$4:$I$8,MATCH(Table3[[#This Row],[Periodicidade]],Tabelas!$J$4:$J$8,0)))<=Table3[[#This Row],[Maturidade]],EDATE(CL13,12/INDEX(Tabelas!$I$4:$I$8,MATCH(Table3[[#This Row],[Periodicidade]],Tabelas!$J$4:$J$8,0))),0)) -> 00:00:00 | CN13: =IF(CM13=0,0,IF(EDATE(CM13,12/INDEX(Tabelas!$I$4:$I$8,MATCH(Table3[[#This Row],[Periodicidade]],Tabelas!$J$4:$J$8,0)))<=Table3[[#This Row],[Maturidade]],EDATE(CM13,12/INDEX(Tabelas!$I$4:$I$8,MATCH(Table3[[#This Row],[Periodicidade]],Tabelas!$J$4:$J$8,0))),0)) -> 00:00:00 | CO13: =IF(CN13=0,0,IF(EDATE(CN13,12/INDEX(Tabelas!$I$4:$I$8,MATCH(Table3[[#This Row],[Periodicidade]],Tabelas!$J$4:$J$8,0)))<=Table3[[#This Row],[Maturidade]],EDATE(CN13,12/INDEX(Tabelas!$I$4:$I$8,MATCH(Table3[[#This Row],[Periodicidade]],Tabelas!$J$4:$J$8,0))),0)) -> 00:00:00 | CP13: =IF(CO13=0,0,IF(EDATE(CO13,12/INDEX(Tabelas!$I$4:$I$8,MATCH(Table3[[#This Row],[Periodicidade]],Tabelas!$J$4:$J$8,0)))<=Table3[[#This Row],[Maturidade]],EDATE(CO13,12/INDEX(Tabelas!$I$4:$I$8,MATCH(Table3[[#This Row],[Periodicidade]],Tabelas!$J$4:$J$8,0))),0)) -> 00:00:00 | CQ13: =IF(CP13=0,0,IF(EDATE(CP13,12/INDEX(Tabelas!$I$4:$I$8,MATCH(Table3[[#This Row],[Periodicidade]],Tabelas!$J$4:$J$8,0)))<=Table3[[#This Row],[Maturidade]],EDATE(CP13,12/INDEX(Tabelas!$I$4:$I$8,MATCH(Table3[[#This Row],[Periodicidade]],Tabelas!$J$4:$J$8,0))),0)) -> 00:00:00 | CR13: =IF(CQ13=0,0,IF(EDATE(CQ13,12/INDEX(Tabelas!$I$4:$I$8,MATCH(Table3[[#This Row],[Periodicidade]],Tabelas!$J$4:$J$8,0)))<=Table3[[#This Row],[Maturidade]],EDATE(CQ13,12/INDEX(Tabelas!$I$4:$I$8,MATCH(Table3[[#This Row],[Periodicidade]],Tabelas!$J$4:$J$8,0))),0)) -> 00:00:00 | CS13: =IF(CR13=0,0,IF(EDATE(CR13,12/INDEX(Tabelas!$I$4:$I$8,MATCH(Table3[[#This Row],[Periodicidade]],Tabelas!$J$4:$J$8,0)))<=Table3[[#This Row],[Maturidade]],EDATE(CR13,12/INDEX(Tabelas!$I$4:$I$8,MATCH(Table3[[#This Row],[Periodicidade]],Tabelas!$J$4:$J$8,0))),0)) -> 00:00:00 | CT13: =IF(CS13=0,0,IF(EDATE(CS13,12/INDEX(Tabelas!$I$4:$I$8,MATCH(Table3[[#This Row],[Periodicidade]],Tabelas!$J$4:$J$8,0)))<=Table3[[#This Row],[Maturidade]],EDATE(CS13,12/INDEX(Tabelas!$I$4:$I$8,MATCH(Table3[[#This Row],[Periodicidade]],Tabelas!$J$4:$J$8,0))),0)) -> 00:00:00 | CU13: =IF(CT13=0,0,IF(EDATE(CT13,12/INDEX(Tabelas!$I$4:$I$8,MATCH(Table3[[#This Row],[Periodicidade]],Tabelas!$J$4:$J$8,0)))<=Table3[[#This Row],[Maturidade]],EDATE(CT13,12/INDEX(Tabelas!$I$4:$I$8,MATCH(Table3[[#This Row],[Periodicidade]],Tabelas!$J$4:$J$8,0))),0)) -> 00:00:00 | CV13: =IF(CU13=0,0,IF(EDATE(CU13,12/INDEX(Tabelas!$I$4:$I$8,MATCH(Table3[[#This Row],[Periodicidade]],Tabelas!$J$4:$J$8,0)))<=Table3[[#This Row],[Maturidade]],EDATE(CU13,12/INDEX(Tabelas!$I$4:$I$8,MATCH(Table3[[#This Row],[Periodicidade]],Tabelas!$J$4:$J$8,0))),0)) -> 00:00:00 | CW13: =IF(CV13=0,0,IF(EDATE(CV13,12/INDEX(Tabelas!$I$4:$I$8,MATCH(Table3[[#This Row],[Periodicidade]],Tabelas!$J$4:$J$8,0)))<=Table3[[#This Row],[Maturidade]],EDATE(CV13,12/INDEX(Tabelas!$I$4:$I$8,MATCH(Table3[[#This Row],[Periodicidade]],Tabelas!$J$4:$J$8,0))),0)) -> 00:00:00 | CX13: =IF(CW13=0,0,IF(EDATE(CW13,12/INDEX(Tabelas!$I$4:$I$8,MATCH(Table3[[#This Row],[Periodicidade]],Tabelas!$J$4:$J$8,0)))<=Table3[[#This Row],[Maturidade]],EDATE(CW13,12/INDEX(Tabelas!$I$4:$I$8,MATCH(Table3[[#This Row],[Periodicidade]],Tabelas!$J$4:$J$8,0))),0)) -> 00:00:00 | CY13: =IF(CX13=0,0,IF(EDATE(CX13,12/INDEX(Tabelas!$I$4:$I$8,MATCH(Table3[[#This Row],[Periodicidade]],Tabelas!$J$4:$J$8,0)))<=Table3[[#This Row],[Maturidade]],EDATE(CX13,12/INDEX(Tabelas!$I$4:$I$8,MATCH(Table3[[#This Row],[Periodicidade]],Tabelas!$J$4:$J$8,0))),0)) -> 00:00:00 | CZ13: =IF(CY13=0,0,IF(EDATE(CY13,12/INDEX(Tabelas!$I$4:$I$8,MATCH(Table3[[#This Row],[Periodicidade]],Tabelas!$J$4:$J$8,0)))<=Table3[[#This Row],[Maturidade]],EDATE(CY13,12/INDEX(Tabelas!$I$4:$I$8,MATCH(Table3[[#This Row],[Periodicidade]],Tabelas!$J$4:$J$8,0))),0)) -> 00:00:00 | DA13: =IF(CZ13=0,0,IF(EDATE(CZ13,12/INDEX(Tabelas!$I$4:$I$8,MATCH(Table3[[#This Row],[Periodicidade]],Tabelas!$J$4:$J$8,0)))<=Table3[[#This Row],[Maturidade]],EDATE(CZ13,12/INDEX(Tabelas!$I$4:$I$8,MATCH(Table3[[#This Row],[Periodicidade]],Tabelas!$J$4:$J$8,0))),0)) -> 00:00:00 | DB13: =IF(DA13=0,0,IF(EDATE(DA13,12/INDEX(Tabelas!$I$4:$I$8,MATCH(Table3[[#This Row],[Periodicidade]],Tabelas!$J$4:$J$8,0)))<=Table3[[#This Row],[Maturidade]],EDATE(DA13,12/INDEX(Tabelas!$I$4:$I$8,MATCH(Table3[[#This Row],[Periodicidade]],Tabelas!$J$4:$J$8,0))),0)) -> 00:00:00 | DC13: =IF(DB13=0,0,IF(EDATE(DB13,12/INDEX(Tabelas!$I$4:$I$8,MATCH(Table3[[#This Row],[Periodicidade]],Tabelas!$J$4:$J$8,0)))<=Table3[[#This Row],[Maturidade]],EDATE(DB13,12/INDEX(Tabelas!$I$4:$I$8,MATCH(Table3[[#This Row],[Periodicidade]],Tabelas!$J$4:$J$8,0))),0)) -> 00:00:00 | DD13: =IF(DC13=0,0,IF(EDATE(DC13,12/INDEX(Tabelas!$I$4:$I$8,MATCH(Table3[[#This Row],[Periodicidade]],Tabelas!$J$4:$J$8,0)))<=Table3[[#This Row],[Maturidade]],EDATE(DC13,12/INDEX(Tabelas!$I$4:$I$8,MATCH(Table3[[#This Row],[Periodicidade]],Tabelas!$J$4:$J$8,0))),0)) -> 00:00:00 | DE13: =IF(DD13=0,0,IF(EDATE(DD13,12/INDEX(Tabelas!$I$4:$I$8,MATCH(Table3[[#This Row],[Periodicidade]],Tabelas!$J$4:$J$8,0)))<=Table3[[#This Row],[Maturidade]],EDATE(DD13,12/INDEX(Tabelas!$I$4:$I$8,MATCH(Table3[[#This Row],[Periodicidade]],Tabelas!$J$4:$J$8,0))),0)) -> 00:00:00 | DF13: =IF(DE13=0,0,IF(EDATE(DE13,12/INDEX(Tabelas!$I$4:$I$8,MATCH(Table3[[#This Row],[Periodicidade]],Tabelas!$J$4:$J$8,0)))<=Table3[[#This Row],[Maturidade]],EDATE(DE13,12/INDEX(Tabelas!$I$4:$I$8,MATCH(Table3[[#This Row],[Periodicidade]],Tabelas!$J$4:$J$8,0))),0)) -> 00:00:00 | DG13: =IF(DF13=0,0,IF(EDATE(DF13,12/INDEX(Tabelas!$I$4:$I$8,MATCH(Table3[[#This Row],[Periodicidade]],Tabelas!$J$4:$J$8,0)))<=Table3[[#This Row],[Maturidade]],EDATE(DF13,12/INDEX(Tabelas!$I$4:$I$8,MATCH(Table3[[#This Row],[Periodicidade]],Tabelas!$J$4:$J$8,0))),0)) -> 00:00:00 | DH13: =IF(DG13=0,0,IF(EDATE(DG13,12/INDEX(Tabelas!$I$4:$I$8,MATCH(Table3[[#This Row],[Periodicidade]],Tabelas!$J$4:$J$8,0)))<=Table3[[#This Row],[Maturidade]],EDATE(DG13,12/INDEX(Tabelas!$I$4:$I$8,MATCH(Table3[[#This Row],[Periodicidade]],Tabelas!$J$4:$J$8,0))),0)) -> 00:00:00 | DI13: =IF(DH13=0,0,IF(EDATE(DH13,12/INDEX(Tabelas!$I$4:$I$8,MATCH(Table3[[#This Row],[Periodicidade]],Tabelas!$J$4:$J$8,0)))<=Table3[[#This Row],[Maturidade]],EDATE(DH13,12/INDEX(Tabelas!$I$4:$I$8,MATCH(Table3[[#This Row],[Periodicidade]],Tabelas!$J$4:$J$8,0))),0)) -> 00:00:00 | DJ13: =IF(DI13=0,0,IF(EDATE(DI13,12/INDEX(Tabelas!$I$4:$I$8,MATCH(Table3[[#This Row],[Periodicidade]],Tabelas!$J$4:$J$8,0)))<=Table3[[#This Row],[Maturidade]],EDATE(DI13,12/INDEX(Tabelas!$I$4:$I$8,MATCH(Table3[[#This Row],[Periodicidade]],Tabelas!$J$4:$J$8,0))),0)) -> 00:00:00 | DK13: =IF(DJ13=0,0,IF(EDATE(DJ13,12/INDEX(Tabelas!$I$4:$I$8,MATCH(Table3[[#This Row],[Periodicidade]],Tabelas!$J$4:$J$8,0)))<=Table3[[#This Row],[Maturidade]],EDATE(DJ13,12/INDEX(Tabelas!$I$4:$I$8,MATCH(Table3[[#This Row],[Periodicidade]],Tabelas!$J$4:$J$8,0))),0)) -> 00:00:00 | DL13: =IF(DK13=0,0,IF(EDATE(DK13,12/INDEX(Tabelas!$I$4:$I$8,MATCH(Table3[[#This Row],[Periodicidade]],Tabelas!$J$4:$J$8,0)))<=Table3[[#This Row],[Maturidade]],EDATE(DK13,12/INDEX(Tabelas!$I$4:$I$8,MATCH(Table3[[#This Row],[Periodicidade]],Tabelas!$J$4:$J$8,0))),0)) -> 00:00:00 | DM13: =IF(DL13=0,0,IF(EDATE(DL13,12/INDEX(Tabelas!$I$4:$I$8,MATCH(Table3[[#This Row],[Periodicidade]],Tabelas!$J$4:$J$8,0)))<=Table3[[#This Row],[Maturidade]],EDATE(DL13,12/INDEX(Tabelas!$I$4:$I$8,MATCH(Table3[[#This Row],[Periodicidade]],Tabelas!$J$4:$J$8,0))),0)) -> 00:00:00 | DN13: =IF(DM13=0,0,IF(EDATE(DM13,12/INDEX(Tabelas!$I$4:$I$8,MATCH(Table3[[#This Row],[Periodicidade]],Tabelas!$J$4:$J$8,0)))<=Table3[[#This Row],[Maturidade]],EDATE(DM13,12/INDEX(Tabelas!$I$4:$I$8,MATCH(Table3[[#This Row],[Periodicidade]],Tabelas!$J$4:$J$8,0))),0)) -> 00:00:00 | DO13: =IF(DN13=0,0,IF(EDATE(DN13,12/INDEX(Tabelas!$I$4:$I$8,MATCH(Table3[[#This Row],[Periodicidade]],Tabelas!$J$4:$J$8,0)))<=Table3[[#This Row],[Maturidade]],EDATE(DN13,12/INDEX(Tabelas!$I$4:$I$8,MATCH(Table3[[#This Row],[Periodicidade]],Tabelas!$J$4:$J$8,0))),0)) -> 00:00:00 | DP13: =IF(DO13=0,0,IF(EDATE(DO13,12/INDEX(Tabelas!$I$4:$I$8,MATCH(Table3[[#This Row],[Periodicidade]],Tabelas!$J$4:$J$8,0)))<=Table3[[#This Row],[Maturidade]],EDATE(DO13,12/INDEX(Tabelas!$I$4:$I$8,MATCH(Table3[[#This Row],[Periodicidade]],Tabelas!$J$4:$J$8,0))),0)) -> 00:00:00 | DQ13: =IF(DP13=0,0,IF(EDATE(DP13,12/INDEX(Tabelas!$I$4:$I$8,MATCH(Table3[[#This Row],[Periodicidade]],Tabelas!$J$4:$J$8,0)))<=Table3[[#This Row],[Maturidade]],EDATE(DP13,12/INDEX(Tabelas!$I$4:$I$8,MATCH(Table3[[#This Row],[Periodicidade]],Tabelas!$J$4:$J$8,0))),0)) -> 00:00:00 | DR13: =IF(DQ13=0,0,IF(EDATE(DQ13,12/INDEX(Tabelas!$I$4:$I$8,MATCH(Table3[[#This Row],[Periodicidade]],Tabelas!$J$4:$J$8,0)))<=Table3[[#This Row],[Maturidade]],EDATE(DQ13,12/INDEX(Tabelas!$I$4:$I$8,MATCH(Table3[[#This Row],[Periodicidade]],Tabelas!$J$4:$J$8,0))),0)) -> 00:00:00 | DS13: =IF(DR13=0,0,IF(EDATE(DR13,12/INDEX(Tabelas!$I$4:$I$8,MATCH(Table3[[#This Row],[Periodicidade]],Tabelas!$J$4:$J$8,0)))<=Table3[[#This Row],[Maturidade]],EDATE(DR13,12/INDEX(Tabelas!$I$4:$I$8,MATCH(Table3[[#This Row],[Periodicidade]],Tabelas!$J$4:$J$8,0))),0)) -> 00:00:00 | DT13: =IF(DS13=0,0,IF(EDATE(DS13,12/INDEX(Tabelas!$I$4:$I$8,MATCH(Table3[[#This Row],[Periodicidade]],Tabelas!$J$4:$J$8,0)))<=Table3[[#This Row],[Maturidade]],EDATE(DS13,12/INDEX(Tabelas!$I$4:$I$8,MATCH(Table3[[#This Row],[Periodicidade]],Tabelas!$J$4:$J$8,0))),0)) -> 00:00:00 | DU13: =IF(DT13=0,0,IF(EDATE(DT13,12/INDEX(Tabelas!$I$4:$I$8,MATCH(Table3[[#This Row],[Periodicidade]],Tabelas!$J$4:$J$8,0)))<=Table3[[#This Row],[Maturidade]],EDATE(DT13,12/INDEX(Tabelas!$I$4:$I$8,MATCH(Table3[[#This Row],[Periodicidade]],Tabelas!$J$4:$J$8,0))),0)) -> 00:00:00 | DV13: =IF(DU13=0,0,IF(EDATE(DU13,12/INDEX(Tabelas!$I$4:$I$8,MATCH(Table3[[#This Row],[Periodicidade]],Tabelas!$J$4:$J$8,0)))<=Table3[[#This Row],[Maturidade]],EDATE(DU13,12/INDEX(Tabelas!$I$4:$I$8,MATCH(Table3[[#This Row],[Periodicidade]],Tabelas!$J$4:$J$8,0))),0)) -> 00:00:00 | DW13: =IF(DV13=0,0,IF(EDATE(DV13,12/INDEX(Tabelas!$I$4:$I$8,MATCH(Table3[[#This Row],[Periodicidade]],Tabelas!$J$4:$J$8,0)))<=Table3[[#This Row],[Maturidade]],EDATE(DV13,12/INDEX(Tabelas!$I$4:$I$8,MATCH(Table3[[#This Row],[Periodicidade]],Tabelas!$J$4:$J$8,0))),0)) -> 00:00:00 | DX13: =IF(DW13=0,0,IF(EDATE(DW13,12/INDEX(Tabelas!$I$4:$I$8,MATCH(Table3[[#This Row],[Periodicidade]],Tabelas!$J$4:$J$8,0)))<=Table3[[#This Row],[Maturidade]],EDATE(DW13,12/INDEX(Tabelas!$I$4:$I$8,MATCH(Table3[[#This Row],[Periodicidade]],Tabelas!$J$4:$J$8,0))),0)) -> 00:00:00 | DY13: =IF(DX13=0,0,IF(EDATE(DX13,12/INDEX(Tabelas!$I$4:$I$8,MATCH(Table3[[#This Row],[Periodicidade]],Tabelas!$J$4:$J$8,0)))<=Table3[[#This Row],[Maturidade]],EDATE(DX13,12/INDEX(Tabelas!$I$4:$I$8,MATCH(Table3[[#This Row],[Periodicidade]],Tabelas!$J$4:$J$8,0))),0)) -> 00:00:00 | DZ13: =IF(DY13=0,0,IF(EDATE(DY13,12/INDEX(Tabelas!$I$4:$I$8,MATCH(Table3[[#This Row],[Periodicidade]],Tabelas!$J$4:$J$8,0)))<=Table3[[#This Row],[Maturidade]],EDATE(DY13,12/INDEX(Tabelas!$I$4:$I$8,MATCH(Table3[[#This Row],[Periodicidade]],Tabelas!$J$4:$J$8,0))),0)) -> 00:00:00 | EA13: =IF(DZ13=0,0,IF(EDATE(DZ13,12/INDEX(Tabelas!$I$4:$I$8,MATCH(Table3[[#This Row],[Periodicidade]],Tabelas!$J$4:$J$8,0)))<=Table3[[#This Row],[Maturidade]],EDATE(DZ13,12/INDEX(Tabelas!$I$4:$I$8,MATCH(Table3[[#This Row],[Periodicidade]],Tabelas!$J$4:$J$8,0))),0)) -> 00:00:00 | EB13: =IF(EA13=0,0,IF(EDATE(EA13,12/INDEX(Tabelas!$I$4:$I$8,MATCH(Table3[[#This Row],[Periodicidade]],Tabelas!$J$4:$J$8,0)))<=Table3[[#This Row],[Maturidade]],EDATE(EA13,12/INDEX(Tabelas!$I$4:$I$8,MATCH(Table3[[#This Row],[Periodicidade]],Tabelas!$J$4:$J$8,0))),0)) -> 00:00:00 | EC13: =IF(EB13=0,0,IF(EDATE(EB13,12/INDEX(Tabelas!$I$4:$I$8,MATCH(Table3[[#This Row],[Periodicidade]],Tabelas!$J$4:$J$8,0)))<=Table3[[#This Row],[Maturidade]],EDATE(EB13,12/INDEX(Tabelas!$I$4:$I$8,MATCH(Table3[[#This Row],[Periodicidade]],Tabelas!$J$4:$J$8,0))),0)) -> 00:00:00 | ED13: =IF(EC13=0,0,IF(EDATE(EC13,12/INDEX(Tabelas!$I$4:$I$8,MATCH(Table3[[#This Row],[Periodicidade]],Tabelas!$J$4:$J$8,0)))<=Table3[[#This Row],[Maturidade]],EDATE(EC13,12/INDEX(Tabelas!$I$4:$I$8,MATCH(Table3[[#This Row],[Periodicidade]],Tabelas!$J$4:$J$8,0))),0)) -> 00:00:00 | EE13: =IF(ED13=0,0,IF(EDATE(ED13,12/INDEX(Tabelas!$I$4:$I$8,MATCH(Table3[[#This Row],[Periodicidade]],Tabelas!$J$4:$J$8,0)))<=Table3[[#This Row],[Maturidade]],EDATE(ED13,12/INDEX(Tabelas!$I$4:$I$8,MATCH(Table3[[#This Row],[Periodicidade]],Tabelas!$J$4:$J$8,0))),0)) -> 00:00:00 | EF13: =IF(EE13=0,0,IF(EDATE(EE13,12/INDEX(Tabelas!$I$4:$I$8,MATCH(Table3[[#This Row],[Periodicidade]],Tabelas!$J$4:$J$8,0)))<=Table3[[#This Row],[Maturidade]],EDATE(EE13,12/INDEX(Tabelas!$I$4:$I$8,MATCH(Table3[[#This Row],[Periodicidade]],Tabelas!$J$4:$J$8,0))),0)) -> 00:00:00 | EG13: =IF(EF13=0,0,IF(EDATE(EF13,12/INDEX(Tabelas!$I$4:$I$8,MATCH(Table3[[#This Row],[Periodicidade]],Tabelas!$J$4:$J$8,0)))<=Table3[[#This Row],[Maturidade]],EDATE(EF13,12/INDEX(Tabelas!$I$4:$I$8,MATCH(Table3[[#This Row],[Periodicidade]],Tabelas!$J$4:$J$8,0))),0)) -> 00:00:00 | EH13: =IF(EG13=0,0,IF(EDATE(EG13,12/INDEX(Tabelas!$I$4:$I$8,MATCH(Table3[[#This Row],[Periodicidade]],Tabelas!$J$4:$J$8,0)))<=Table3[[#This Row],[Maturidade]],EDATE(EG13,12/INDEX(Tabelas!$I$4:$I$8,MATCH(Table3[[#This Row],[Periodicidade]],Tabelas!$J$4:$J$8,0))),0)) -> 00:00:00 | EI13: =IF(EH13=0,0,IF(EDATE(EH13,12/INDEX(Tabelas!$I$4:$I$8,MATCH(Table3[[#This Row],[Periodicidade]],Tabelas!$J$4:$J$8,0)))<=Table3[[#This Row],[Maturidade]],EDATE(EH13,12/INDEX(Tabelas!$I$4:$I$8,MATCH(Table3[[#This Row],[Periodicidade]],Tabelas!$J$4:$J$8,0))),0)) -> 00:00:00 | EJ13: =IF(EI13=0,0,IF(EDATE(EI13,12/INDEX(Tabelas!$I$4:$I$8,MATCH(Table3[[#This Row],[Periodicidade]],Tabelas!$J$4:$J$8,0)))<=Table3[[#This Row],[Maturidade]],EDATE(EI13,12/INDEX(Tabelas!$I$4:$I$8,MATCH(Table3[[#This Row],[Periodicidade]],Tabelas!$J$4:$J$8,0))),0)) -> 00:00:00 | EK13: =IF(EJ13=0,0,IF(EDATE(EJ13,12/INDEX(Tabelas!$I$4:$I$8,MATCH(Table3[[#This Row],[Periodicidade]],Tabelas!$J$4:$J$8,0)))<=Table3[[#This Row],[Maturidade]],EDATE(EJ13,12/INDEX(Tabelas!$I$4:$I$8,MATCH(Table3[[#This Row],[Periodicidade]],Tabelas!$J$4:$J$8,0))),0)) -> 00:00:00 | EL13: =IF(EK13=0,0,IF(EDATE(EK13,12/INDEX(Tabelas!$I$4:$I$8,MATCH(Table3[[#This Row],[Periodicidade]],Tabelas!$J$4:$J$8,0)))<=Table3[[#This Row],[Maturidade]],EDATE(EK13,12/INDEX(Tabelas!$I$4:$I$8,MATCH(Table3[[#This Row],[Periodicidade]],Tabelas!$J$4:$J$8,0))),0)) -> 00:00:00 | EM13: =IF(EL13=0,0,IF(EDATE(EL13,12/INDEX(Tabelas!$I$4:$I$8,MATCH(Table3[[#This Row],[Periodicidade]],Tabelas!$J$4:$J$8,0)))<=Table3[[#This Row],[Maturidade]],EDATE(EL13,12/INDEX(Tabelas!$I$4:$I$8,MATCH(Table3[[#This Row],[Periodicidade]],Tabelas!$J$4:$J$8,0))),0)) -> 00:00:00 | EN13: =IF(EM13=0,0,IF(EDATE(EM13,12/INDEX(Tabelas!$I$4:$I$8,MATCH(Table3[[#This Row],[Periodicidade]],Tabelas!$J$4:$J$8,0)))<=Table3[[#This Row],[Maturidade]],EDATE(EM13,12/INDEX(Tabelas!$I$4:$I$8,MATCH(Table3[[#This Row],[Periodicidade]],Tabelas!$J$4:$J$8,0))),0)) -> 00:00:00 | EO13: =IF(EN13=0,0,IF(EDATE(EN13,12/INDEX(Tabelas!$I$4:$I$8,MATCH(Table3[[#This Row],[Periodicidade]],Tabelas!$J$4:$J$8,0)))<=Table3[[#This Row],[Maturidade]],EDATE(EN13,12/INDEX(Tabelas!$I$4:$I$8,MATCH(Table3[[#This Row],[Periodicidade]],Tabelas!$J$4:$J$8,0))),0)) -> 00:00:00 | EP13: =IF(EO13=0,0,IF(EDATE(EO13,12/INDEX(Tabelas!$I$4:$I$8,MATCH(Table3[[#This Row],[Periodicidade]],Tabelas!$J$4:$J$8,0)))<=Table3[[#This Row],[Maturidade]],EDATE(EO13,12/INDEX(Tabelas!$I$4:$I$8,MATCH(Table3[[#This Row],[Periodicidade]],Tabelas!$J$4:$J$8,0))),0)) -> 00:00:00 | EQ13: =IF(EP13=0,0,IF(EDATE(EP13,12/INDEX(Tabelas!$I$4:$I$8,MATCH(Table3[[#This Row],[Periodicidade]],Tabelas!$J$4:$J$8,0)))<=Table3[[#This Row],[Maturidade]],EDATE(EP13,12/INDEX(Tabelas!$I$4:$I$8,MATCH(Table3[[#This Row],[Periodicidade]],Tabelas!$J$4:$J$8,0))),0)) -> 00:00:00 | ER13: =IF(EQ13=0,0,IF(EDATE(EQ13,12/INDEX(Tabelas!$I$4:$I$8,MATCH(Table3[[#This Row],[Periodicidade]],Tabelas!$J$4:$J$8,0)))<=Table3[[#This Row],[Maturidade]],EDATE(EQ13,12/INDEX(Tabelas!$I$4:$I$8,MATCH(Table3[[#This Row],[Periodicidade]],Tabelas!$J$4:$J$8,0))),0)) -> 00:00:00 | ES13: =IF(ER13=0,0,IF(EDATE(ER13,12/INDEX(Tabelas!$I$4:$I$8,MATCH(Table3[[#This Row],[Periodicidade]],Tabelas!$J$4:$J$8,0)))<=Table3[[#This Row],[Maturidade]],EDATE(ER13,12/INDEX(Tabelas!$I$4:$I$8,MATCH(Table3[[#This Row],[Periodicidade]],Tabelas!$J$4:$J$8,0))),0)) -> 00:00:00 | ET13: =IF(ES13=0,0,IF(EDATE(ES13,12/INDEX(Tabelas!$I$4:$I$8,MATCH(Table3[[#This Row],[Periodicidade]],Tabelas!$J$4:$J$8,0)))<=Table3[[#This Row],[Maturidade]],EDATE(ES13,12/INDEX(Tabelas!$I$4:$I$8,MATCH(Table3[[#This Row],[Periodicidade]],Tabelas!$J$4:$J$8,0))),0)) -> 00:00:00 | EU13: =IF(ET13=0,0,IF(EDATE(ET13,12/INDEX(Tabelas!$I$4:$I$8,MATCH(Table3[[#This Row],[Periodicidade]],Tabelas!$J$4:$J$8,0)))<=Table3[[#This Row],[Maturidade]],EDATE(ET13,12/INDEX(Tabelas!$I$4:$I$8,MATCH(Table3[[#This Row],[Periodicidade]],Tabelas!$J$4:$J$8,0))),0)) -> 00:00:00 | EV13: =IF(EU13=0,0,IF(EDATE(EU13,12/INDEX(Tabelas!$I$4:$I$8,MATCH(Table3[[#This Row],[Periodicidade]],Tabelas!$J$4:$J$8,0)))<=Table3[[#This Row],[Maturidade]],EDATE(EU13,12/INDEX(Tabelas!$I$4:$I$8,MATCH(Table3[[#This Row],[Periodicidade]],Tabelas!$J$4:$J$8,0))),0)) -> 00:00:00 | EW13: =IF(EV13=0,0,IF(EDATE(EV13,12/INDEX(Tabelas!$I$4:$I$8,MATCH(Table3[[#This Row],[Periodicidade]],Tabelas!$J$4:$J$8,0)))<=Table3[[#This Row],[Maturidade]],EDATE(EV13,12/INDEX(Tabelas!$I$4:$I$8,MATCH(Table3[[#This Row],[Periodicidade]],Tabelas!$J$4:$J$8,0))),0)) -> 00:00:00 | EX13: =IF(EW13=0,0,IF(EDATE(EW13,12/INDEX(Tabelas!$I$4:$I$8,MATCH(Table3[[#This Row],[Periodicidade]],Tabelas!$J$4:$J$8,0)))<=Table3[[#This Row],[Maturidade]],EDATE(EW13,12/INDEX(Tabelas!$I$4:$I$8,MATCH(Table3[[#This Row],[Periodicidade]],Tabelas!$J$4:$J$8,0))),0)) -> 00:00:00 | EY13: =IF(EX13=0,0,IF(EDATE(EX13,12/INDEX(Tabelas!$I$4:$I$8,MATCH(Table3[[#This Row],[Periodicidade]],Tabelas!$J$4:$J$8,0)))<=Table3[[#This Row],[Maturidade]],EDATE(EX13,12/INDEX(Tabelas!$I$4:$I$8,MATCH(Table3[[#This Row],[Periodicidade]],Tabelas!$J$4:$J$8,0))),0)) -> 00:00:00 | EZ13: =IF(EY13=0,0,IF(EDATE(EY13,12/INDEX(Tabelas!$I$4:$I$8,MATCH(Table3[[#This Row],[Periodicidade]],Tabelas!$J$4:$J$8,0)))<=Table3[[#This Row],[Maturidade]],EDATE(EY13,12/INDEX(Tabelas!$I$4:$I$8,MATCH(Table3[[#This Row],[Periodicidade]],Tabelas!$J$4:$J$8,0))),0)) -> 00:00:00 | FA13: =IF(EZ13=0,0,IF(EDATE(EZ13,12/INDEX(Tabelas!$I$4:$I$8,MATCH(Table3[[#This Row],[Periodicidade]],Tabelas!$J$4:$J$8,0)))<=Table3[[#This Row],[Maturidade]],EDATE(EZ13,12/INDEX(Tabelas!$I$4:$I$8,MATCH(Table3[[#This Row],[Periodicidade]],Tabelas!$J$4:$J$8,0))),0)) -> 00:00:00 | FB13: =IF(FA13=0,0,IF(EDATE(FA13,12/INDEX(Tabelas!$I$4:$I$8,MATCH(Table3[[#This Row],[Periodicidade]],Tabelas!$J$4:$J$8,0)))<=Table3[[#This Row],[Maturidade]],EDATE(FA13,12/INDEX(Tabelas!$I$4:$I$8,MATCH(Table3[[#This Row],[Periodicidade]],Tabelas!$J$4:$J$8,0))),0)) -> 00:00:00 | FC13: =IF(FB13=0,0,IF(EDATE(FB13,12/INDEX(Tabelas!$I$4:$I$8,MATCH(Table3[[#This Row],[Periodicidade]],Tabelas!$J$4:$J$8,0)))<=Table3[[#This Row],[Maturidade]],EDATE(FB13,12/INDEX(Tabelas!$I$4:$I$8,MATCH(Table3[[#This Row],[Periodicidade]],Tabelas!$J$4:$J$8,0))),0)) -> 00:00:00 | FD13: =IF(FC13=0,0,IF(EDATE(FC13,12/INDEX(Tabelas!$I$4:$I$8,MATCH(Table3[[#This Row],[Periodicidade]],Tabelas!$J$4:$J$8,0)))<=Table3[[#This Row],[Maturidade]],EDATE(FC13,12/INDEX(Tabelas!$I$4:$I$8,MATCH(Table3[[#This Row],[Periodicidade]],Tabelas!$J$4:$J$8,0))),0)) -> 00:00:00 | FE13: =IF(FD13=0,0,IF(EDATE(FD13,12/INDEX(Tabelas!$I$4:$I$8,MATCH(Table3[[#This Row],[Periodicidade]],Tabelas!$J$4:$J$8,0)))<=Table3[[#This Row],[Maturidade]],EDATE(FD13,12/INDEX(Tabelas!$I$4:$I$8,MATCH(Table3[[#This Row],[Periodicidade]],Tabelas!$J$4:$J$8,0))),0)) -> 00:00:00 | FF13: =IF(FE13=0,0,IF(EDATE(FE13,12/INDEX(Tabelas!$I$4:$I$8,MATCH(Table3[[#This Row],[Periodicidade]],Tabelas!$J$4:$J$8,0)))<=Table3[[#This Row],[Maturidade]],EDATE(FE13,12/INDEX(Tabelas!$I$4:$I$8,MATCH(Table3[[#This Row],[Periodicidade]],Tabelas!$J$4:$J$8,0))),0)) -> 00:00:00 | FG13: =IF(FF13=0,0,IF(EDATE(FF13,12/INDEX(Tabelas!$I$4:$I$8,MATCH(Table3[[#This Row],[Periodicidade]],Tabelas!$J$4:$J$8,0)))<=Table3[[#This Row],[Maturidade]],EDATE(FF13,12/INDEX(Tabelas!$I$4:$I$8,MATCH(Table3[[#This Row],[Periodicidade]],Tabelas!$J$4:$J$8,0))),0)) -> 00:00:00 | FH13: =IF(FG13=0,0,IF(EDATE(FG13,12/INDEX(Tabelas!$I$4:$I$8,MATCH(Table3[[#This Row],[Periodicidade]],Tabelas!$J$4:$J$8,0)))<=Table3[[#This Row],[Maturidade]],EDATE(FG13,12/INDEX(Tabelas!$I$4:$I$8,MATCH(Table3[[#This Row],[Periodicidade]],Tabelas!$J$4:$J$8,0))),0)) -> 00:00:00 | FI13: =IF(FH13=0,0,IF(EDATE(FH13,12/INDEX(Tabelas!$I$4:$I$8,MATCH(Table3[[#This Row],[Periodicidade]],Tabelas!$J$4:$J$8,0)))<=Table3[[#This Row],[Maturidade]],EDATE(FH13,12/INDEX(Tabelas!$I$4:$I$8,MATCH(Table3[[#This Row],[Periodicidade]],Tabelas!$J$4:$J$8,0))),0)) -> 00:00:00 | FJ13: =IF(FI13=0,0,IF(EDATE(FI13,12/INDEX(Tabelas!$I$4:$I$8,MATCH(Table3[[#This Row],[Periodicidade]],Tabelas!$J$4:$J$8,0)))<=Table3[[#This Row],[Maturidade]],EDATE(FI13,12/INDEX(Tabelas!$I$4:$I$8,MATCH(Table3[[#This Row],[Periodicidade]],Tabelas!$J$4:$J$8,0))),0)) -> 00:00:00 | FK13: =IF(FJ13=0,0,IF(EDATE(FJ13,12/INDEX(Tabelas!$I$4:$I$8,MATCH(Table3[[#This Row],[Periodicidade]],Tabelas!$J$4:$J$8,0)))<=Table3[[#This Row],[Maturidade]],EDATE(FJ13,12/INDEX(Tabelas!$I$4:$I$8,MATCH(Table3[[#This Row],[Periodicidade]],Tabelas!$J$4:$J$8,0))),0)) -> 00:00:00 | FL13: =IF(FK13=0,0,IF(EDATE(FK13,12/INDEX(Tabelas!$I$4:$I$8,MATCH(Table3[[#This Row],[Periodicidade]],Tabelas!$J$4:$J$8,0)))<=Table3[[#This Row],[Maturidade]],EDATE(FK13,12/INDEX(Tabelas!$I$4:$I$8,MATCH(Table3[[#This Row],[Periodicidade]],Tabelas!$J$4:$J$8,0))),0)) -> 00:00:00 | FM13: =IF(FL13=0,0,IF(EDATE(FL13,12/INDEX(Tabelas!$I$4:$I$8,MATCH(Table3[[#This Row],[Periodicidade]],Tabelas!$J$4:$J$8,0)))<=Table3[[#This Row],[Maturidade]],EDATE(FL13,12/INDEX(Tabelas!$I$4:$I$8,MATCH(Table3[[#This Row],[Periodicidade]],Tabelas!$J$4:$J$8,0))),0)) -> 00:00:00 | FN13: =IF(FM13=0,0,IF(EDATE(FM13,12/INDEX(Tabelas!$I$4:$I$8,MATCH(Table3[[#This Row],[Periodicidade]],Tabelas!$J$4:$J$8,0)))<=Table3[[#This Row],[Maturidade]],EDATE(FM13,12/INDEX(Tabelas!$I$4:$I$8,MATCH(Table3[[#This Row],[Periodicidade]],Tabelas!$J$4:$J$8,0))),0)) -> 00:00:00 | FO13: =IF(FN13=0,0,IF(EDATE(FN13,12/INDEX(Tabelas!$I$4:$I$8,MATCH(Table3[[#This Row],[Periodicidade]],Tabelas!$J$4:$J$8,0)))<=Table3[[#This Row],[Maturidade]],EDATE(FN13,12/INDEX(Tabelas!$I$4:$I$8,MATCH(Table3[[#This Row],[Periodicidade]],Tabelas!$J$4:$J$8,0))),0)) -> 00:00:00 | FP13: =IF(FO13=0,0,IF(EDATE(FO13,12/INDEX(Tabelas!$I$4:$I$8,MATCH(Table3[[#This Row],[Periodicidade]],Tabelas!$J$4:$J$8,0)))<=Table3[[#This Row],[Maturidade]],EDATE(FO13,12/INDEX(Tabelas!$I$4:$I$8,MATCH(Table3[[#This Row],[Periodicidade]],Tabelas!$J$4:$J$8,0))),0)) -> 00:00:00 | FQ13: =IF(FP13=0,0,IF(EDATE(FP13,12/INDEX(Tabelas!$I$4:$I$8,MATCH(Table3[[#This Row],[Periodicidade]],Tabelas!$J$4:$J$8,0)))<=Table3[[#This Row],[Maturidade]],EDATE(FP13,12/INDEX(Tabelas!$I$4:$I$8,MATCH(Table3[[#This Row],[Periodicidade]],Tabelas!$J$4:$J$8,0))),0)) -> 00:00:00 | FR13: =IF(FQ13=0,0,IF(EDATE(FQ13,12/INDEX(Tabelas!$I$4:$I$8,MATCH(Table3[[#This Row],[Periodicidade]],Tabelas!$J$4:$J$8,0)))<=Table3[[#This Row],[Maturidade]],EDATE(FQ13,12/INDEX(Tabelas!$I$4:$I$8,MATCH(Table3[[#This Row],[Periodicidade]],Tabelas!$J$4:$J$8,0))),0)) -> 00:00:00 | FS13: =IF(FR13=0,0,IF(EDATE(FR13,12/INDEX(Tabelas!$I$4:$I$8,MATCH(Table3[[#This Row],[Periodicidade]],Tabelas!$J$4:$J$8,0)))<=Table3[[#This Row],[Maturidade]],EDATE(FR13,12/INDEX(Tabelas!$I$4:$I$8,MATCH(Table3[[#This Row],[Periodicidade]],Tabelas!$J$4:$J$8,0))),0)) -> 00:00:00 | FT13: =IF(FS13=0,0,IF(EDATE(FS13,12/INDEX(Tabelas!$I$4:$I$8,MATCH(Table3[[#This Row],[Periodicidade]],Tabelas!$J$4:$J$8,0)))<=Table3[[#This Row],[Maturidade]],EDATE(FS13,12/INDEX(Tabelas!$I$4:$I$8,MATCH(Table3[[#This Row],[Periodicidade]],Tabelas!$J$4:$J$8,0))),0)) -> 00:00:00 | FU13: =IF(FT13=0,0,IF(EDATE(FT13,12/INDEX(Tabelas!$I$4:$I$8,MATCH(Table3[[#This Row],[Periodicidade]],Tabelas!$J$4:$J$8,0)))<=Table3[[#This Row],[Maturidade]],EDATE(FT13,12/INDEX(Tabelas!$I$4:$I$8,MATCH(Table3[[#This Row],[Periodicidade]],Tabelas!$J$4:$J$8,0))),0)) -> 00:00:00 | FV13: =IF(FU13=0,0,IF(EDATE(FU13,12/INDEX(Tabelas!$I$4:$I$8,MATCH(Table3[[#This Row],[Periodicidade]],Tabelas!$J$4:$J$8,0)))<=Table3[[#This Row],[Maturidade]],EDATE(FU13,12/INDEX(Tabelas!$I$4:$I$8,MATCH(Table3[[#This Row],[Periodicidade]],Tabelas!$J$4:$J$8,0))),0)) -> 00:00:00 | FW13: =IF(FV13=0,0,IF(EDATE(FV13,12/INDEX(Tabelas!$I$4:$I$8,MATCH(Table3[[#This Row],[Periodicidade]],Tabelas!$J$4:$J$8,0)))<=Table3[[#This Row],[Maturidade]],EDATE(FV13,12/INDEX(Tabelas!$I$4:$I$8,MATCH(Table3[[#This Row],[Periodicidade]],Tabelas!$J$4:$J$8,0))),0)) -> 00:00:00 | FX13: =IF(FW13=0,0,IF(EDATE(FW13,12/INDEX(Tabelas!$I$4:$I$8,MATCH(Table3[[#This Row],[Periodicidade]],Tabelas!$J$4:$J$8,0)))<=Table3[[#This Row],[Maturidade]],EDATE(FW13,12/INDEX(Tabelas!$I$4:$I$8,MATCH(Table3[[#This Row],[Periodicidade]],Tabelas!$J$4:$J$8,0))),0)) -> 00:00:00 | FY13: =IF(FX13=0,0,IF(EDATE(FX13,12/INDEX(Tabelas!$I$4:$I$8,MATCH(Table3[[#This Row],[Periodicidade]],Tabelas!$J$4:$J$8,0)))<=Table3[[#This Row],[Maturidade]],EDATE(FX13,12/INDEX(Tabelas!$I$4:$I$8,MATCH(Table3[[#This Row],[Periodicidade]],Tabelas!$J$4:$J$8,0))),0)) -> 00:00:00 | FZ13: =IF(FY13=0,0,IF(EDATE(FY13,12/INDEX(Tabelas!$I$4:$I$8,MATCH(Table3[[#This Row],[Periodicidade]],Tabelas!$J$4:$J$8,0)))<=Table3[[#This Row],[Maturidade]],EDATE(FY13,12/INDEX(Tabelas!$I$4:$I$8,MATCH(Table3[[#This Row],[Periodicidade]],Tabelas!$J$4:$J$8,0))),0)) -> 00:00:00 | GA13: =IF(FZ13=0,0,IF(EDATE(FZ13,12/INDEX(Tabelas!$I$4:$I$8,MATCH(Table3[[#This Row],[Periodicidade]],Tabelas!$J$4:$J$8,0)))<=Table3[[#This Row],[Maturidade]],EDATE(FZ13,12/INDEX(Tabelas!$I$4:$I$8,MATCH(Table3[[#This Row],[Periodicidade]],Tabelas!$J$4:$J$8,0))),0)) -> 00:00:00 | GB13: =IF(GA13=0,0,IF(EDATE(GA13,12/INDEX(Tabelas!$I$4:$I$8,MATCH(Table3[[#This Row],[Periodicidade]],Tabelas!$J$4:$J$8,0)))<=Table3[[#This Row],[Maturidade]],EDATE(GA13,12/INDEX(Tabelas!$I$4:$I$8,MATCH(Table3[[#This Row],[Periodicidade]],Tabelas!$J$4:$J$8,0))),0)) -> 00:00:00 | GC13: =IF(GB13=0,0,IF(EDATE(GB13,12/INDEX(Tabelas!$I$4:$I$8,MATCH(Table3[[#This Row],[Periodicidade]],Tabelas!$J$4:$J$8,0)))<=Table3[[#This Row],[Maturidade]],EDATE(GB13,12/INDEX(Tabelas!$I$4:$I$8,MATCH(Table3[[#This Row],[Periodicidade]],Tabelas!$J$4:$J$8,0))),0)) -> 00:00:00 | GD13: =IF(GC13=0,0,IF(EDATE(GC13,12/INDEX(Tabelas!$I$4:$I$8,MATCH(Table3[[#This Row],[Periodicidade]],Tabelas!$J$4:$J$8,0)))<=Table3[[#This Row],[Maturidade]],EDATE(GC13,12/INDEX(Tabelas!$I$4:$I$8,MATCH(Table3[[#This Row],[Periodicidade]],Tabelas!$J$4:$J$8,0))),0)) -> 00:00:00 | GE13: =IF(GD13=0,0,IF(EDATE(GD13,12/INDEX(Tabelas!$I$4:$I$8,MATCH(Table3[[#This Row],[Periodicidade]],Tabelas!$J$4:$J$8,0)))<=Table3[[#This Row],[Maturidade]],EDATE(GD13,12/INDEX(Tabelas!$I$4:$I$8,MATCH(Table3[[#This Row],[Periodicidade]],Tabelas!$J$4:$J$8,0))),0)) -> 00:00:00 | GF13: =IF(GE13=0,0,IF(EDATE(GE13,12/INDEX(Tabelas!$I$4:$I$8,MATCH(Table3[[#This Row],[Periodicidade]],Tabelas!$J$4:$J$8,0)))<=Table3[[#This Row],[Maturidade]],EDATE(GE13,12/INDEX(Tabelas!$I$4:$I$8,MATCH(Table3[[#This Row],[Periodicidade]],Tabelas!$J$4:$J$8,0))),0)) -> 00:00:00 | GG13: =IF(GF13=0,0,IF(EDATE(GF13,12/INDEX(Tabelas!$I$4:$I$8,MATCH(Table3[[#This Row],[Periodicidade]],Tabelas!$J$4:$J$8,0)))<=Table3[[#This Row],[Maturidade]],EDATE(GF13,12/INDEX(Tabelas!$I$4:$I$8,MATCH(Table3[[#This Row],[Periodicidade]],Tabelas!$J$4:$J$8,0))),0)) -> 00:00:00 | GH13: =IF(GG13=0,0,IF(EDATE(GG13,12/INDEX(Tabelas!$I$4:$I$8,MATCH(Table3[[#This Row],[Periodicidade]],Tabelas!$J$4:$J$8,0)))<=Table3[[#This Row],[Maturidade]],EDATE(GG13,12/INDEX(Tabelas!$I$4:$I$8,MATCH(Table3[[#This Row],[Periodicidade]],Tabelas!$J$4:$J$8,0))),0)) -> 00:00:00 | GI13: =IF(GH13=0,0,IF(EDATE(GH13,12/INDEX(Tabelas!$I$4:$I$8,MATCH(Table3[[#This Row],[Periodicidade]],Tabelas!$J$4:$J$8,0)))<=Table3[[#This Row],[Maturidade]],EDATE(GH13,12/INDEX(Tabelas!$I$4:$I$8,MATCH(Table3[[#This Row],[Periodicidade]],Tabelas!$J$4:$J$8,0))),0)) -> 00:00:00 | GJ13: =IF(GI13=0,0,IF(EDATE(GI13,12/INDEX(Tabelas!$I$4:$I$8,MATCH(Table3[[#This Row],[Periodicidade]],Tabelas!$J$4:$J$8,0)))<=Table3[[#This Row],[Maturidade]],EDATE(GI13,12/INDEX(Tabelas!$I$4:$I$8,MATCH(Table3[[#This Row],[Periodicidade]],Tabelas!$J$4:$J$8,0))),0)) -> 00:00:00 | GK13: =IF(GJ13=0,0,IF(EDATE(GJ13,12/INDEX(Tabelas!$I$4:$I$8,MATCH(Table3[[#This Row],[Periodicidade]],Tabelas!$J$4:$J$8,0)))<=Table3[[#This Row],[Maturidade]],EDATE(GJ13,12/INDEX(Tabelas!$I$4:$I$8,MATCH(Table3[[#This Row],[Periodicidade]],Tabelas!$J$4:$J$8,0))),0)) -> 00:00:00 | GL13: =IF(GK13=0,0,IF(EDATE(GK13,12/INDEX(Tabelas!$I$4:$I$8,MATCH(Table3[[#This Row],[Periodicidade]],Tabelas!$J$4:$J$8,0)))<=Table3[[#This Row],[Maturidade]],EDATE(GK13,12/INDEX(Tabelas!$I$4:$I$8,MATCH(Table3[[#This Row],[Periodicidade]],Tabelas!$J$4:$J$8,0))),0)) -> 00:00:00 | GM13: =IF(GL13=0,0,IF(EDATE(GL13,12/INDEX(Tabelas!$I$4:$I$8,MATCH(Table3[[#This Row],[Periodicidade]],Tabelas!$J$4:$J$8,0)))<=Table3[[#This Row],[Maturidade]],EDATE(GL13,12/INDEX(Tabelas!$I$4:$I$8,MATCH(Table3[[#This Row],[Periodicidade]],Tabelas!$J$4:$J$8,0))),0)) -> 00:00:00 | GN13: =IF(GM13=0,0,IF(EDATE(GM13,12/INDEX(Tabelas!$I$4:$I$8,MATCH(Table3[[#This Row],[Periodicidade]],Tabelas!$J$4:$J$8,0)))<=Table3[[#This Row],[Maturidade]],EDATE(GM13,12/INDEX(Tabelas!$I$4:$I$8,MATCH(Table3[[#This Row],[Periodicidade]],Tabelas!$J$4:$J$8,0))),0)) -> 00:00:00 | GO13: =IF(GN13=0,0,IF(EDATE(GN13,12/INDEX(Tabelas!$I$4:$I$8,MATCH(Table3[[#This Row],[Periodicidade]],Tabelas!$J$4:$J$8,0)))<=Table3[[#This Row],[Maturidade]],EDATE(GN13,12/INDEX(Tabelas!$I$4:$I$8,MATCH(Table3[[#This Row],[Periodicidade]],Tabelas!$J$4:$J$8,0))),0)) -> 00:00:00 | GP13: =IF(GO13=0,0,IF(EDATE(GO13,12/INDEX(Tabelas!$I$4:$I$8,MATCH(Table3[[#This Row],[Periodicidade]],Tabelas!$J$4:$J$8,0)))<=Table3[[#This Row],[Maturidade]],EDATE(GO13,12/INDEX(Tabelas!$I$4:$I$8,MATCH(Table3[[#This Row],[Periodicidade]],Tabelas!$J$4:$J$8,0))),0)) -> 00:00:00 | GQ13: =IF(GP13=0,0,IF(EDATE(GP13,12/INDEX(Tabelas!$I$4:$I$8,MATCH(Table3[[#This Row],[Periodicidade]],Tabelas!$J$4:$J$8,0)))<=Table3[[#This Row],[Maturidade]],EDATE(GP13,12/INDEX(Tabelas!$I$4:$I$8,MATCH(Table3[[#This Row],[Periodicidade]],Tabelas!$J$4:$J$8,0))),0)) -> 00:00:00 | GR13: =IF(GQ13=0,0,IF(EDATE(GQ13,12/INDEX(Tabelas!$I$4:$I$8,MATCH(Table3[[#This Row],[Periodicidade]],Tabelas!$J$4:$J$8,0)))<=Table3[[#This Row],[Maturidade]],EDATE(GQ13,12/INDEX(Tabelas!$I$4:$I$8,MATCH(Table3[[#This Row],[Periodicidade]],Tabelas!$J$4:$J$8,0))),0)) -> 00:00:00 | GS13: =IF(GR13=0,0,IF(EDATE(GR13,12/INDEX(Tabelas!$I$4:$I$8,MATCH(Table3[[#This Row],[Periodicidade]],Tabelas!$J$4:$J$8,0)))<=Table3[[#This Row],[Maturidade]],EDATE(GR13,12/INDEX(Tabelas!$I$4:$I$8,MATCH(Table3[[#This Row],[Periodicidade]],Tabelas!$J$4:$J$8,0))),0)) -> 00:00:00 | GT13: =IF(GS13=0,0,IF(EDATE(GS13,12/INDEX(Tabelas!$I$4:$I$8,MATCH(Table3[[#This Row],[Periodicidade]],Tabelas!$J$4:$J$8,0)))<=Table3[[#This Row],[Maturidade]],EDATE(GS13,12/INDEX(Tabelas!$I$4:$I$8,MATCH(Table3[[#This Row],[Periodicidade]],Tabelas!$J$4:$J$8,0))),0)) -> 00:00:00 | GU13: =IF(GT13=0,0,IF(EDATE(GT13,12/INDEX(Tabelas!$I$4:$I$8,MATCH(Table3[[#This Row],[Periodicidade]],Tabelas!$J$4:$J$8,0)))<=Table3[[#This Row],[Maturidade]],EDATE(GT13,12/INDEX(Tabelas!$I$4:$I$8,MATCH(Table3[[#This Row],[Periodicidade]],Tabelas!$J$4:$J$8,0))),0)) -> 00:00:00 | GV13: =IF(GU13=0,0,IF(EDATE(GU13,12/INDEX(Tabelas!$I$4:$I$8,MATCH(Table3[[#This Row],[Periodicidade]],Tabelas!$J$4:$J$8,0)))<=Table3[[#This Row],[Maturidade]],EDATE(GU13,12/INDEX(Tabelas!$I$4:$I$8,MATCH(Table3[[#This Row],[Periodicidade]],Tabelas!$J$4:$J$8,0))),0)) -> 00:00:00 | GW13: =IF(GV13=0,0,IF(EDATE(GV13,12/INDEX(Tabelas!$I$4:$I$8,MATCH(Table3[[#This Row],[Periodicidade]],Tabelas!$J$4:$J$8,0)))<=Table3[[#This Row],[Maturidade]],EDATE(GV13,12/INDEX(Tabelas!$I$4:$I$8,MATCH(Table3[[#This Row],[Periodicidade]],Tabelas!$J$4:$J$8,0))),0)) -> 00:00:00 | GX13: =IF(GW13=0,0,IF(EDATE(GW13,12/INDEX(Tabelas!$I$4:$I$8,MATCH(Table3[[#This Row],[Periodicidade]],Tabelas!$J$4:$J$8,0)))<=Table3[[#This Row],[Maturidade]],EDATE(GW13,12/INDEX(Tabelas!$I$4:$I$8,MATCH(Table3[[#This Row],[Periodicidade]],Tabelas!$J$4:$J$8,0))),0)) -> 00:00:00 | GY13: =IF(GX13=0,0,IF(EDATE(GX13,12/INDEX(Tabelas!$I$4:$I$8,MATCH(Table3[[#This Row],[Periodicidade]],Tabelas!$J$4:$J$8,0)))<=Table3[[#This Row],[Maturidade]],EDATE(GX13,12/INDEX(Tabelas!$I$4:$I$8,MATCH(Table3[[#This Row],[Periodicidade]],Tabelas!$J$4:$J$8,0))),0)) -> 00:00:00 | GZ13: =IF(GY13=0,0,IF(EDATE(GY13,12/INDEX(Tabelas!$I$4:$I$8,MATCH(Table3[[#This Row],[Periodicidade]],Tabelas!$J$4:$J$8,0)))<=Table3[[#This Row],[Maturidade]],EDATE(GY13,12/INDEX(Tabelas!$I$4:$I$8,MATCH(Table3[[#This Row],[Periodicidade]],Tabelas!$J$4:$J$8,0))),0)) -> 00:00:00 | HA13: =IF(GZ13=0,0,IF(EDATE(GZ13,12/INDEX(Tabelas!$I$4:$I$8,MATCH(Table3[[#This Row],[Periodicidade]],Tabelas!$J$4:$J$8,0)))<=Table3[[#This Row],[Maturidade]],EDATE(GZ13,12/INDEX(Tabelas!$I$4:$I$8,MATCH(Table3[[#This Row],[Periodicidade]],Tabelas!$J$4:$J$8,0))),0)) -> 00:00:00 | HB13: =IF(HA13=0,0,IF(EDATE(HA13,12/INDEX(Tabelas!$I$4:$I$8,MATCH(Table3[[#This Row],[Periodicidade]],Tabelas!$J$4:$J$8,0)))<=Table3[[#This Row],[Maturidade]],EDATE(HA13,12/INDEX(Tabelas!$I$4:$I$8,MATCH(Table3[[#This Row],[Periodicidade]],Tabelas!$J$4:$J$8,0))),0)) -> 00:00:00 | HC13: =IF(HB13=0,0,IF(EDATE(HB13,12/INDEX(Tabelas!$I$4:$I$8,MATCH(Table3[[#This Row],[Periodicidade]],Tabelas!$J$4:$J$8,0)))<=Table3[[#This Row],[Maturidade]],EDATE(HB13,12/INDEX(Tabelas!$I$4:$I$8,MATCH(Table3[[#This Row],[Periodicidade]],Tabelas!$J$4:$J$8,0))),0)) -> 00:00:00 | HD13: =IF(HC13=0,0,IF(EDATE(HC13,12/INDEX(Tabelas!$I$4:$I$8,MATCH(Table3[[#This Row],[Periodicidade]],Tabelas!$J$4:$J$8,0)))<=Table3[[#This Row],[Maturidade]],EDATE(HC13,12/INDEX(Tabelas!$I$4:$I$8,MATCH(Table3[[#This Row],[Periodicidade]],Tabelas!$J$4:$J$8,0))),0)) -> 00:00:00 | HE13: =IF(HD13=0,0,IF(EDATE(HD13,12/INDEX(Tabelas!$I$4:$I$8,MATCH(Table3[[#This Row],[Periodicidade]],Tabelas!$J$4:$J$8,0)))<=Table3[[#This Row],[Maturidade]],EDATE(HD13,12/INDEX(Tabelas!$I$4:$I$8,MATCH(Table3[[#This Row],[Periodicidade]],Tabelas!$J$4:$J$8,0))),0)) -> 00:00:00 | HF13: =IF(HE13=0,0,IF(EDATE(HE13,12/INDEX(Tabelas!$I$4:$I$8,MATCH(Table3[[#This Row],[Periodicidade]],Tabelas!$J$4:$J$8,0)))<=Table3[[#This Row],[Maturidade]],EDATE(HE13,12/INDEX(Tabelas!$I$4:$I$8,MATCH(Table3[[#This Row],[Periodicidade]],Tabelas!$J$4:$J$8,0))),0)) -> 00:00:00 | HG13: =IF(HF13=0,0,IF(EDATE(HF13,12/INDEX(Tabelas!$I$4:$I$8,MATCH(Table3[[#This Row],[Periodicidade]],Tabelas!$J$4:$J$8,0)))<=Table3[[#This Row],[Maturidade]],EDATE(HF13,12/INDEX(Tabelas!$I$4:$I$8,MATCH(Table3[[#This Row],[Periodicidade]],Tabelas!$J$4:$J$8,0))),0)) -> 00:00:00 | HH13: =IF(HG13=0,0,IF(EDATE(HG13,12/INDEX(Tabelas!$I$4:$I$8,MATCH(Table3[[#This Row],[Periodicidade]],Tabelas!$J$4:$J$8,0)))<=Table3[[#This Row],[Maturidade]],EDATE(HG13,12/INDEX(Tabelas!$I$4:$I$8,MATCH(Table3[[#This Row],[Periodicidade]],Tabelas!$J$4:$J$8,0))),0)) -> 00:00:00 | HI13: =IF(HH13=0,0,IF(EDATE(HH13,12/INDEX(Tabelas!$I$4:$I$8,MATCH(Table3[[#This Row],[Periodicidade]],Tabelas!$J$4:$J$8,0)))<=Table3[[#This Row],[Maturidade]],EDATE(HH13,12/INDEX(Tabelas!$I$4:$I$8,MATCH(Table3[[#This Row],[Periodicidade]],Tabelas!$J$4:$J$8,0))),0)) -> 00:00:00 | HJ13: =IF(HI13=0,0,IF(EDATE(HI13,12/INDEX(Tabelas!$I$4:$I$8,MATCH(Table3[[#This Row],[Periodicidade]],Tabelas!$J$4:$J$8,0)))<=Table3[[#This Row],[Maturidade]],EDATE(HI13,12/INDEX(Tabelas!$I$4:$I$8,MATCH(Table3[[#This Row],[Periodicidade]],Tabelas!$J$4:$J$8,0))),0)) -> 00:00:00 | HK13: =IF(HJ13=0,0,IF(EDATE(HJ13,12/INDEX(Tabelas!$I$4:$I$8,MATCH(Table3[[#This Row],[Periodicidade]],Tabelas!$J$4:$J$8,0)))<=Table3[[#This Row],[Maturidade]],EDATE(HJ13,12/INDEX(Tabelas!$I$4:$I$8,MATCH(Table3[[#This Row],[Periodicidade]],Tabelas!$J$4:$J$8,0))),0)) -> 00:00:00

Sheet Simulador
K1: =+MATCH(IsinSelected,Table3[ISIN],0) -> 1 | L1: YTM Bruta | M1: =+TRANSPOSE(E15:F15) -> Periodicidade: | Q1: 0 | R1: 1 | S1: 2 | T1: 3
I2: =TODAY() -> 2026-04-09 | L2: =+IF(E10<>"","YTC Bruta","") ->  | M2: Semestral | Q2: Primário | R2: Prime Brokerage | S2: Prime Brokerage | T2: Colocação | X2: Prime Brokerage | Y2: =IFERROR(INDEX($Q$3:$U$3,SMALL(IF($Q$2:$U$2=Tipo_de_Corretagem,COLUMN($Q$3:$U$3)-MIN(COLUMN($Q$3:$U$3))+1,""),ROW(A1))),"") -> Sala de Mercados
M3: =+INDEX(Tabelas!I4:I13,MATCH(M2,Tabelas!J4:J13,0)) -> 2 | P3: Plataformas_Negociacao | Q3: Sala de Mercados | R3: Euronext Lisboa | S3: Sala de Mercados | T3: Sala de Mercados | X3: Primário | Y3: =IFERROR(INDEX($Q$3:$U$3,SMALL(IF($Q$2:$U$2=Tipo_de_Corretagem,COLUMN($Q$3:$U$3)-MIN(COLUMN($Q$3:$U$3))+1,""),ROW(A2))),"") -> 
X4: Colocação | Y4: =IFERROR(INDEX($Q$3:$T$3,SMALL(IF($Q$2:$T$2=Tipo_de_Corretagem,COLUMN($Q$3:$T$3)-MIN(COLUMN($Q$3:$T$3))+1,""),ROW(A3))),"") -> 
C5: =+IF(Simulador!$C$6="Government",7,8) -> 8
B6: Tipo de Obrigação | C6: Corporate | E6: Tipo de Colateral | F6: =+INDEX(Table3[Tipo de Colateral],tbl_row) -> Senior | H6: Issued | I6: 40000000 | N6: ATENÇÃO | O6: =OFFSET(Q6,0,SUMPRODUCT(--($Q$2:$U$2=Tipo_de_Corretagem),--($Q$3:$U$3=PlataformaNegociacao),$Q$1:$U$1))*0 -> 0 | P6: =+H12 -> Comissão Compra | Q6: 0.002 | R6: 0.0025 | S6: =+IF(ABS(F35)<25000,0.4%,IF(AND(ABS(F35)>=25000,ABS(F35)<100000),0.3%,0.2%)) -> 0.004 | T6: 0
B7: País | C7: PORTUGAL | E7: Tipo Maturidade | F7: =+INDEX(Table3[Maturity Type],tbl_row) -> AT MATURITY | H7: Modalidade | I7: Subscrição | N7: ATENÇÃO | O7: =OFFSET(Q7,0,SUMPRODUCT(--($Q$2:$U$2=Tipo_de_Corretagem),--($Q$3:$U$3=PlataformaNegociacao),$Q$1:$U$1))*0 -> 0 | P7: Mín. Com. Compra | Q7: 5 | R7: 30 | S7: 35 | T7: 0
B8: Bond | C8: Benfica 2026-2031 | E8: =IF(F8="","","Ranking Pagamento") ->  | F8: =+INDEX(Table3[PAYMENT_RANK],tbl_row) ->  | H8: Tipo Corretagem: | I8: Colocação | N8: ATENÇÃO | O8: =OFFSET(Q8,0,SUMPRODUCT(--($Q$2:$U$2=Tipo_de_Corretagem),--($Q$3:$U$3=PlataformaNegociacao),$Q$1:$U$1)) -> 0.02 | P8: Comissão Juros | Q8: 0.02 | R8: 0.02 | S8: 0.02 | T8: 0.02 | X8: Subscrição
E9: =IF(F9=0,"","Rating") ->  | F9: =+INDEX(Table3[Rating],tbl_row) -> 0 | H9: IRS | I9: Continente | N9: ATENÇÃO | O9: 5 | P9: Mín. Com. Juros | Q9: 5 | R9: 5 | S9: 5 | T9: 5 | X9: Troca PTSLBNOM0007
E10: =IF(G10="Y","Call Date",IF(F7="CONV/PUT","Put Date","")) ->  | F10: =+IF(E10="","",INDEX(Table3[Call/Put Date],tbl_row)*1) ->  | G10: =+INDEX(Table3[CALLABLE],tbl_row) -> FALSE | H10: IRS (taxa) | I10: =INDEX(Q18:Q20,MATCH(PlataformaNegociacao,P18:P20,0)) -> 0.28 | N10: ATENÇÃO | O10: 0.002 | P10: Comissão Reemb. | Q10: 0.002 | R10: 0.002 | S10: 0.002 | T10: 0.002
B11: Emitente | C11: =+INDEX(Table3[ISSUER],tbl_row) -> Benfica 2026-2031 | E11: Data da Emissão: | F11: =+INDEX(Table3[ISSUE_DT],tbl_row)*1 -> 2026-04-29 | G11: =IF(INDEX(Table3[Make_Whole_call],tbl_row)="Y",IF(LEFT(INDEX(Table3[MAKE_WHOLE_CALL_SPREAD],tbl_row),1)="#","NO SPREAD","Y"),"N") -> N | H11: Imposto Selo | I11: 0.04 | N11: ATENÇÃO | O11: 5 | P11: Mín. Com. Reemb. | Q11: 5 | R11: 5 | S11: 5 | T11: 5
B12: Moeda | C12: =+INDEX(Table3[Moeda],tbl_row) -> EUR | E12: Data do Últ. Cupão: | F12: =+INDEX(Table3[PREV_CPN_DT],tbl_row)*1 -> 2026-04-29 | H12: Comissão Compra | I12: =+Comissão_Compra -> 0
B13: Cupão | C13: =+INDEX(Table3[Cupão (%)],tbl_row)/100 -> 0.0465 | E13: Data do Próx. Cupão: | F13: =+INDEX(Table3[NXT_CPN_DT],tbl_row)*1 -> 2026-10-29 | H13: Mín. Com. Compra | I13: =+Mín._Com._Compra -> 0
B14: Maturidade | C14: =+INDEX(Table3[Maturidade],tbl_row)*1 -> 2031-04-29 | H14: Comissão Juros | I14: =+Comissão_Juros -> 0.02
B15: ISIN: | C15: =INDEX(Table3[ISIN],MATCH(BondSelected,Table3[Descrição],0)) -> PTSLBAOM0028 | E15: Periodicidade: | F15: =INDEX(Table3[Periodicidade],tbl_row) -> Semestral | H15: Mín. Com. Juros | I15: =+Mín._Com._Juros -> 5
B16: ="Inv. Mín / Inc. Mín (" & C12&")" -> Inv. Mín / Inc. Mín (EUR) | C16: =TEXT(INDEX(Table3[Minimo Invest.],tbl_row),"# ##0.##")&" / "&TEXT(INDEX(Table3[MIN_INCREMENT],tbl_row),"# ##0.##") -> 2 5.00 / 0.5 | E16: Base de Cálculo: | F16: =+INDEX(Table3[DAY_CNT_DES],tbl_row) -> 30/360 | H16: Comissão Reemb. | I16: =+Comissão_Reemb. -> 0.002
H17: Mín. Com. Reemb. | I17: =+Mín._Com._Reemb. -> 5 | P17: IRS
B18: Preço (ask) | C18: 5 | E18: =+IF(G10="Y","Call Price","") ->  | F18: =IF(G10="Y",INDEX(Table3[Call Price],MATCH(IsinSelected,Table3[ISIN],0))/100,) -> 00:00:00 | H18: IVA | I18: 0.23 | P18: Continente | Q18: 0.28
E19: =IF(F19<>"","Make Whole Call","") ->  | F19: =+IF(G11="Y","@"&INDEX(Table3[MAKE_WHOLE_CALL_SPREAD],tbl_row)&"bp; ","")&IF(G11="NO SPREAD","até "&TEXT(INDEX(Table3[MAKE_WHOLE_TERMINATION_DATE],tbl_row)*1,"dd-mmm-aa"),"") ->  | P19: Madeira | Q19: =Q18*0.7 -> 0.196
B20: ="Montante Nominal (" & C12&")" -> Montante Nominal (EUR) | C20: 10000 | E20: =L1 -> YTM Bruta | F20: =+IF(E20=L1,"YTM Liquida","YTC Liquida") -> YTM Liquida | P20: Açores | Q20: =+Q18*0.7 -> 0.196 | AI20: =AP1 -> 0 | AJ20: =+IF(AI20=AP1,"YTM Liquida","YTC Liquida") -> YTM Liquida
E21: =XIRR(H28:H201,$B$28:$B$201,$C$13) -> 0.04701182601 | F21: =+XIRR(I28:I201,$B$28:$B$201,$C$13) -> 0.03202590904 | AI21: =+XIRR(AL28:AL201,$B$28:$B$201,$C$13) ->  | AJ21: =+XIRR(AM28:AM201,$B$28:$B$201,$C$13) -> 
B22: Data da Operação | C22: =TODAY() -> 2026-04-09 | E22: TRE = Taxa de rentabilidade efectiva anual
B23: Data de Liquidação | C23: =INDEX(Table3[SETTLE_DT],tbl_row)*1 -> 2026-04-29 | E23: =+IF(E24=0,"","Notas:") -> 
E24: =IF(LEFT(INDEX(Table3[DES_NOTES],tbl_row),2)="#N","",INDEX(Table3[DES_NOTES],tbl_row)) -> 0
B27: Data | C27: Movimento | D27: Principal/Juros | E27: =+IF(I7="Subscrição","Juros corridos","Prémio troca") -> Juros corridos | F27: Comissões | G27: IRS | H27: CF Bruto | I27: CF Liquido
B28: =+C23 -> 2026-04-29 | C28: Investimento Inicial | D28: =-IF(F15="Discount",1-((BondPrice/Table3[Valor Nominal])/360*(C14-DataValor)),BondPrice/Table3[Valor Nominal])*Montante_Nominal__EUR -> -10000 | E28: =IF(I7="Subscrição",-INDEX(Inputs!$BA$13:$BA$270,MATCH(IsinSelected,Inputs!$Y$13:$Y$270,0))*C20/100,IF(I7= "Troca PTSLBNOM0007",0.14375*Montante_Nominal__EUR/BondPrice, 0.14375*Montante_Nominal__EUR/BondPrice)) -> 0 | F28: =MIN(-Mín._Com._Compra,D28*Comissão_Compra)*(1+Imposto_Selo) -> 0 | G28: =ROUND(IF(B29=0,0,IF(D28<0,-IRS*E28,-IRS*D28)),2) -> 0 | H28: =IF(B27=0,0,D28+E28) -> -10000 | I28: =IF(H28=0,0,H28+F28+G28) -> -10000
A29: =+OFFSET(Inputs!$CB$12,tbl_row,ROWS($A$29:A29)) -> 2026-10-29 | B29: =IF(OR(B28=0,B28=B27),0,IF(AND(A29<>0,IF(YTM_YTC<>$L$1,A29<=$F$10,TRUE)),A29,IF(YTM_YTC<>$L$1,B28,IF(B28<INDEX(Table3[LAST_CALLABLE_DATE],tbl_row),EDATE(B28,$M$3),B28)))) -> 2026-10-29 | C29: =IF(OR(AND(B29<>0,B29=B28),AND(B29<>0,B30=0)),"Amortização",IF(B30=0,0,"Cupão"&ROW()-ROW($C$29)+1-COUNTIF($C$28:C28,"Amortização"))) -> Cupão1 | D29: =IF(AND(C29=0,C30=0),0,IF(B30=0,$C$20*IF(YTM_YTC="YTC Bruta",$F$18,1),$C$20*$C$13*IF(VLOOKUP($F$16,Convencoes,2,0)=1,1/VLOOKUP($F$15,Tabelas!$J$4:$K$8,2,0),YEARFRAC(B28,B29,VLOOKUP($F$16,Convencoes,2,0))))) -> 232.5 | F29: =-ROUND(IF(C29="Amortização",MAX(Mín._Com._Reemb.,D29*Comissão_Reemb.)*(1+IVA),IF(D29=0,0,MAX(Mín._Com._Juros,(D29+G29)*Comissão_Juros)*(1+IVA))),2) -> -6.15 | G29: -65.1 | H29: =IF(B28=0,0,D29+E29) -> 232.5 | I29: =IF(H29=0,0,H29+F29+G29) -> 161.25
A30: =+OFFSET(Inputs!$CB$12,tbl_row,ROWS($A$29:A30)) -> 2027-04-29 | B30: =IF(OR(B29=0,B29=B28),0,IF(AND(A30<>0,IF(YTM_YTC<>$L$1,A30<=$F$10,TRUE)),A30,IF(YTM_YTC<>$L$1,B29,IF(B29<INDEX(Table3[LAST_CALLABLE_DATE],tbl_row),EDATE(B29,$M$3),B29)))) -> 2027-04-29 | C30: =IF(OR(AND(B30<>0,B30=B29),AND(B30<>0,B31=0)),"Amortização",IF(B31=0,0,"Cupão"&ROW()-ROW($C$29)+1-COUNTIF($C$28:C29,"Amortização"))) -> Cupão2 | D30: =IF(AND(C30=0,C31=0),0,IF(B31=0,$C$20*IF(YTM_YTC="YTC Bruta",$F$18,1),$C$20*$C$13*IF(VLOOKUP($F$16,Convencoes,2,0)=1,1/VLOOKUP($F$15,Tabelas!$J$4:$K$8,2,0),YEARFRAC(B29,B30,VLOOKUP($F$16,Convencoes,2,0))))) -> 232.5 | F30: -6.15 | G30: -65.1 | H30: 232.5 | I30: 161.25
A31: =+OFFSET(Inputs!$CB$12,tbl_row,ROWS($A$29:A31)) -> 2027-10-29 | B31: =IF(OR(B30=0,B30=B29),0,IF(AND(A31<>0,IF(YTM_YTC<>$L$1,A31<=$F$10,TRUE)),A31,IF(YTM_YTC<>$L$1,B30,IF(B30<INDEX(Table3[LAST_CALLABLE_DATE],tbl_row),EDATE(B30,$M$3),B30)))) -> 2027-10-29 | C31: =IF(OR(AND(B31<>0,B31=B30),AND(B31<>0,B32=0)),"Amortização",IF(B32=0,0,"Cupão"&ROW()-ROW($C$29)+1-COUNTIF($C$28:C30,"Amortização"))) -> Cupão3 | D31: =IF(AND(C31=0,C32=0),0,IF(B32=0,$C$20*IF(YTM_YTC="YTC Bruta",$F$18,1),$C$20*$C$13*IF(VLOOKUP($F$16,Convencoes,2,0)=1,1/VLOOKUP($F$15,Tabelas!$J$4:$K$8,2,0),YEARFRAC(B30,B31,VLOOKUP($F$16,Convencoes,2,0))))) -> 232.5 | F31: =-ROUND(IF(C31="Amortização",MAX(Mín._Com._Reemb.,D31*Comissão_Reemb.)*(1+IVA),IF(D31=0,0,MAX(Mín._Com._Juros,(D31+G31)*Comissão_Juros)*(1+IVA))),2) -> -6.15 | G31: =ROUND(IF(B32=0,0,IF(D31<0,-IRS*E31,-IRS*D31)),2) -> -65.1 | H31: =IF(B30=0,0,D31+E31) -> 232.5 | I31: =IF(H31=0,0,H31+F31+G31) -> 161.25
A32: =+OFFSET(Inputs!$CB$12,tbl_row,ROWS($A$29:A32)) -> 2028-04-29 | B32: =IF(OR(B31=0,B31=B30),0,IF(AND(A32<>0,IF(YTM_YTC<>$L$1,A32<=$F$10,TRUE)),A32,IF(YTM_YTC<>$L$1,B31,IF(B31<INDEX(Table3[LAST_CALLABLE_DATE],tbl_row),EDATE(B31,$M$3),B31)))) -> 2028-04-29 | C32: =IF(OR(AND(B32<>0,B32=B31),AND(B32<>0,B33=0)),"Amortização",IF(B33=0,0,"Cupão"&ROW()-ROW($C$29)+1-COUNTIF($C$28:C31,"Amortização"))) -> Cupão4 | D32: =IF(AND(C32=0,C33=0),0,IF(B33=0,$C$20*IF(YTM_YTC="YTC Bruta",$F$18,1),$C$20*$C$13*IF(VLOOKUP($F$16,Convencoes,2,0)=1,1/VLOOKUP($F$15,Tabelas!$J$4:$K$8,2,0),YEARFRAC(B31,B32,VLOOKUP($F$16,Convencoes,2,0))))) -> 232.5 | F32: -6.15 | G32: -65.1 | H32: 232.5 | I32: 161.25
A33: =+OFFSET(Inputs!$CB$12,tbl_row,ROWS($A$29:A33)) -> 2028-10-29 | B33: =IF(OR(B32=0,B32=B31),0,IF(AND(A33<>0,IF(YTM_YTC<>$L$1,A33<=$F$10,TRUE)),A33,IF(YTM_YTC<>$L$1,B32,IF(B32<INDEX(Table3[LAST_CALLABLE_DATE],tbl_row),EDATE(B32,$M$3),B32)))) -> 2028-10-29 | C33: =IF(OR(AND(B33<>0,B33=B32),AND(B33<>0,B34=0)),"Amortização",IF(B34=0,0,"Cupão"&ROW()-ROW($C$29)+1-COUNTIF($C$28:C32,"Amortização"))) -> Cupão5 | D33: =IF(AND(C33=0,C34=0),0,IF(B34=0,$C$20*IF(YTM_YTC="YTC Bruta",$F$18,1),$C$20*$C$13*IF(VLOOKUP($F$16,Convencoes,2,0)=1,1/VLOOKUP($F$15,Tabelas!$J$4:$K$8,2,0),YEARFRAC(B32,B33,VLOOKUP($F$16,Convencoes,2,0))))) -> 232.5 | F33: -6.15 | G33: -65.1 | H33: 232.5 | I33: 161.25
A34: =+OFFSET(Inputs!$CB$12,tbl_row,ROWS($A$29:A34)) -> 2029-04-29 | B34: =IF(OR(B33=0,B33=B32),0,IF(AND(A34<>0,IF(YTM_YTC<>$L$1,A34<=$F$10,TRUE)),A34,IF(YTM_YTC<>$L$1,B33,IF(B33<INDEX(Table3[LAST_CALLABLE_DATE],tbl_row),EDATE(B33,$M$3),B33)))) -> 2029-04-29 | C34: =IF(OR(AND(B34<>0,B34=B33),AND(B34<>0,B35=0)),"Amortização",IF(B35=0,0,"Cupão"&ROW()-ROW($C$29)+1-COUNTIF($C$28:C33,"Amortização"))) -> Cupão6 | D34: =IF(AND(C34=0,C35=0),0,IF(B35=0,$C$20*IF(YTM_YTC="YTC Bruta",$F$18,1),$C$20*$C$13*IF(VLOOKUP($F$16,Convencoes,2,0)=1,1/VLOOKUP($F$15,Tabelas!$J$4:$K$8,2,0),YEARFRAC(B33,B34,VLOOKUP($F$16,Convencoes,2,0))))) -> 232.5 | F34: -6.15 | G34: -65.1 | H34: 232.5 | I34: 161.25
A35: =+OFFSET(Inputs!$CB$12,tbl_row,ROWS($A$29:A35)) -> 2029-10-29 | B35: =IF(OR(B34=0,B34=B33),0,IF(AND(A35<>0,IF(YTM_YTC<>$L$1,A35<=$F$10,TRUE)),A35,IF(YTM_YTC<>$L$1,B34,IF(B34<INDEX(Table3[LAST_CALLABLE_DATE],tbl_row),EDATE(B34,$M$3),B34)))) -> 2029-10-29 | C35: =IF(OR(AND(B35<>0,B35=B34),AND(B35<>0,B36=0)),"Amortização",IF(B36=0,0,"Cupão"&ROW()-ROW($C$29)+1-COUNTIF($C$28:C34,"Amortização"))) -> Cupão7 | D35: =IF(AND(C35=0,C36=0),0,IF(B36=0,$C$20*IF(YTM_YTC="YTC Bruta",$F$18,1),$C$20*$C$13*IF(VLOOKUP($F$16,Convencoes,2,0)=1,1/VLOOKUP($F$15,Tabelas!$J$4:$K$8,2,0),YEARFRAC(B34,B35,VLOOKUP($F$16,Convencoes,2,0))))) -> 232.5 | F35: -6.15 | G35: -65.1 | H35: 232.5 | I35: 161.25
A36: =+OFFSET(Inputs!$CB$12,tbl_row,ROWS($A$29:A36)) -> 2030-04-29 | B36: =IF(OR(B35=0,B35=B34),0,IF(AND(A36<>0,IF(YTM_YTC<>$L$1,A36<=$F$10,TRUE)),A36,IF(YTM_YTC<>$L$1,B35,IF(B35<INDEX(Table3[LAST_CALLABLE_DATE],tbl_row),EDATE(B35,$M$3),B35)))) -> 2030-04-29 | C36: =IF(OR(AND(B36<>0,B36=B35),AND(B36<>0,B37=0)),"Amortização",IF(B37=0,0,"Cupão"&ROW()-ROW($C$29)+1-COUNTIF($C$28:C35,"Amortização"))) -> Cupão8 | D36: =IF(AND(C36=0,C37=0),0,IF(B37=0,$C$20*IF(YTM_YTC="YTC Bruta",$F$18,1),$C$20*$C$13*IF(VLOOKUP($F$16,Convencoes,2,0)=1,1/VLOOKUP($F$15,Tabelas!$J$4:$K$8,2,0),YEARFRAC(B35,B36,VLOOKUP($F$16,Convencoes,2,0))))) -> 232.5 | F36: -6.15 | G36: -65.1 | H36: 232.5 | I36: 161.25
A37: =+OFFSET(Inputs!$CB$12,tbl_row,ROWS($A$29:A37)) -> 2030-10-29 | B37: =IF(OR(B36=0,B36=B35),0,IF(AND(A37<>0,IF(YTM_YTC<>$L$1,A37<=$F$10,TRUE)),A37,IF(YTM_YTC<>$L$1,B36,IF(B36<INDEX(Table3[LAST_CALLABLE_DATE],tbl_row),EDATE(B36,$M$3),B36)))) -> 2030-10-29 | C37: =IF(OR(AND(B37<>0,B37=B36),AND(B37<>0,B38=0)),"Amortização",IF(B38=0,0,"Cupão"&ROW()-ROW($C$29)+1-COUNTIF($C$28:C36,"Amortização"))) -> Cupão9 | D37: =IF(AND(C37=0,C38=0),0,IF(B38=0,$C$20*IF(YTM_YTC="YTC Bruta",$F$18,1),$C$20*$C$13*IF(VLOOKUP($F$16,Convencoes,2,0)=1,1/VLOOKUP($F$15,Tabelas!$J$4:$K$8,2,0),YEARFRAC(B36,B37,VLOOKUP($F$16,Convencoes,2,0))))) -> 232.5 | F37: -6.15 | G37: -65.1 | H37: 232.5 | I37: 161.25
A38: =+OFFSET(Inputs!$CB$12,tbl_row,ROWS($A$29:A38)) -> 2031-04-29 | B38: =IF(OR(B37=0,B37=B36),0,IF(AND(A38<>0,IF(YTM_YTC<>$L$1,A38<=$F$10,TRUE)),A38,IF(YTM_YTC<>$L$1,B37,IF(B37<INDEX(Table3[LAST_CALLABLE_DATE],tbl_row),EDATE(B37,$M$3),B37)))) -> 2031-04-29 | C38: =IF(OR(AND(B38<>0,B38=B37),AND(B38<>0,B39=0)),"Amortização",IF(B39=0,0,"Cupão"&ROW()-ROW($C$29)+1-COUNTIF($C$28:C37,"Amortização"))) -> Cupão10 | D38: =IF(AND(C38=0,C39=0),0,IF(B39=0,$C$20*IF(YTM_YTC="YTC Bruta",$F$18,1),$C$20*$C$13*IF(VLOOKUP($F$16,Convencoes,2,0)=1,1/VLOOKUP($F$15,Tabelas!$J$4:$K$8,2,0),YEARFRAC(B37,B38,VLOOKUP($F$16,Convencoes,2,0))))) -> 232.5 | F38: -6.15 | G38: -65.1 | H38: 232.5 | I38: 161.25
A39: =+OFFSET(Inputs!$CB$12,tbl_row,ROWS($A$29:A39)) -> 00:00:00 | B39: =IF(OR(B38=0,B38=B37),0,IF(AND(A39<>0,IF(YTM_YTC<>$L$1,A39<=$F$10,TRUE)),A39,IF(YTM_YTC<>$L$1,B38,IF(B38<INDEX(Table3[LAST_CALLABLE_DATE],tbl_row),EDATE(B38,$M$3),B38)))) -> 2031-04-29 | C39: =IF(OR(AND(B39<>0,B39=B38),AND(B39<>0,B40=0)),"Amortização",IF(B40=0,0,"Cupão"&ROW()-ROW($C$29)+1-COUNTIF($C$28:C38,"Amortização"))) -> Amortização | D39: =IF(AND(C39=0,C40=0),0,IF(B40=0,$C$20*IF(YTM_YTC="YTC Bruta",$F$18,1),$C$20*$C$13*IF(VLOOKUP($F$16,Convencoes,2,0)=1,1/VLOOKUP($F$15,Tabelas!$J$4:$K$8,2,0),YEARFRAC(B38,B39,VLOOKUP($F$16,Convencoes,2,0))))) -> 10000 | F39: -24.6 | G39: 0 | H39: 10000 | I39: 9975.4
A40: =+OFFSET(Inputs!$CB$12,tbl_row,ROWS($A$29:A40)) -> 00:00:00 | B40: =IF(OR(B39=0,B39=B38),0,IF(AND(A40<>0,IF(YTM_YTC<>$L$1,A40<=$F$10,TRUE)),A40,IF(YTM_YTC<>$L$1,B39,IF(B39<INDEX(Table3[LAST_CALLABLE_DATE],tbl_row),EDATE(B39,$M$3),B39)))) -> 00:00:00 | C40: =IF(OR(AND(B40<>0,B40=B39),AND(B40<>0,B41=0)),"Amortização",IF(B41=0,0,"Cupão"&ROW()-ROW($C$29)+1-COUNTIF($C$28:C39,"Amortização"))) -> 0 | D40: =IF(AND(C40=0,C41=0),0,IF(B41=0,$C$20*IF(YTM_YTC="YTC Bruta",$F$18,1),$C$20*$C$13*IF(VLOOKUP($F$16,Convencoes,2,0)=1,1/VLOOKUP($F$15,Tabelas!$J$4:$K$8,2,0),YEARFRAC(B39,B40,VLOOKUP($F$16,Convencoes,2,0))))) -> 0 | F40: 0 | G40: 0 | H40: 0 | I40: 0
A41: =+OFFSET(Inputs!$CB$12,tbl_row,ROWS($A$29:A41)) -> 00:00:00 | B41: =IF(OR(B40=0,B40=B39),0,IF(AND(A41<>0,IF(YTM_YTC<>$L$1,A41<=$F$10,TRUE)),A41,IF(YTM_YTC<>$L$1,B40,IF(B40<INDEX(Table3[LAST_CALLABLE_DATE],tbl_row),EDATE(B40,$M$3),B40)))) -> 00:00:00 | C41: =IF(OR(AND(B41<>0,B41=B40),AND(B41<>0,B42=0)),"Amortização",IF(B42=0,0,"Cupão"&ROW()-ROW($C$29)+1-COUNTIF($C$28:C40,"Amortização"))) -> 0 | D41: =IF(AND(C41=0,C42=0),0,IF(B42=0,$C$20*IF(YTM_YTC="YTC Bruta",$F$18,1),$C$20*$C$13*IF(VLOOKUP($F$16,Convencoes,2,0)=1,1/VLOOKUP($F$15,Tabelas!$J$4:$K$8,2,0),YEARFRAC(B40,B41,VLOOKUP($F$16,Convencoes,2,0))))) -> 0 | F41: 0 | G41: 0 | H41: 0 | I41: 0
A42: =+OFFSET(Inputs!$CB$12,tbl_row,ROWS($A$29:A42)) -> 00:00:00 | B42: =IF(OR(B41=0,B41=B40),0,IF(AND(A42<>0,IF(YTM_YTC<>$L$1,A42<=$F$10,TRUE)),A42,IF(YTM_YTC<>$L$1,B41,IF(B41<INDEX(Table3[LAST_CALLABLE_DATE],tbl_row),EDATE(B41,$M$3),B41)))) -> 00:00:00 | C42: =IF(OR(AND(B42<>0,B42=B41),AND(B42<>0,B43=0)),"Amortização",IF(B43=0,0,"Cupão"&ROW()-ROW($C$29)+1-COUNTIF($C$28:C41,"Amortização"))) -> 0 | D42: =IF(AND(C42=0,C43=0),0,IF(B43=0,$C$20*IF(YTM_YTC="YTC Bruta",$F$18,1),$C$20*$C$13*IF(VLOOKUP($F$16,Convencoes,2,0)=1,1/VLOOKUP($F$15,Tabelas!$J$4:$K$8,2,0),YEARFRAC(B41,B42,VLOOKUP($F$16,Convencoes,2,0))))) -> 0 | F42: 0 | G42: 0 | H42: 0 | I42: 0
A43: =+OFFSET(Inputs!$CB$12,tbl_row,ROWS($A$29:A43)) -> 00:00:00 | B43: =IF(OR(B42=0,B42=B41),0,IF(AND(A43<>0,IF(YTM_YTC<>$L$1,A43<=$F$10,TRUE)),A43,IF(YTM_YTC<>$L$1,B42,IF(B42<INDEX(Table3[LAST_CALLABLE_DATE],tbl_row),EDATE(B42,$M$3),B42)))) -> 00:00:00 | C43: =IF(OR(AND(B43<>0,B43=B42),AND(B43<>0,B44=0)),"Amortização",IF(B44=0,0,"Cupão"&ROW()-ROW($C$29)+1-COUNTIF($C$28:C42,"Amortização"))) -> 0 | D43: =IF(AND(C43=0,C44=0),0,IF(B44=0,$C$20*IF(YTM_YTC="YTC Bruta",$F$18,1),$C$20*$C$13*IF(VLOOKUP($F$16,Convencoes,2,0)=1,1/VLOOKUP($F$15,Tabelas!$J$4:$K$8,2,0),YEARFRAC(B42,B43,VLOOKUP($F$16,Convencoes,2,0))))) -> 0 | F43: 0 | G43: 0 | H43: 0 | I43: 0
A44: =+OFFSET(Inputs!$CB$12,tbl_row,ROWS($A$29:A44)) -> 00:00:00 | B44: =IF(OR(B43=0,B43=B42),0,IF(AND(A44<>0,IF(YTM_YTC<>$L$1,A44<=$F$10,TRUE)),A44,IF(YTM_YTC<>$L$1,B43,IF(B43<INDEX(Table3[LAST_CALLABLE_DATE],tbl_row),EDATE(B43,$M$3),B43)))) -> 00:00:00 | C44: =IF(OR(AND(B44<>0,B44=B43),AND(B44<>0,B45=0)),"Amortização",IF(B45=0,0,"Cupão"&ROW()-ROW($C$29)+1-COUNTIF($C$28:C43,"Amortização"))) -> 0 | D44: =IF(AND(C44=0,C45=0),0,IF(B45=0,$C$20*IF(YTM_YTC="YTC Bruta",$F$18,1),$C$20*$C$13*IF(VLOOKUP($F$16,Convencoes,2,0)=1,1/VLOOKUP($F$15,Tabelas!$J$4:$K$8,2,0),YEARFRAC(B43,B44,VLOOKUP($F$16,Convencoes,2,0))))) -> 0 | F44: 0 | G44: 0 | H44: 0 | I44: 0
A45: =+OFFSET(Inputs!$CB$12,tbl_row,ROWS($A$29:A45)) -> 00:00:00 | B45: =IF(OR(B44=0,B44=B43),0,IF(AND(A45<>0,IF(YTM_YTC<>$L$1,A45<=$F$10,TRUE)),A45,IF(YTM_YTC<>$L$1,B44,IF(B44<INDEX(Table3[LAST_CALLABLE_DATE],tbl_row),EDATE(B44,$M$3),B44)))) -> 00:00:00 | C45: =IF(OR(AND(B45<>0,B45=B44),AND(B45<>0,B46=0)),"Amortização",IF(B46=0,0,"Cupão"&ROW()-ROW($C$29)+1-COUNTIF($C$28:C44,"Amortização"))) -> 0 | D45: =IF(AND(C45=0,C46=0),0,IF(B46=0,$C$20*IF(YTM_YTC="YTC Bruta",$F$18,1),$C$20*$C$13*IF(VLOOKUP($F$16,Convencoes,2,0)=1,1/VLOOKUP($F$15,Tabelas!$J$4:$K$8,2,0),YEARFRAC(B44,B45,VLOOKUP($F$16,Convencoes,2,0))))) -> 0 | F45: 0 | G45: 0 | H45: 0 | I45: 0
A46: =+OFFSET(Inputs!$CB$12,tbl_row,ROWS($A$29:A46)) -> 00:00:00 | B46: =IF(OR(B45=0,B45=B44),0,IF(AND(A46<>0,IF(YTM_YTC<>$L$1,A46<=$F$10,TRUE)),A46,IF(YTM_YTC<>$L$1,B45,IF(B45<INDEX(Table3[LAST_CALLABLE_DATE],tbl_row),EDATE(B45,$M$3),B45)))) -> 00:00:00 | C46: =IF(OR(AND(B46<>0,B46=B45),AND(B46<>0,B47=0)),"Amortização",IF(B47=0,0,"Cupão"&ROW()-ROW($C$29)+1-COUNTIF($C$28:C45,"Amortização"))) -> 0 | D46: =IF(AND(C46=0,C47=0),0,IF(B47=0,$C$20*IF(YTM_YTC="YTC Bruta",$F$18,1),$C$20*$C$13*IF(VLOOKUP($F$16,Convencoes,2,0)=1,1/VLOOKUP($F$15,Tabelas!$J$4:$K$8,2,0),YEARFRAC(B45,B46,VLOOKUP($F$16,Convencoes,2,0))))) -> 0 | F46: 0 | G46: 0 | H46: 0 | I46: 0
A47: =+OFFSET(Inputs!$CB$12,tbl_row,ROWS($A$29:A47)) -> 00:00:00 | B47: =IF(OR(B46=0,B46=B45),0,IF(AND(A47<>0,IF(YTM_YTC<>$L$1,A47<=$F$10,TRUE)),A47,IF(YTM_YTC<>$L$1,B46,IF(B46<INDEX(Table3[LAST_CALLABLE_DATE],tbl_row),EDATE(B46,$M$3),B46)))) -> 00:00:00 | C47: =IF(OR(AND(B47<>0,B47=B46),AND(B47<>0,B48=0)),"Amortização",IF(B48=0,0,"Cupão"&ROW()-ROW($C$29)+1-COUNTIF($C$28:C46,"Amortização"))) -> 0 | D47: =IF(AND(C47=0,C48=0),0,IF(B48=0,$C$20*IF(YTM_YTC="YTC Bruta",$F$18,1),$C$20*$C$13*IF(VLOOKUP($F$16,Convencoes,2,0)=1,1/VLOOKUP($F$15,Tabelas!$J$4:$K$8,2,0),YEARFRAC(B46,B47,VLOOKUP($F$16,Convencoes,2,0))))) -> 0 | F47: 0 | G47: 0 | H47: 0 | I47: 0
A48: =+OFFSET(Inputs!$CB$12,tbl_row,ROWS($A$29:A48)) -> 00:00:00 | B48: =IF(OR(B47=0,B47=B46),0,IF(AND(A48<>0,IF(YTM_YTC<>$L$1,A48<=$F$10,TRUE)),A48,IF(YTM_YTC<>$L$1,B47,IF(B47<INDEX(Table3[LAST_CALLABLE_DATE],tbl_row),EDATE(B47,$M$3),B47)))) -> 00:00:00 | C48: =IF(OR(AND(B48<>0,B48=B47),AND(B48<>0,B49=0)),"Amortização",IF(B49=0,0,"Cupão"&ROW()-ROW($C$29)+1-COUNTIF($C$28:C47,"Amortização"))) -> 0 | D48: =IF(AND(C48=0,C49=0),0,IF(B49=0,$C$20*IF(YTM_YTC="YTC Bruta",$F$18,1),$C$20*$C$13*IF(VLOOKUP($F$16,Convencoes,2,0)=1,1/VLOOKUP($F$15,Tabelas!$J$4:$K$8,2,0),YEARFRAC(B47,B48,VLOOKUP($F$16,Convencoes,2,0))))) -> 0 | F48: 0 | G48: 0 | H48: 0 | I48: 0
A49: =+OFFSET(Inputs!$CB$12,tbl_row,ROWS($A$29:A49)) -> 00:00:00 | B49: =IF(OR(B48=0,B48=B47),0,IF(AND(A49<>0,IF(YTM_YTC<>$L$1,A49<=$F$10,TRUE)),A49,IF(YTM_YTC<>$L$1,B48,IF(B48<INDEX(Table3[LAST_CALLABLE_DATE],tbl_row),EDATE(B48,$M$3),B48)))) -> 00:00:00 | C49: =IF(OR(AND(B49<>0,B49=B48),AND(B49<>0,B50=0)),"Amortização",IF(B50=0,0,"Cupão"&ROW()-ROW($C$29)+1-COUNTIF($C$28:C48,"Amortização"))) -> 0 | D49: =IF(AND(C49=0,C50=0),0,IF(B50=0,$C$20*IF(YTM_YTC="YTC Bruta",$F$18,1),$C$20*$C$13*IF(VLOOKUP($F$16,Convencoes,2,0)=1,1/VLOOKUP($F$15,Tabelas!$J$4:$K$8,2,0),YEARFRAC(B48,B49,VLOOKUP($F$16,Convencoes,2,0))))) -> 0 | F49: 0 | G49: 0 | H49: 0 | I49: 0
A50: =+OFFSET(Inputs!$CB$12,tbl_row,ROWS($A$29:A50)) -> 00:00:00 | B50: =IF(OR(B49=0,B49=B48),0,IF(AND(A50<>0,IF(YTM_YTC<>$L$1,A50<=$F$10,TRUE)),A50,IF(YTM_YTC<>$L$1,B49,IF(B49<INDEX(Table3[LAST_CALLABLE_DATE],tbl_row),EDATE(B49,$M$3),B49)))) -> 00:00:00 | C50: =IF(OR(AND(B50<>0,B50=B49),AND(B50<>0,B51=0)),"Amortização",IF(B51=0,0,"Cupão"&ROW()-ROW($C$29)+1-COUNTIF($C$28:C49,"Amortização"))) -> 0 | D50: =IF(AND(C50=0,C51=0),0,IF(B51=0,$C$20*IF(YTM_YTC="YTC Bruta",$F$18,1),$C$20*$C$13*IF(VLOOKUP($F$16,Convencoes,2,0)=1,1/VLOOKUP($F$15,Tabelas!$J$4:$K$8,2,0),YEARFRAC(B49,B50,VLOOKUP($F$16,Convencoes,2,0))))) -> 0 | F50: 0 | G50: 0 | H50: 0 | I50: 0
A51: =+OFFSET(Inputs!$CB$12,tbl_row,ROWS($A$29:A51)) -> 00:00:00 | B51: =IF(OR(B50=0,B50=B49),0,IF(AND(A51<>0,IF(YTM_YTC<>$L$1,A51<=$F$10,TRUE)),A51,IF(YTM_YTC<>$L$1,B50,IF(B50<INDEX(Table3[LAST_CALLABLE_DATE],tbl_row),EDATE(B50,$M$3),B50)))) -> 00:00:00 | C51: =IF(OR(AND(B51<>0,B51=B50),AND(B51<>0,B52=0)),"Amortização",IF(B52=0,0,"Cupão"&ROW()-ROW($C$29)+1-COUNTIF($C$28:C50,"Amortização"))) -> 0 | D51: =IF(AND(C51=0,C52=0),0,IF(B52=0,$C$20*IF(YTM_YTC="YTC Bruta",$F$18,1),$C$20*$C$13*IF(VLOOKUP($F$16,Convencoes,2,0)=1,1/VLOOKUP($F$15,Tabelas!$J$4:$K$8,2,0),YEARFRAC(B50,B51,VLOOKUP($F$16,Convencoes,2,0))))) -> 0 | F51: 0 | G51: 0 | H51: 0 | I51: 0
A52: =+OFFSET(Inputs!$CB$12,tbl_row,ROWS($A$29:A52)) -> 00:00:00 | B52: =IF(OR(B51=0,B51=B50),0,IF(AND(A52<>0,IF(YTM_YTC<>$L$1,A52<=$F$10,TRUE)),A52,IF(YTM_YTC<>$L$1,B51,IF(B51<INDEX(Table3[LAST_CALLABLE_DATE],tbl_row),EDATE(B51,$M$3),B51)))) -> 00:00:00 | C52: =IF(OR(AND(B52<>0,B52=B51),AND(B52<>0,B53=0)),"Amortização",IF(B53=0,0,"Cupão"&ROW()-ROW($C$29)+1-COUNTIF($C$28:C51,"Amortização"))) -> 0 | D52: =IF(AND(C52=0,C53=0),0,IF(B53=0,$C$20*IF(YTM_YTC="YTC Bruta",$F$18,1),$C$20*$C$13*IF(VLOOKUP($F$16,Convencoes,2,0)=1,1/VLOOKUP($F$15,Tabelas!$J$4:$K$8,2,0),YEARFRAC(B51,B52,VLOOKUP($F$16,Convencoes,2,0))))) -> 0 | F52: 0 | G52: 0 | H52: 0 | I52: 0
A53: =+OFFSET(Inputs!$CB$12,tbl_row,ROWS($A$29:A53)) -> 00:00:00 | B53: =IF(OR(B52=0,B52=B51),0,IF(AND(A53<>0,IF(YTM_YTC<>$L$1,A53<=$F$10,TRUE)),A53,IF(YTM_YTC<>$L$1,B52,IF(B52<INDEX(Table3[LAST_CALLABLE_DATE],tbl_row),EDATE(B52,$M$3),B52)))) -> 00:00:00 | C53: =IF(OR(AND(B53<>0,B53=B52),AND(B53<>0,B54=0)),"Amortização",IF(B54=0,0,"Cupão"&ROW()-ROW($C$29)+1-COUNTIF($C$28:C52,"Amortização"))) -> 0 | D53: =IF(AND(C53=0,C54=0),0,IF(B54=0,$C$20*IF(YTM_YTC="YTC Bruta",$F$18,1),$C$20*$C$13*IF(VLOOKUP($F$16,Convencoes,2,0)=1,1/VLOOKUP($F$15,Tabelas!$J$4:$K$8,2,0),YEARFRAC(B52,B53,VLOOKUP($F$16,Convencoes,2,0))))) -> 0 | F53: 0 | G53: 0 | H53: 0 | I53: 0
A54: =+OFFSET(Inputs!$CB$12,tbl_row,ROWS($A$29:A54)) -> 00:00:00 | B54: =IF(OR(B53=0,B53=B52),0,IF(AND(A54<>0,IF(YTM_YTC<>$L$1,A54<=$F$10,TRUE)),A54,IF(YTM_YTC<>$L$1,B53,IF(B53<INDEX(Table3[LAST_CALLABLE_DATE],tbl_row),EDATE(B53,$M$3),B53)))) -> 00:00:00 | C54: =IF(OR(AND(B54<>0,B54=B53),AND(B54<>0,B55=0)),"Amortização",IF(B55=0,0,"Cupão"&ROW()-ROW($C$29)+1-COUNTIF($C$28:C53,"Amortização"))) -> 0 | D54: =IF(AND(C54=0,C55=0),0,IF(B55=0,$C$20*IF(YTM_YTC="YTC Bruta",$F$18,1),$C$20*$C$13*IF(VLOOKUP($F$16,Convencoes,2,0)=1,1/VLOOKUP($F$15,Tabelas!$J$4:$K$8,2,0),YEARFRAC(B53,B54,VLOOKUP($F$16,Convencoes,2,0))))) -> 0 | F54: 0 | G54: 0 | H54: 0 | I54: 0
A55: =+OFFSET(Inputs!$CB$12,tbl_row,ROWS($A$29:A55)) -> 00:00:00 | B55: =IF(OR(B54=0,B54=B53),0,IF(AND(A55<>0,IF(YTM_YTC<>$L$1,A55<=$F$10,TRUE)),A55,IF(YTM_YTC<>$L$1,B54,IF(B54<INDEX(Table3[LAST_CALLABLE_DATE],tbl_row),EDATE(B54,$M$3),B54)))) -> 00:00:00 | C55: =IF(OR(AND(B55<>0,B55=B54),AND(B55<>0,B56=0)),"Amortização",IF(B56=0,0,"Cupão"&ROW()-ROW($C$29)+1-COUNTIF($C$28:C54,"Amortização"))) -> 0 | D55: =IF(AND(C55=0,C56=0),0,IF(B56=0,$C$20*IF(YTM_YTC="YTC Bruta",$F$18,1),$C$20*$C$13*IF(VLOOKUP($F$16,Convencoes,2,0)=1,1/VLOOKUP($F$15,Tabelas!$J$4:$K$8,2,0),YEARFRAC(B54,B55,VLOOKUP($F$16,Convencoes,2,0))))) -> 0 | F55: 0 | G55: 0 | H55: 0 | I55: 0
A56: =+OFFSET(Inputs!$CB$12,tbl_row,ROWS($A$29:A56)) -> 00:00:00 | B56: =IF(OR(B55=0,B55=B54),0,IF(AND(A56<>0,IF(YTM_YTC<>$L$1,A56<=$F$10,TRUE)),A56,IF(YTM_YTC<>$L$1,B55,IF(B55<INDEX(Table3[LAST_CALLABLE_DATE],tbl_row),EDATE(B55,$M$3),B55)))) -> 00:00:00 | C56: =IF(OR(AND(B56<>0,B56=B55),AND(B56<>0,B57=0)),"Amortização",IF(B57=0,0,"Cupão"&ROW()-ROW($C$29)+1-COUNTIF($C$28:C55,"Amortização"))) -> 0 | D56: =IF(AND(C56=0,C57=0),0,IF(B57=0,$C$20*IF(YTM_YTC="YTC Bruta",$F$18,1),$C$20*$C$13*IF(VLOOKUP($F$16,Convencoes,2,0)=1,1/VLOOKUP($F$15,Tabelas!$J$4:$K$8,2,0),YEARFRAC(B55,B56,VLOOKUP($F$16,Convencoes,2,0))))) -> 0 | F56: 0 | G56: 0 | H56: 0 | I56: 0
A57: =+OFFSET(Inputs!$CB$12,tbl_row,ROWS($A$29:A57)) -> 00:00:00 | B57: =IF(OR(B56=0,B56=B55),0,IF(AND(A57<>0,IF(YTM_YTC<>$L$1,A57<=$F$10,TRUE)),A57,IF(YTM_YTC<>$L$1,B56,IF(B56<INDEX(Table3[LAST_CALLABLE_DATE],tbl_row),EDATE(B56,$M$3),B56)))) -> 00:00:00 | C57: =IF(OR(AND(B57<>0,B57=B56),AND(B57<>0,B58=0)),"Amortização",IF(B58=0,0,"Cupão"&ROW()-ROW($C$29)+1-COUNTIF($C$28:C56,"Amortização"))) -> 0 | D57: =IF(AND(C57=0,C58=0),0,IF(B58=0,$C$20*IF(YTM_YTC="YTC Bruta",$F$18,1),$C$20*$C$13*IF(VLOOKUP($F$16,Convencoes,2,0)=1,1/VLOOKUP($F$15,Tabelas!$J$4:$K$8,2,0),YEARFRAC(B56,B57,VLOOKUP($F$16,Convencoes,2,0))))) -> 0 | F57: 0 | G57: 0 | H57: 0 | I57: 0
A58: =+OFFSET(Inputs!$CB$12,tbl_row,ROWS($A$29:A58)) -> 00:00:00 | B58: =IF(OR(B57=0,B57=B56),0,IF(AND(A58<>0,IF(YTM_YTC<>$L$1,A58<=$F$10,TRUE)),A58,IF(YTM_YTC<>$L$1,B57,IF(B57<INDEX(Table3[LAST_CALLABLE_DATE],tbl_row),EDATE(B57,$M$3),B57)))) -> 00:00:00 | C58: =IF(OR(AND(B58<>0,B58=B57),AND(B58<>0,B59=0)),"Amortização",IF(B59=0,0,"Cupão"&ROW()-ROW($C$29)+1-COUNTIF($C$28:C57,"Amortização"))) -> 0 | D58: =IF(AND(C58=0,C59=0),0,IF(B59=0,$C$20*IF(YTM_YTC="YTC Bruta",$F$18,1),$C$20*$C$13*IF(VLOOKUP($F$16,Convencoes,2,0)=1,1/VLOOKUP($F$15,Tabelas!$J$4:$K$8,2,0),YEARFRAC(B57,B58,VLOOKUP($F$16,Convencoes,2,0))))) -> 0 | F58: 0 | G58: 0 | H58: 0 | I58: 0
A59: =+OFFSET(Inputs!$CB$12,tbl_row,ROWS($A$29:A59)) -> 00:00:00 | B59: =IF(OR(B58=0,B58=B57),0,IF(AND(A59<>0,IF(YTM_YTC<>$L$1,A59<=$F$10,TRUE)),A59,IF(YTM_YTC<>$L$1,B58,IF(B58<INDEX(Table3[LAST_CALLABLE_DATE],tbl_row),EDATE(B58,$M$3),B58)))) -> 00:00:00 | C59: =IF(OR(AND(B59<>0,B59=B58),AND(B59<>0,B60=0)),"Amortização",IF(B60=0,0,"Cupão"&ROW()-ROW($C$29)+1-COUNTIF($C$28:C58,"Amortização"))) -> 0 | D59: =IF(AND(C59=0,C60=0),0,IF(B60=0,$C$20*IF(YTM_YTC="YTC Bruta",$F$18,1),$C$20*$C$13*IF(VLOOKUP($F$16,Convencoes,2,0)=1,1/VLOOKUP($F$15,Tabelas!$J$4:$K$8,2,0),YEARFRAC(B58,B59,VLOOKUP($F$16,Convencoes,2,0))))) -> 0 | F59: 0 | G59: 0 | H59: 0 | I59: 0
A60: =+OFFSET(Inputs!$CB$12,tbl_row,ROWS($A$29:A60)) -> 00:00:00 | B60: =IF(OR(B59=0,B59=B58),0,IF(AND(A60<>0,IF(YTM_YTC<>$L$1,A60<=$F$10,TRUE)),A60,IF(YTM_YTC<>$L$1,B59,IF(B59<INDEX(Table3[LAST_CALLABLE_DATE],tbl_row),EDATE(B59,$M$3),B59)))) -> 00:00:00 | C60: =IF(OR(AND(B60<>0,B60=B59),AND(B60<>0,B61=0)),"Amortização",IF(B61=0,0,"Cupão"&ROW()-ROW($C$29)+1-COUNTIF($C$28:C59,"Amortização"))) -> 0 | D60: =IF(AND(C60=0,C61=0),0,IF(B61=0,$C$20*IF(YTM_YTC="YTC Bruta",$F$18,1),$C$20*$C$13*IF(VLOOKUP($F$16,Convencoes,2,0)=1,1/VLOOKUP($F$15,Tabelas!$J$4:$K$8,2,0),YEARFRAC(B59,B60,VLOOKUP($F$16,Convencoes,2,0))))) -> 0 | F60: 0 | G60: 0 | H60: 0 | I60: 0
A61: =+OFFSET(Inputs!$CB$12,tbl_row,ROWS($A$29:A61)) -> 00:00:00 | B61: =IF(OR(B60=0,B60=B59),0,IF(AND(A61<>0,IF(YTM_YTC<>$L$1,A61<=$F$10,TRUE)),A61,IF(YTM_YTC<>$L$1,B60,IF(B60<INDEX(Table3[LAST_CALLABLE_DATE],tbl_row),EDATE(B60,$M$3),B60)))) -> 00:00:00 | C61: =IF(OR(AND(B61<>0,B61=B60),AND(B61<>0,B62=0)),"Amortização",IF(B62=0,0,"Cupão"&ROW()-ROW($C$29)+1-COUNTIF($C$28:C60,"Amortização"))) -> 0 | D61: =IF(AND(C61=0,C62=0),0,IF(B62=0,$C$20*IF(YTM_YTC="YTC Bruta",$F$18,1),$C$20*$C$13*IF(VLOOKUP($F$16,Convencoes,2,0)=1,1/VLOOKUP($F$15,Tabelas!$J$4:$K$8,2,0),YEARFRAC(B60,B61,VLOOKUP($F$16,Convencoes,2,0))))) -> 0 | F61: 0 | G61: 0 | H61: 0 | I61: 0
A62: =+OFFSET(Inputs!$CB$12,tbl_row,ROWS($A$29:A62)) -> 00:00:00 | B62: =IF(OR(B61=0,B61=B60),0,IF(AND(A62<>0,IF(YTM_YTC<>$L$1,A62<=$F$10,TRUE)),A62,IF(YTM_YTC<>$L$1,B61,IF(B61<INDEX(Table3[LAST_CALLABLE_DATE],tbl_row),EDATE(B61,$M$3),B61)))) -> 00:00:00 | C62: =IF(OR(AND(B62<>0,B62=B61),AND(B62<>0,B63=0)),"Amortização",IF(B63=0,0,"Cupão"&ROW()-ROW($C$29)+1-COUNTIF($C$28:C61,"Amortização"))) -> 0 | D62: =IF(AND(C62=0,C63=0),0,IF(B63=0,$C$20*IF(YTM_YTC="YTC Bruta",$F$18,1),$C$20*$C$13*IF(VLOOKUP($F$16,Convencoes,2,0)=1,1/VLOOKUP($F$15,Tabelas!$J$4:$K$8,2,0),YEARFRAC(B61,B62,VLOOKUP($F$16,Convencoes,2,0))))) -> 0 | F62: 0 | G62: 0 | H62: 0 | I62: 0
A63: =+OFFSET(Inputs!$CB$12,tbl_row,ROWS($A$29:A63)) -> 00:00:00 | B63: =IF(OR(B62=0,B62=B61),0,IF(AND(A63<>0,IF(YTM_YTC<>$L$1,A63<=$F$10,TRUE)),A63,IF(YTM_YTC<>$L$1,B62,IF(B62<INDEX(Table3[LAST_CALLABLE_DATE],tbl_row),EDATE(B62,$M$3),B62)))) -> 00:00:00 | C63: =IF(OR(AND(B63<>0,B63=B62),AND(B63<>0,B64=0)),"Amortização",IF(B64=0,0,"Cupão"&ROW()-ROW($C$29)+1-COUNTIF($C$28:C62,"Amortização"))) -> 0 | D63: =IF(AND(C63=0,C64=0),0,IF(B64=0,$C$20*IF(YTM_YTC="YTC Bruta",$F$18,1),$C$20*$C$13*IF(VLOOKUP($F$16,Convencoes,2,0)=1,1/VLOOKUP($F$15,Tabelas!$J$4:$K$8,2,0),YEARFRAC(B62,B63,VLOOKUP($F$16,Convencoes,2,0))))) -> 0 | F63: 0 | G63: 0 | H63: 0 | I63: 0
A64: =+OFFSET(Inputs!$CB$12,tbl_row,ROWS($A$29:A64)) -> 00:00:00 | B64: =IF(OR(B63=0,B63=B62),0,IF(AND(A64<>0,IF(YTM_YTC<>$L$1,A64<=$F$10,TRUE)),A64,IF(YTM_YTC<>$L$1,B63,IF(B63<INDEX(Table3[LAST_CALLABLE_DATE],tbl_row),EDATE(B63,$M$3),B63)))) -> 00:00:00 | C64: =IF(OR(AND(B64<>0,B64=B63),AND(B64<>0,B65=0)),"Amortização",IF(B65=0,0,"Cupão"&ROW()-ROW($C$29)+1-COUNTIF($C$28:C63,"Amortização"))) -> 0 | D64: =IF(AND(C64=0,C65=0),0,IF(B65=0,$C$20*IF(YTM_YTC="YTC Bruta",$F$18,1),$C$20*$C$13*IF(VLOOKUP($F$16,Convencoes,2,0)=1,1/VLOOKUP($F$15,Tabelas!$J$4:$K$8,2,0),YEARFRAC(B63,B64,VLOOKUP($F$16,Convencoes,2,0))))) -> 0 | F64: 0 | G64: 0 | H64: 0 | I64: 0
A65: =+OFFSET(Inputs!$CB$12,tbl_row,ROWS($A$29:A65)) -> 00:00:00 | B65: =IF(OR(B64=0,B64=B63),0,IF(AND(A65<>0,IF(YTM_YTC<>$L$1,A65<=$F$10,TRUE)),A65,IF(YTM_YTC<>$L$1,B64,IF(B64<INDEX(Table3[LAST_CALLABLE_DATE],tbl_row),EDATE(B64,$M$3),B64)))) -> 00:00:00 | C65: =IF(OR(AND(B65<>0,B65=B64),AND(B65<>0,B66=0)),"Amortização",IF(B66=0,0,"Cupão"&ROW()-ROW($C$29)+1-COUNTIF($C$28:C64,"Amortização"))) -> 0 | D65: =IF(AND(C65=0,C66=0),0,IF(B66=0,$C$20*IF(YTM_YTC="YTC Bruta",$F$18,1),$C$20*$C$13*IF(VLOOKUP($F$16,Convencoes,2,0)=1,1/VLOOKUP($F$15,Tabelas!$J$4:$K$8,2,0),YEARFRAC(B64,B65,VLOOKUP($F$16,Convencoes,2,0))))) -> 0 | F65: 0 | G65: 0 | H65: 0 | I65: 0
A66: =+OFFSET(Inputs!$CB$12,tbl_row,ROWS($A$29:A66)) -> 00:00:00 | B66: =IF(OR(B65=0,B65=B64),0,IF(AND(A66<>0,IF(YTM_YTC<>$L$1,A66<=$F$10,TRUE)),A66,IF(YTM_YTC<>$L$1,B65,IF(B65<INDEX(Table3[LAST_CALLABLE_DATE],tbl_row),EDATE(B65,$M$3),B65)))) -> 00:00:00 | C66: =IF(OR(AND(B66<>0,B66=B65),AND(B66<>0,B67=0)),"Amortização",IF(B67=0,0,"Cupão"&ROW()-ROW($C$29)+1-COUNTIF($C$28:C65,"Amortização"))) -> 0 | D66: =IF(AND(C66=0,C67=0),0,IF(B67=0,$C$20*IF(YTM_YTC="YTC Bruta",$F$18,1),$C$20*$C$13*IF(VLOOKUP($F$16,Convencoes,2,0)=1,1/VLOOKUP($F$15,Tabelas!$J$4:$K$8,2,0),YEARFRAC(B65,B66,VLOOKUP($F$16,Convencoes,2,0))))) -> 0 | F66: 0 | G66: 0 | H66: 0 | I66: 0
A67: =+OFFSET(Inputs!$CB$12,tbl_row,ROWS($A$29:A67)) -> 00:00:00 | B67: =IF(OR(B66=0,B66=B65),0,IF(AND(A67<>0,IF(YTM_YTC<>$L$1,A67<=$F$10,TRUE)),A67,IF(YTM_YTC<>$L$1,B66,IF(B66<INDEX(Table3[LAST_CALLABLE_DATE],tbl_row),EDATE(B66,$M$3),B66)))) -> 00:00:00 | C67: =IF(OR(AND(B67<>0,B67=B66),AND(B67<>0,B68=0)),"Amortização",IF(B68=0,0,"Cupão"&ROW()-ROW($C$29)+1-COUNTIF($C$28:C66,"Amortização"))) -> 0 | D67: =IF(AND(C67=0,C68=0),0,IF(B68=0,$C$20*IF(YTM_YTC="YTC Bruta",$F$18,1),$C$20*$C$13*IF(VLOOKUP($F$16,Convencoes,2,0)=1,1/VLOOKUP($F$15,Tabelas!$J$4:$K$8,2,0),YEARFRAC(B66,B67,VLOOKUP($F$16,Convencoes,2,0))))) -> 0 | F67: 0 | G67: 0 | H67: 0 | I67: 0
A68: =+OFFSET(Inputs!$CB$12,tbl_row,ROWS($A$29:A68)) -> 00:00:00 | B68: =IF(OR(B67=0,B67=B66),0,IF(AND(A68<>0,IF(YTM_YTC<>$L$1,A68<=$F$10,TRUE)),A68,IF(YTM_YTC<>$L$1,B67,IF(B67<INDEX(Table3[LAST_CALLABLE_DATE],tbl_row),EDATE(B67,$M$3),B67)))) -> 00:00:00 | C68: =IF(OR(AND(B68<>0,B68=B67),AND(B68<>0,B69=0)),"Amortização",IF(B69=0,0,"Cupão"&ROW()-ROW($C$29)+1-COUNTIF($C$28:C67,"Amortização"))) -> 0 | D68: =IF(AND(C68=0,C69=0),0,IF(B69=0,$C$20*IF(YTM_YTC="YTC Bruta",$F$18,1),$C$20*$C$13*IF(VLOOKUP($F$16,Convencoes,2,0)=1,1/VLOOKUP($F$15,Tabelas!$J$4:$K$8,2,0),YEARFRAC(B67,B68,VLOOKUP($F$16,Convencoes,2,0))))) -> 0 | F68: 0 | G68: 0 | H68: 0 | I68: 0
A69: =+OFFSET(Inputs!$CB$12,tbl_row,ROWS($A$29:A69)) -> 00:00:00 | B69: =IF(OR(B68=0,B68=B67),0,IF(AND(A69<>0,IF(YTM_YTC<>$L$1,A69<=$F$10,TRUE)),A69,IF(YTM_YTC<>$L$1,B68,IF(B68<INDEX(Table3[LAST_CALLABLE_DATE],tbl_row),EDATE(B68,$M$3),B68)))) -> 00:00:00 | C69: =IF(OR(AND(B69<>0,B69=B68),AND(B69<>0,B70=0)),"Amortização",IF(B70=0,0,"Cupão"&ROW()-ROW($C$29)+1-COUNTIF($C$28:C68,"Amortização"))) -> 0 | D69: =IF(AND(C69=0,C70=0),0,IF(B70=0,$C$20*IF(YTM_YTC="YTC Bruta",$F$18,1),$C$20*$C$13*IF(VLOOKUP($F$16,Convencoes,2,0)=1,1/VLOOKUP($F$15,Tabelas!$J$4:$K$8,2,0),YEARFRAC(B68,B69,VLOOKUP($F$16,Convencoes,2,0))))) -> 0 | F69: 0 | G69: 0 | H69: 0 | I69: 0
A70: =+OFFSET(Inputs!$CB$12,tbl_row,ROWS($A$29:A70)) -> 00:00:00 | B70: =IF(OR(B69=0,B69=B68),0,IF(AND(A70<>0,IF(YTM_YTC<>$L$1,A70<=$F$10,TRUE)),A70,IF(YTM_YTC<>$L$1,B69,IF(B69<INDEX(Table3[LAST_CALLABLE_DATE],tbl_row),EDATE(B69,$M$3),B69)))) -> 00:00:00 | C70: =IF(OR(AND(B70<>0,B70=B69),AND(B70<>0,B71=0)),"Amortização",IF(B71=0,0,"Cupão"&ROW()-ROW($C$29)+1-COUNTIF($C$28:C69,"Amortização"))) -> 0 | D70: =IF(AND(C70=0,C71=0),0,IF(B71=0,$C$20*IF(YTM_YTC="YTC Bruta",$F$18,1),$C$20*$C$13*IF(VLOOKUP($F$16,Convencoes,2,0)=1,1/VLOOKUP($F$15,Tabelas!$J$4:$K$8,2,0),YEARFRAC(B69,B70,VLOOKUP($F$16,Convencoes,2,0))))) -> 0 | F70: 0 | G70: 0 | H70: 0 | I70: 0
A71: =+OFFSET(Inputs!$CB$12,tbl_row,ROWS($A$29:A71)) -> 00:00:00 | B71: =IF(OR(B70=0,B70=B69),0,IF(AND(A71<>0,IF(YTM_YTC<>$L$1,A71<=$F$10,TRUE)),A71,IF(YTM_YTC<>$L$1,B70,IF(B70<INDEX(Table3[LAST_CALLABLE_DATE],tbl_row),EDATE(B70,$M$3),B70)))) -> 00:00:00 | C71: =IF(OR(AND(B71<>0,B71=B70),AND(B71<>0,B72=0)),"Amortização",IF(B72=0,0,"Cupão"&ROW()-ROW($C$29)+1-COUNTIF($C$28:C70,"Amortização"))) -> 0 | D71: =IF(AND(C71=0,C72=0),0,IF(B72=0,$C$20*IF(YTM_YTC="YTC Bruta",$F$18,1),$C$20*$C$13*IF(VLOOKUP($F$16,Convencoes,2,0)=1,1/VLOOKUP($F$15,Tabelas!$J$4:$K$8,2,0),YEARFRAC(B70,B71,VLOOKUP($F$16,Convencoes,2,0))))) -> 0 | F71: 0 | G71: 0 | H71: 0 | I71: 0
A72: =+OFFSET(Inputs!$CB$12,tbl_row,ROWS($A$29:A72)) -> 00:00:00 | B72: =IF(OR(B71=0,B71=B70),0,IF(AND(A72<>0,IF(YTM_YTC<>$L$1,A72<=$F$10,TRUE)),A72,IF(YTM_YTC<>$L$1,B71,IF(B71<INDEX(Table3[LAST_CALLABLE_DATE],tbl_row),EDATE(B71,$M$3),B71)))) -> 00:00:00 | C72: =IF(OR(AND(B72<>0,B72=B71),AND(B72<>0,B73=0)),"Amortização",IF(B73=0,0,"Cupão"&ROW()-ROW($C$29)+1-COUNTIF($C$28:C71,"Amortização"))) -> 0 | D72: =IF(AND(C72=0,C73=0),0,IF(B73=0,$C$20*IF(YTM_YTC="YTC Bruta",$F$18,1),$C$20*$C$13*IF(VLOOKUP($F$16,Convencoes,2,0)=1,1/VLOOKUP($F$15,Tabelas!$J$4:$K$8,2,0),YEARFRAC(B71,B72,VLOOKUP($F$16,Convencoes,2,0))))) -> 0 | F72: 0 | G72: 0 | H72: 0 | I72: 0
A73: =+OFFSET(Inputs!$CB$12,tbl_row,ROWS($A$29:A73)) -> 00:00:00 | B73: =IF(OR(B72=0,B72=B71),0,IF(AND(A73<>0,IF(YTM_YTC<>$L$1,A73<=$F$10,TRUE)),A73,IF(YTM_YTC<>$L$1,B72,IF(B72<INDEX(Table3[LAST_CALLABLE_DATE],tbl_row),EDATE(B72,$M$3),B72)))) -> 00:00:00 | C73: =IF(OR(AND(B73<>0,B73=B72),AND(B73<>0,B74=0)),"Amortização",IF(B74=0,0,"Cupão"&ROW()-ROW($C$29)+1-COUNTIF($C$28:C72,"Amortização"))) -> 0 | D73: =IF(AND(C73=0,C74=0),0,IF(B74=0,$C$20*IF(YTM_YTC="YTC Bruta",$F$18,1),$C$20*$C$13*IF(VLOOKUP($F$16,Convencoes,2,0)=1,1/VLOOKUP($F$15,Tabelas!$J$4:$K$8,2,0),YEARFRAC(B72,B73,VLOOKUP($F$16,Convencoes,2,0))))) -> 0 | F73: 0 | G73: 0 | H73: 0 | I73: 0
A74: =+OFFSET(Inputs!$CB$12,tbl_row,ROWS($A$29:A74)) -> 00:00:00 | B74: =IF(OR(B73=0,B73=B72),0,IF(AND(A74<>0,IF(YTM_YTC<>$L$1,A74<=$F$10,TRUE)),A74,IF(YTM_YTC<>$L$1,B73,IF(B73<INDEX(Table3[LAST_CALLABLE_DATE],tbl_row),EDATE(B73,$M$3),B73)))) -> 00:00:00 | C74: =IF(OR(AND(B74<>0,B74=B73),AND(B74<>0,B75=0)),"Amortização",IF(B75=0,0,"Cupão"&ROW()-ROW($C$29)+1-COUNTIF($C$28:C73,"Amortização"))) -> 0 | D74: =IF(AND(C74=0,C75=0),0,IF(B75=0,$C$20*IF(YTM_YTC="YTC Bruta",$F$18,1),$C$20*$C$13*IF(VLOOKUP($F$16,Convencoes,2,0)=1,1/VLOOKUP($F$15,Tabelas!$J$4:$K$8,2,0),YEARFRAC(B73,B74,VLOOKUP($F$16,Convencoes,2,0))))) -> 0 | F74: 0 | G74: 0 | H74: 0 | I74: 0
A75: =+OFFSET(Inputs!$CB$12,tbl_row,ROWS($A$29:A75)) -> 00:00:00 | B75: =IF(OR(B74=0,B74=B73),0,IF(AND(A75<>0,IF(YTM_YTC<>$L$1,A75<=$F$10,TRUE)),A75,IF(YTM_YTC<>$L$1,B74,IF(B74<INDEX(Table3[LAST_CALLABLE_DATE],tbl_row),EDATE(B74,$M$3),B74)))) -> 00:00:00 | C75: =IF(OR(AND(B75<>0,B75=B74),AND(B75<>0,B76=0)),"Amortização",IF(B76=0,0,"Cupão"&ROW()-ROW($C$29)+1-COUNTIF($C$28:C74,"Amortização"))) -> 0 | D75: =IF(AND(C75=0,C76=0),0,IF(B76=0,$C$20*IF(YTM_YTC="YTC Bruta",$F$18,1),$C$20*$C$13*IF(VLOOKUP($F$16,Convencoes,2,0)=1,1/VLOOKUP($F$15,Tabelas!$J$4:$K$8,2,0),YEARFRAC(B74,B75,VLOOKUP($F$16,Convencoes,2,0))))) -> 0 | F75: 0 | G75: 0 | H75: 0 | I75: 0
A76: =+OFFSET(Inputs!$CB$12,tbl_row,ROWS($A$29:A76)) -> 00:00:00 | B76: =IF(OR(B75=0,B75=B74),0,IF(AND(A76<>0,IF(YTM_YTC<>$L$1,A76<=$F$10,TRUE)),A76,IF(YTM_YTC<>$L$1,B75,IF(B75<INDEX(Table3[LAST_CALLABLE_DATE],tbl_row),EDATE(B75,$M$3),B75)))) -> 00:00:00 | C76: =IF(OR(AND(B76<>0,B76=B75),AND(B76<>0,B77=0)),"Amortização",IF(B77=0,0,"Cupão"&ROW()-ROW($C$29)+1-COUNTIF($C$28:C75,"Amortização"))) -> 0 | D76: =IF(AND(C76=0,C77=0),0,IF(B77=0,$C$20*IF(YTM_YTC="YTC Bruta",$F$18,1),$C$20*$C$13*IF(VLOOKUP($F$16,Convencoes,2,0)=1,1/VLOOKUP($F$15,Tabelas!$J$4:$K$8,2,0),YEARFRAC(B75,B76,VLOOKUP($F$16,Convencoes,2,0))))) -> 0 | F76: 0 | G76: 0 | H76: 0 | I76: 0
A77: =+OFFSET(Inputs!$CB$12,tbl_row,ROWS($A$29:A77)) -> 00:00:00 | B77: =IF(OR(B76=0,B76=B75),0,IF(AND(A77<>0,IF(YTM_YTC<>$L$1,A77<=$F$10,TRUE)),A77,IF(YTM_YTC<>$L$1,B76,IF(B76<INDEX(Table3[LAST_CALLABLE_DATE],tbl_row),EDATE(B76,$M$3),B76)))) -> 00:00:00 | C77: =IF(OR(AND(B77<>0,B77=B76),AND(B77<>0,B78=0)),"Amortização",IF(B78=0,0,"Cupão"&ROW()-ROW($C$29)+1-COUNTIF($C$28:C76,"Amortização"))) -> 0 | D77: =IF(AND(C77=0,C78=0),0,IF(B78=0,$C$20*IF(YTM_YTC="YTC Bruta",$F$18,1),$C$20*$C$13*IF(VLOOKUP($F$16,Convencoes,2,0)=1,1/VLOOKUP($F$15,Tabelas!$J$4:$K$8,2,0),YEARFRAC(B76,B77,VLOOKUP($F$16,Convencoes,2,0))))) -> 0 | F77: 0 | G77: 0 | H77: 0 | I77: 0
A78: =+OFFSET(Inputs!$CB$12,tbl_row,ROWS($A$29:A78)) -> 00:00:00 | B78: =IF(OR(B77=0,B77=B76),0,IF(AND(A78<>0,IF(YTM_YTC<>$L$1,A78<=$F$10,TRUE)),A78,IF(YTM_YTC<>$L$1,B77,IF(B77<INDEX(Table3[LAST_CALLABLE_DATE],tbl_row),EDATE(B77,$M$3),B77)))) -> 00:00:00 | C78: =IF(OR(AND(B78<>0,B78=B77),AND(B78<>0,B79=0)),"Amortização",IF(B79=0,0,"Cupão"&ROW()-ROW($C$29)+1-COUNTIF($C$28:C77,"Amortização"))) -> 0 | D78: =IF(AND(C78=0,C79=0),0,IF(B79=0,$C$20*IF(YTM_YTC="YTC Bruta",$F$18,1),$C$20*$C$13*IF(VLOOKUP($F$16,Convencoes,2,0)=1,1/VLOOKUP($F$15,Tabelas!$J$4:$K$8,2,0),YEARFRAC(B77,B78,VLOOKUP($F$16,Convencoes,2,0))))) -> 0 | F78: 0 | G78: 0 | H78: 0 | I78: 0
A79: =+OFFSET(Inputs!$CB$12,tbl_row,ROWS($A$29:A79)) -> 00:00:00 | B79: =IF(OR(B78=0,B78=B77),0,IF(AND(A79<>0,IF(YTM_YTC<>$L$1,A79<=$F$10,TRUE)),A79,IF(YTM_YTC<>$L$1,B78,IF(B78<INDEX(Table3[LAST_CALLABLE_DATE],tbl_row),EDATE(B78,$M$3),B78)))) -> 00:00:00 | C79: =IF(OR(AND(B79<>0,B79=B78),AND(B79<>0,B80=0)),"Amortização",IF(B80=0,0,"Cupão"&ROW()-ROW($C$29)+1-COUNTIF($C$28:C78,"Amortização"))) -> 0 | D79: =IF(AND(C79=0,C80=0),0,IF(B80=0,$C$20*IF(YTM_YTC="YTC Bruta",$F$18,1),$C$20*$C$13*IF(VLOOKUP($F$16,Convencoes,2,0)=1,1/VLOOKUP($F$15,Tabelas!$J$4:$K$8,2,0),YEARFRAC(B78,B79,VLOOKUP($F$16,Convencoes,2,0))))) -> 0 | F79: 0 | G79: 0 | H79: 0 | I79: 0
A80: =+OFFSET(Inputs!$CB$12,tbl_row,ROWS($A$29:A80)) -> 00:00:00 | B80: =IF(OR(B79=0,B79=B78),0,IF(AND(A80<>0,IF(YTM_YTC<>$L$1,A80<=$F$10,TRUE)),A80,IF(YTM_YTC<>$L$1,B79,IF(B79<INDEX(Table3[LAST_CALLABLE_DATE],tbl_row),EDATE(B79,$M$3),B79)))) -> 00:00:00 | C80: =IF(OR(AND(B80<>0,B80=B79),AND(B80<>0,B81=0)),"Amortização",IF(B81=0,0,"Cupão"&ROW()-ROW($C$29)+1-COUNTIF($C$28:C79,"Amortização"))) -> 0 | D80: =IF(AND(C80=0,C81=0),0,IF(B81=0,$C$20*IF(YTM_YTC="YTC Bruta",$F$18,1),$C$20*$C$13*IF(VLOOKUP($F$16,Convencoes,2,0)=1,1/VLOOKUP($F$15,Tabelas!$J$4:$K$8,2,0),YEARFRAC(B79,B80,VLOOKUP($F$16,Convencoes,2,0))))) -> 0 | F80: 0 | G80: 0 | H80: 0 | I80: 0
A81: =+OFFSET(Inputs!$CB$12,tbl_row,ROWS($A$29:A81)) -> 00:00:00 | B81: =IF(OR(B80=0,B80=B79),0,IF(AND(A81<>0,IF(YTM_YTC<>$L$1,A81<=$F$10,TRUE)),A81,IF(YTM_YTC<>$L$1,B80,IF(B80<INDEX(Table3[LAST_CALLABLE_DATE],tbl_row),EDATE(B80,$M$3),B80)))) -> 00:00:00 | C81: =IF(OR(AND(B81<>0,B81=B80),AND(B81<>0,B82=0)),"Amortização",IF(B82=0,0,"Cupão"&ROW()-ROW($C$29)+1-COUNTIF($C$28:C80,"Amortização"))) -> 0 | D81: =IF(AND(C81=0,C82=0),0,IF(B82=0,$C$20*IF(YTM_YTC="YTC Bruta",$F$18,1),$C$20*$C$13*IF(VLOOKUP($F$16,Convencoes,2,0)=1,1/VLOOKUP($F$15,Tabelas!$J$4:$K$8,2,0),YEARFRAC(B80,B81,VLOOKUP($F$16,Convencoes,2,0))))) -> 0 | F81: 0 | G81: 0 | H81: 0 | I81: 0
A82: =+OFFSET(Inputs!$CB$12,tbl_row,ROWS($A$29:A82)) -> 00:00:00 | B82: =IF(OR(B81=0,B81=B80),0,IF(AND(A82<>0,IF(YTM_YTC<>$L$1,A82<=$F$10,TRUE)),A82,IF(YTM_YTC<>$L$1,B81,IF(B81<INDEX(Table3[LAST_CALLABLE_DATE],tbl_row),EDATE(B81,$M$3),B81)))) -> 00:00:00 | C82: =IF(OR(AND(B82<>0,B82=B81),AND(B82<>0,B83=0)),"Amortização",IF(B83=0,0,"Cupão"&ROW()-ROW($C$29)+1-COUNTIF($C$28:C81,"Amortização"))) -> 0 | D82: =IF(AND(C82=0,C83=0),0,IF(B83=0,$C$20*IF(YTM_YTC="YTC Bruta",$F$18,1),$C$20*$C$13*IF(VLOOKUP($F$16,Convencoes,2,0)=1,1/VLOOKUP($F$15,Tabelas!$J$4:$K$8,2,0),YEARFRAC(B81,B82,VLOOKUP($F$16,Convencoes,2,0))))) -> 0 | F82: 0 | G82: 0 | H82: 0 | I82: 0
A83: =+OFFSET(Inputs!$CB$12,tbl_row,ROWS($A$29:A83)) -> 00:00:00 | B83: =IF(OR(B82=0,B82=B81),0,IF(AND(A83<>0,IF(YTM_YTC<>$L$1,A83<=$F$10,TRUE)),A83,IF(YTM_YTC<>$L$1,B82,IF(B82<INDEX(Table3[LAST_CALLABLE_DATE],tbl_row),EDATE(B82,$M$3),B82)))) -> 00:00:00 | C83: =IF(OR(AND(B83<>0,B83=B82),AND(B83<>0,B84=0)),"Amortização",IF(B84=0,0,"Cupão"&ROW()-ROW($C$29)+1-COUNTIF($C$28:C82,"Amortização"))) -> 0 | D83: =IF(AND(C83=0,C84=0),0,IF(B84=0,$C$20*IF(YTM_YTC="YTC Bruta",$F$18,1),$C$20*$C$13*IF(VLOOKUP($F$16,Convencoes,2,0)=1,1/VLOOKUP($F$15,Tabelas!$J$4:$K$8,2,0),YEARFRAC(B82,B83,VLOOKUP($F$16,Convencoes,2,0))))) -> 0 | F83: 0 | G83: 0 | H83: 0 | I83: 0
A84: =+OFFSET(Inputs!$CB$12,tbl_row,ROWS($A$29:A84)) -> 00:00:00 | B84: =IF(OR(B83=0,B83=B82),0,IF(AND(A84<>0,IF(YTM_YTC<>$L$1,A84<=$F$10,TRUE)),A84,IF(YTM_YTC<>$L$1,B83,IF(B83<INDEX(Table3[LAST_CALLABLE_DATE],tbl_row),EDATE(B83,$M$3),B83)))) -> 00:00:00 | C84: =IF(OR(AND(B84<>0,B84=B83),AND(B84<>0,B85=0)),"Amortização",IF(B85=0,0,"Cupão"&ROW()-ROW($C$29)+1-COUNTIF($C$28:C83,"Amortização"))) -> 0 | D84: =IF(AND(C84=0,C85=0),0,IF(B85=0,$C$20*IF(YTM_YTC="YTC Bruta",$F$18,1),$C$20*$C$13*IF(VLOOKUP($F$16,Convencoes,2,0)=1,1/VLOOKUP($F$15,Tabelas!$J$4:$K$8,2,0),YEARFRAC(B83,B84,VLOOKUP($F$16,Convencoes,2,0))))) -> 0 | F84: 0 | G84: 0 | H84: 0 | I84: 0
A85: =+OFFSET(Inputs!$CB$12,tbl_row,ROWS($A$29:A85)) -> 00:00:00 | B85: =IF(OR(B84=0,B84=B83),0,IF(AND(A85<>0,IF(YTM_YTC<>$L$1,A85<=$F$10,TRUE)),A85,IF(YTM_YTC<>$L$1,B84,IF(B84<INDEX(Table3[LAST_CALLABLE_DATE],tbl_row),EDATE(B84,$M$3),B84)))) -> 00:00:00 | C85: =IF(OR(AND(B85<>0,B85=B84),AND(B85<>0,B86=0)),"Amortização",IF(B86=0,0,"Cupão"&ROW()-ROW($C$29)+1-COUNTIF($C$28:C84,"Amortização"))) -> 0 | D85: =IF(AND(C85=0,C86=0),0,IF(B86=0,$C$20*IF(YTM_YTC="YTC Bruta",$F$18,1),$C$20*$C$13*IF(VLOOKUP($F$16,Convencoes,2,0)=1,1/VLOOKUP($F$15,Tabelas!$J$4:$K$8,2,0),YEARFRAC(B84,B85,VLOOKUP($F$16,Convencoes,2,0))))) -> 0 | F85: 0 | G85: 0 | H85: 0 | I85: 0
A86: =+OFFSET(Inputs!$CB$12,tbl_row,ROWS($A$29:A86)) -> 00:00:00 | B86: =IF(OR(B85=0,B85=B84),0,IF(AND(A86<>0,IF(YTM_YTC<>$L$1,A86<=$F$10,TRUE)),A86,IF(YTM_YTC<>$L$1,B85,IF(B85<INDEX(Table3[LAST_CALLABLE_DATE],tbl_row),EDATE(B85,$M$3),B85)))) -> 00:00:00 | C86: =IF(OR(AND(B86<>0,B86=B85),AND(B86<>0,B87=0)),"Amortização",IF(B87=0,0,"Cupão"&ROW()-ROW($C$29)+1-COUNTIF($C$28:C85,"Amortização"))) -> 0 | D86: =IF(AND(C86=0,C87=0),0,IF(B87=0,$C$20*IF(YTM_YTC="YTC Bruta",$F$18,1),$C$20*$C$13*IF(VLOOKUP($F$16,Convencoes,2,0)=1,1/VLOOKUP($F$15,Tabelas!$J$4:$K$8,2,0),YEARFRAC(B85,B86,VLOOKUP($F$16,Convencoes,2,0))))) -> 0 | F86: 0 | G86: 0 | H86: 0 | I86: 0
A87: =+OFFSET(Inputs!$CB$12,tbl_row,ROWS($A$29:A87)) -> 00:00:00 | B87: =IF(OR(B86=0,B86=B85),0,IF(AND(A87<>0,IF(YTM_YTC<>$L$1,A87<=$F$10,TRUE)),A87,IF(YTM_YTC<>$L$1,B86,IF(B86<INDEX(Table3[LAST_CALLABLE_DATE],tbl_row),EDATE(B86,$M$3),B86)))) -> 00:00:00 | C87: =IF(OR(AND(B87<>0,B87=B86),AND(B87<>0,B88=0)),"Amortização",IF(B88=0,0,"Cupão"&ROW()-ROW($C$29)+1-COUNTIF($C$28:C86,"Amortização"))) -> 0 | D87: =IF(AND(C87=0,C88=0),0,IF(B88=0,$C$20*IF(YTM_YTC="YTC Bruta",$F$18,1),$C$20*$C$13*IF(VLOOKUP($F$16,Convencoes,2,0)=1,1/VLOOKUP($F$15,Tabelas!$J$4:$K$8,2,0),YEARFRAC(B86,B87,VLOOKUP($F$16,Convencoes,2,0))))) -> 0 | F87: 0 | G87: 0 | H87: 0 | I87: 0
A88: =+OFFSET(Inputs!$CB$12,tbl_row,ROWS($A$29:A88)) -> 00:00:00 | B88: =IF(OR(B87=0,B87=B86),0,IF(AND(A88<>0,IF(YTM_YTC<>$L$1,A88<=$F$10,TRUE)),A88,IF(YTM_YTC<>$L$1,B87,IF(B87<INDEX(Table3[LAST_CALLABLE_DATE],tbl_row),EDATE(B87,$M$3),B87)))) -> 00:00:00 | C88: =IF(OR(AND(B88<>0,B88=B87),AND(B88<>0,B89=0)),"Amortização",IF(B89=0,0,"Cupão"&ROW()-ROW($C$29)+1-COUNTIF($C$28:C87,"Amortização"))) -> 0 | D88: =IF(AND(C88=0,C89=0),0,IF(B89=0,$C$20*IF(YTM_YTC="YTC Bruta",$F$18,1),$C$20*$C$13*IF(VLOOKUP($F$16,Convencoes,2,0)=1,1/VLOOKUP($F$15,Tabelas!$J$4:$K$8,2,0),YEARFRAC(B87,B88,VLOOKUP($F$16,Convencoes,2,0))))) -> 0 | F88: 0 | G88: 0 | H88: 0 | I88: 0
A89: =+OFFSET(Inputs!$CB$12,tbl_row,ROWS($A$29:A89)) -> 00:00:00 | B89: =IF(OR(B88=0,B88=B87),0,IF(AND(A89<>0,IF(YTM_YTC<>$L$1,A89<=$F$10,TRUE)),A89,IF(YTM_YTC<>$L$1,B88,IF(B88<INDEX(Table3[LAST_CALLABLE_DATE],tbl_row),EDATE(B88,$M$3),B88)))) -> 00:00:00 | C89: =IF(OR(AND(B89<>0,B89=B88),AND(B89<>0,B90=0)),"Amortização",IF(B90=0,0,"Cupão"&ROW()-ROW($C$29)+1-COUNTIF($C$28:C88,"Amortização"))) -> 0 | D89: =IF(AND(C89=0,C90=0),0,IF(B90=0,$C$20*IF(YTM_YTC="YTC Bruta",$F$18,1),$C$20*$C$13*IF(VLOOKUP($F$16,Convencoes,2,0)=1,1/VLOOKUP($F$15,Tabelas!$J$4:$K$8,2,0),YEARFRAC(B88,B89,VLOOKUP($F$16,Convencoes,2,0))))) -> 0 | F89: 0 | G89: 0 | H89: 0 | I89: 0
A90: =+OFFSET(Inputs!$CB$12,tbl_row,ROWS($A$29:A90)) -> 00:00:00 | B90: =IF(OR(B89=0,B89=B88),0,IF(AND(A90<>0,IF(YTM_YTC<>$L$1,A90<=$F$10,TRUE)),A90,IF(YTM_YTC<>$L$1,B89,IF(B89<INDEX(Table3[LAST_CALLABLE_DATE],tbl_row),EDATE(B89,$M$3),B89)))) -> 00:00:00 | C90: =IF(OR(AND(B90<>0,B90=B89),AND(B90<>0,B91=0)),"Amortização",IF(B91=0,0,"Cupão"&ROW()-ROW($C$29)+1-COUNTIF($C$28:C89,"Amortização"))) -> 0 | D90: =IF(AND(C90=0,C91=0),0,IF(B91=0,$C$20*IF(YTM_YTC="YTC Bruta",$F$18,1),$C$20*$C$13*IF(VLOOKUP($F$16,Convencoes,2,0)=1,1/VLOOKUP($F$15,Tabelas!$J$4:$K$8,2,0),YEARFRAC(B89,B90,VLOOKUP($F$16,Convencoes,2,0))))) -> 0 | F90: 0 | G90: 0 | H90: 0 | I90: 0
A91: =+OFFSET(Inputs!$CB$12,tbl_row,ROWS($A$29:A91)) -> 00:00:00 | B91: =IF(OR(B90=0,B90=B89),0,IF(AND(A91<>0,IF(YTM_YTC<>$L$1,A91<=$F$10,TRUE)),A91,IF(YTM_YTC<>$L$1,B90,IF(B90<INDEX(Table3[LAST_CALLABLE_DATE],tbl_row),EDATE(B90,$M$3),B90)))) -> 00:00:00 | C91: =IF(OR(AND(B91<>0,B91=B90),AND(B91<>0,B92=0)),"Amortização",IF(B92=0,0,"Cupão"&ROW()-ROW($C$29)+1-COUNTIF($C$28:C90,"Amortização"))) -> 0 | D91: =IF(AND(C91=0,C92=0),0,IF(B92=0,$C$20*IF(YTM_YTC="YTC Bruta",$F$18,1),$C$20*$C$13*IF(VLOOKUP($F$16,Convencoes,2,0)=1,1/VLOOKUP($F$15,Tabelas!$J$4:$K$8,2,0),YEARFRAC(B90,B91,VLOOKUP($F$16,Convencoes,2,0))))) -> 0 | F91: 0 | G91: 0 | H91: 0 | I91: 0
A92: =+OFFSET(Inputs!$CB$12,tbl_row,ROWS($A$29:A92)) -> 00:00:00 | B92: =IF(OR(B91=0,B91=B90),0,IF(AND(A92<>0,IF(YTM_YTC<>$L$1,A92<=$F$10,TRUE)),A92,IF(YTM_YTC<>$L$1,B91,IF(B91<INDEX(Table3[LAST_CALLABLE_DATE],tbl_row),EDATE(B91,$M$3),B91)))) -> 00:00:00 | C92: =IF(OR(AND(B92<>0,B92=B91),AND(B92<>0,B93=0)),"Amortização",IF(B93=0,0,"Cupão"&ROW()-ROW($C$29)+1-COUNTIF($C$28:C91,"Amortização"))) -> 0 | D92: =IF(AND(C92=0,C93=0),0,IF(B93=0,$C$20*IF(YTM_YTC="YTC Bruta",$F$18,1),$C$20*$C$13*IF(VLOOKUP($F$16,Convencoes,2,0)=1,1/VLOOKUP($F$15,Tabelas!$J$4:$K$8,2,0),YEARFRAC(B91,B92,VLOOKUP($F$16,Convencoes,2,0))))) -> 0 | F92: 0 | G92: 0 | H92: 0 | I92: 0
A93: =+OFFSET(Inputs!$CB$12,tbl_row,ROWS($A$29:A93)) -> 00:00:00 | B93: =IF(OR(B92=0,B92=B91),0,IF(AND(A93<>0,IF(YTM_YTC<>$L$1,A93<=$F$10,TRUE)),A93,IF(YTM_YTC<>$L$1,B92,IF(B92<INDEX(Table3[LAST_CALLABLE_DATE],tbl_row),EDATE(B92,$M$3),B92)))) -> 00:00:00 | C93: =IF(OR(AND(B93<>0,B93=B92),AND(B93<>0,B94=0)),"Amortização",IF(B94=0,0,"Cupão"&ROW()-ROW($C$29)+1-COUNTIF($C$28:C92,"Amortização"))) -> 0 | D93: =IF(AND(C93=0,C94=0),0,IF(B94=0,$C$20*IF(YTM_YTC="YTC Bruta",$F$18,1),$C$20*$C$13*IF(VLOOKUP($F$16,Convencoes,2,0)=1,1/VLOOKUP($F$15,Tabelas!$J$4:$K$8,2,0),YEARFRAC(B92,B93,VLOOKUP($F$16,Convencoes,2,0))))) -> 0 | F93: 0 | G93: 0 | H93: 0 | I93: 0
A94: =+OFFSET(Inputs!$CB$12,tbl_row,ROWS($A$29:A94)) -> 00:00:00 | B94: =IF(OR(B93=0,B93=B92),0,IF(AND(A94<>0,IF(YTM_YTC<>$L$1,A94<=$F$10,TRUE)),A94,IF(YTM_YTC<>$L$1,B93,IF(B93<INDEX(Table3[LAST_CALLABLE_DATE],tbl_row),EDATE(B93,$M$3),B93)))) -> 00:00:00 | C94: =IF(OR(AND(B94<>0,B94=B93),AND(B94<>0,B95=0)),"Amortização",IF(B95=0,0,"Cupão"&ROW()-ROW($C$29)+1-COUNTIF($C$28:C93,"Amortização"))) -> 0 | D94: =IF(AND(C94=0,C95=0),0,IF(B95=0,$C$20*IF(YTM_YTC="YTC Bruta",$F$18,1),$C$20*$C$13*IF(VLOOKUP($F$16,Convencoes,2,0)=1,1/VLOOKUP($F$15,Tabelas!$J$4:$K$8,2,0),YEARFRAC(B93,B94,VLOOKUP($F$16,Convencoes,2,0))))) -> 0 | F94: 0 | G94: 0 | H94: 0 | I94: 0
A95: =+OFFSET(Inputs!$CB$12,tbl_row,ROWS($A$29:A95)) -> 00:00:00 | B95: =IF(OR(B94=0,B94=B93),0,IF(AND(A95<>0,IF(YTM_YTC<>$L$1,A95<=$F$10,TRUE)),A95,IF(YTM_YTC<>$L$1,B94,IF(B94<INDEX(Table3[LAST_CALLABLE_DATE],tbl_row),EDATE(B94,$M$3),B94)))) -> 00:00:00 | C95: =IF(OR(AND(B95<>0,B95=B94),AND(B95<>0,B96=0)),"Amortização",IF(B96=0,0,"Cupão"&ROW()-ROW($C$29)+1-COUNTIF($C$28:C94,"Amortização"))) -> 0 | D95: =IF(AND(C95=0,C96=0),0,IF(B96=0,$C$20*IF(YTM_YTC="YTC Bruta",$F$18,1),$C$20*$C$13*IF(VLOOKUP($F$16,Convencoes,2,0)=1,1/VLOOKUP($F$15,Tabelas!$J$4:$K$8,2,0),YEARFRAC(B94,B95,VLOOKUP($F$16,Convencoes,2,0))))) -> 0 | F95: =-ROUND(IF(C95="Amortização",MAX(Mín._Com._Reemb.,D95*Comissão_Reemb.)*(1+IVA),IF(D95=0,0,MAX(Mín._Com._Juros,(D95+G95)*Comissão_Juros)*(1+IVA))),2) -> 0 | G95: =ROUND(IF(B96=0,0,IF(D95<0,-IRS*E95,-IRS*D95)),2) -> 0 | H95: =IF(B94=0,0,D95+E95) -> 0 | I95: =IF(H95=0,0,H95+F95+G95) -> 0
A96: =+OFFSET(Inputs!$CB$12,tbl_row,ROWS($A$29:A96)) -> 00:00:00 | B96: =IF(OR(B95=0,B95=B94),0,IF(AND(A96<>0,IF(YTM_YTC<>$L$1,A96<=$F$10,TRUE)),A96,IF(YTM_YTC<>$L$1,B95,IF(B95<INDEX(Table3[LAST_CALLABLE_DATE],tbl_row),EDATE(B95,$M$3),B95)))) -> 00:00:00 | C96: =IF(OR(AND(B96<>0,B96=B95),AND(B96<>0,B97=0)),"Amortização",IF(B97=0,0,"Cupão"&ROW()-ROW($C$29)+1-COUNTIF($C$28:C95,"Amortização"))) -> 0 | D96: =IF(AND(C96=0,C97=0),0,IF(B97=0,$C$20*IF(YTM_YTC="YTC Bruta",$F$18,1),$C$20*$C$13*IF(VLOOKUP($F$16,Convencoes,2,0)=1,1/VLOOKUP($F$15,Tabelas!$J$4:$K$8,2,0),YEARFRAC(B95,B96,VLOOKUP($F$16,Convencoes,2,0))))) -> 0 | F96: 0 | G96: 0 | H96: 0 | I96: 0
A97: =+OFFSET(Inputs!$CB$12,tbl_row,ROWS($A$29:A97)) -> 00:00:00 | B97: =IF(OR(B96=0,B96=B95),0,IF(AND(A97<>0,IF(YTM_YTC<>$L$1,A97<=$F$10,TRUE)),A97,IF(YTM_YTC<>$L$1,B96,IF(B96<INDEX(Table3[LAST_CALLABLE_DATE],tbl_row),EDATE(B96,$M$3),B96)))) -> 00:00:00 | C97: =IF(OR(AND(B97<>0,B97=B96),AND(B97<>0,B98=0)),"Amortização",IF(B98=0,0,"Cupão"&ROW()-ROW($C$29)+1-COUNTIF($C$28:C96,"Amortização"))) -> 0 | D97: =IF(AND(C97=0,C98=0),0,IF(B98=0,$C$20*IF(YTM_YTC="YTC Bruta",$F$18,1),$C$20*$C$13*IF(VLOOKUP($F$16,Convencoes,2,0)=1,1/VLOOKUP($F$15,Tabelas!$J$4:$K$8,2,0),YEARFRAC(B96,B97,VLOOKUP($F$16,Convencoes,2,0))))) -> 0 | F97: 0 | G97: 0 | H97: 0 | I97: 0
A98: =+OFFSET(Inputs!$CB$12,tbl_row,ROWS($A$29:A98)) -> 00:00:00 | B98: =IF(OR(B97=0,B97=B96),0,IF(AND(A98<>0,IF(YTM_YTC<>$L$1,A98<=$F$10,TRUE)),A98,IF(YTM_YTC<>$L$1,B97,IF(B97<INDEX(Table3[LAST_CALLABLE_DATE],tbl_row),EDATE(B97,$M$3),B97)))) -> 00:00:00 | C98: =IF(OR(AND(B98<>0,B98=B97),AND(B98<>0,B99=0)),"Amortização",IF(B99=0,0,"Cupão"&ROW()-ROW($C$29)+1-COUNTIF($C$28:C97,"Amortização"))) -> 0 | D98: =IF(AND(C98=0,C99=0),0,IF(B99=0,$C$20*IF(YTM_YTC="YTC Bruta",$F$18,1),$C$20*$C$13*IF(VLOOKUP($F$16,Convencoes,2,0)=1,1/VLOOKUP($F$15,Tabelas!$J$4:$K$8,2,0),YEARFRAC(B97,B98,VLOOKUP($F$16,Convencoes,2,0))))) -> 0 | F98: 0 | G98: 0 | H98: 0 | I98: 0
A99: =+OFFSET(Inputs!$CB$12,tbl_row,ROWS($A$29:A99)) -> 00:00:00 | B99: =IF(OR(B98=0,B98=B97),0,IF(AND(A99<>0,IF(YTM_YTC<>$L$1,A99<=$F$10,TRUE)),A99,IF(YTM_YTC<>$L$1,B98,IF(B98<INDEX(Table3[LAST_CALLABLE_DATE],tbl_row),EDATE(B98,$M$3),B98)))) -> 00:00:00 | C99: =IF(OR(AND(B99<>0,B99=B98),AND(B99<>0,B100=0)),"Amortização",IF(B100=0,0,"Cupão"&ROW()-ROW($C$29)+1-COUNTIF($C$28:C98,"Amortização"))) -> 0 | D99: =IF(AND(C99=0,C100=0),0,IF(B100=0,$C$20*IF(YTM_YTC="YTC Bruta",$F$18,1),$C$20*$C$13*IF(VLOOKUP($F$16,Convencoes,2,0)=1,1/VLOOKUP($F$15,Tabelas!$J$4:$K$8,2,0),YEARFRAC(B98,B99,VLOOKUP($F$16,Convencoes,2,0))))) -> 0 | F99: 0 | G99: 0 | H99: 0 | I99: 0
A100: =+OFFSET(Inputs!$CB$12,tbl_row,ROWS($A$29:A100)) -> 00:00:00 | B100: =IF(OR(B99=0,B99=B98),0,IF(AND(A100<>0,IF(YTM_YTC<>$L$1,A100<=$F$10,TRUE)),A100,IF(YTM_YTC<>$L$1,B99,IF(B99<INDEX(Table3[LAST_CALLABLE_DATE],tbl_row),EDATE(B99,$M$3),B99)))) -> 00:00:00 | C100: =IF(OR(AND(B100<>0,B100=B99),AND(B100<>0,B101=0)),"Amortização",IF(B101=0,0,"Cupão"&ROW()-ROW($C$29)+1-COUNTIF($C$28:C99,"Amortização"))) -> 0 | D100: =IF(AND(C100=0,C101=0),0,IF(B101=0,$C$20*IF(YTM_YTC="YTC Bruta",$F$18,1),$C$20*$C$13*IF(VLOOKUP($F$16,Convencoes,2,0)=1,1/VLOOKUP($F$15,Tabelas!$J$4:$K$8,2,0),YEARFRAC(B99,B100,VLOOKUP($F$16,Convencoes,2,0))))) -> 0 | F100: 0 | G100: 0 | H100: 0 | I100: 0
A101: =+OFFSET(Inputs!$CB$12,tbl_row,ROWS($A$29:A101)) -> 00:00:00 | B101: =IF(OR(B100=0,B100=B99),0,IF(AND(A101<>0,IF(YTM_YTC<>$L$1,A101<=$F$10,TRUE)),A101,IF(YTM_YTC<>$L$1,B100,IF(B100<INDEX(Table3[LAST_CALLABLE_DATE],tbl_row),EDATE(B100,$M$3),B100)))) -> 00:00:00 | C101: =IF(OR(AND(B101<>0,B101=B100),AND(B101<>0,B102=0)),"Amortização",IF(B102=0,0,"Cupão"&ROW()-ROW($C$29)+1-COUNTIF($C$28:C100,"Amortização"))) -> 0 | D101: =IF(AND(C101=0,C102=0),0,IF(B102=0,$C$20*IF(YTM_YTC="YTC Bruta",$F$18,1),$C$20*$C$13*IF(VLOOKUP($F$16,Convencoes,2,0)=1,1/VLOOKUP($F$15,Tabelas!$J$4:$K$8,2,0),YEARFRAC(B100,B101,VLOOKUP($F$16,Convencoes,2,0))))) -> 0 | F101: 0 | G101: 0 | H101: 0 | I101: 0
A102: =+OFFSET(Inputs!$CB$12,tbl_row,ROWS($A$29:A102)) -> 00:00:00 | B102: =IF(OR(B101=0,B101=B100),0,IF(AND(A102<>0,IF(YTM_YTC<>$L$1,A102<=$F$10,TRUE)),A102,IF(YTM_YTC<>$L$1,B101,IF(B101<INDEX(Table3[LAST_CALLABLE_DATE],tbl_row),EDATE(B101,$M$3),B101)))) -> 00:00:00 | C102: =IF(OR(AND(B102<>0,B102=B101),AND(B102<>0,B103=0)),"Amortização",IF(B103=0,0,"Cupão"&ROW()-ROW($C$29)+1-COUNTIF($C$28:C101,"Amortização"))) -> 0 | D102: =IF(AND(C102=0,C103=0),0,IF(B103=0,$C$20*IF(YTM_YTC="YTC Bruta",$F$18,1),$C$20*$C$13*IF(VLOOKUP($F$16,Convencoes,2,0)=1,1/VLOOKUP($F$15,Tabelas!$J$4:$K$8,2,0),YEARFRAC(B101,B102,VLOOKUP($F$16,Convencoes,2,0))))) -> 0 | F102: 0 | G102: 0 | H102: 0 | I102: 0
A103: =+OFFSET(Inputs!$CB$12,tbl_row,ROWS($A$29:A103)) -> 00:00:00 | B103: =IF(OR(B102=0,B102=B101),0,IF(AND(A103<>0,IF(YTM_YTC<>$L$1,A103<=$F$10,TRUE)),A103,IF(YTM_YTC<>$L$1,B102,IF(B102<INDEX(Table3[LAST_CALLABLE_DATE],tbl_row),EDATE(B102,$M$3),B102)))) -> 00:00:00 | C103: =IF(OR(AND(B103<>0,B103=B102),AND(B103<>0,B104=0)),"Amortização",IF(B104=0,0,"Cupão"&ROW()-ROW($C$29)+1-COUNTIF($C$28:C102,"Amortização"))) -> 0 | D103: =IF(AND(C103=0,C104=0),0,IF(B104=0,$C$20*IF(YTM_YTC="YTC Bruta",$F$18,1),$C$20*$C$13*IF(VLOOKUP($F$16,Convencoes,2,0)=1,1/VLOOKUP($F$15,Tabelas!$J$4:$K$8,2,0),YEARFRAC(B102,B103,VLOOKUP($F$16,Convencoes,2,0))))) -> 0 | F103: 0 | G103: 0 | H103: 0 | I103: 0
A104: =+OFFSET(Inputs!$CB$12,tbl_row,ROWS($A$29:A104)) -> 00:00:00 | B104: =IF(OR(B103=0,B103=B102),0,IF(AND(A104<>0,IF(YTM_YTC<>$L$1,A104<=$F$10,TRUE)),A104,IF(YTM_YTC<>$L$1,B103,IF(B103<INDEX(Table3[LAST_CALLABLE_DATE],tbl_row),EDATE(B103,$M$3),B103)))) -> 00:00:00 | C104: =IF(OR(AND(B104<>0,B104=B103),AND(B104<>0,B105=0)),"Amortização",IF(B105=0,0,"Cupão"&ROW()-ROW($C$29)+1-COUNTIF($C$28:C103,"Amortização"))) -> 0 | D104: =IF(AND(C104=0,C105=0),0,IF(B105=0,$C$20*IF(YTM_YTC="YTC Bruta",$F$18,1),$C$20*$C$13*IF(VLOOKUP($F$16,Convencoes,2,0)=1,1/VLOOKUP($F$15,Tabelas!$J$4:$K$8,2,0),YEARFRAC(B103,B104,VLOOKUP($F$16,Convencoes,2,0))))) -> 0 | F104: 0 | G104: 0 | H104: 0 | I104: 0
A105: =+OFFSET(Inputs!$CB$12,tbl_row,ROWS($A$29:A105)) -> 00:00:00 | B105: =IF(OR(B104=0,B104=B103),0,IF(AND(A105<>0,IF(YTM_YTC<>$L$1,A105<=$F$10,TRUE)),A105,IF(YTM_YTC<>$L$1,B104,IF(B104<INDEX(Table3[LAST_CALLABLE_DATE],tbl_row),EDATE(B104,$M$3),B104)))) -> 00:00:00 | C105: =IF(OR(AND(B105<>0,B105=B104),AND(B105<>0,B106=0)),"Amortização",IF(B106=0,0,"Cupão"&ROW()-ROW($C$29)+1-COUNTIF($C$28:C104,"Amortização"))) -> 0 | D105: =IF(AND(C105=0,C106=0),0,IF(B106=0,$C$20*IF(YTM_YTC="YTC Bruta",$F$18,1),$C$20*$C$13*IF(VLOOKUP($F$16,Convencoes,2,0)=1,1/VLOOKUP($F$15,Tabelas!$J$4:$K$8,2,0),YEARFRAC(B104,B105,VLOOKUP($F$16,Convencoes,2,0))))) -> 0 | F105: 0 | G105: 0 | H105: 0 | I105: 0
A106: =+OFFSET(Inputs!$CB$12,tbl_row,ROWS($A$29:A106)) -> 00:00:00 | B106: =IF(OR(B105=0,B105=B104),0,IF(AND(A106<>0,IF(YTM_YTC<>$L$1,A106<=$F$10,TRUE)),A106,IF(YTM_YTC<>$L$1,B105,IF(B105<INDEX(Table3[LAST_CALLABLE_DATE],tbl_row),EDATE(B105,$M$3),B105)))) -> 00:00:00 | C106: =IF(OR(AND(B106<>0,B106=B105),AND(B106<>0,B107=0)),"Amortização",IF(B107=0,0,"Cupão"&ROW()-ROW($C$29)+1-COUNTIF($C$28:C105,"Amortização"))) -> 0 | D106: =IF(AND(C106=0,C107=0),0,IF(B107=0,$C$20*IF(YTM_YTC="YTC Bruta",$F$18,1),$C$20*$C$13*IF(VLOOKUP($F$16,Convencoes,2,0)=1,1/VLOOKUP($F$15,Tabelas!$J$4:$K$8,2,0),YEARFRAC(B105,B106,VLOOKUP($F$16,Convencoes,2,0))))) -> 0 | F106: 0 | G106: 0 | H106: 0 | I106: 0
A107: =+OFFSET(Inputs!$CB$12,tbl_row,ROWS($A$29:A107)) -> 00:00:00 | B107: =IF(OR(B106=0,B106=B105),0,IF(AND(A107<>0,IF(YTM_YTC<>$L$1,A107<=$F$10,TRUE)),A107,IF(YTM_YTC<>$L$1,B106,IF(B106<INDEX(Table3[LAST_CALLABLE_DATE],tbl_row),EDATE(B106,$M$3),B106)))) -> 00:00:00 | C107: =IF(OR(AND(B107<>0,B107=B106),AND(B107<>0,B108=0)),"Amortização",IF(B108=0,0,"Cupão"&ROW()-ROW($C$29)+1-COUNTIF($C$28:C106,"Amortização"))) -> 0 | D107: =IF(AND(C107=0,C108=0),0,IF(B108=0,$C$20*IF(YTM_YTC="YTC Bruta",$F$18,1),$C$20*$C$13*IF(VLOOKUP($F$16,Convencoes,2,0)=1,1/VLOOKUP($F$15,Tabelas!$J$4:$K$8,2,0),YEARFRAC(B106,B107,VLOOKUP($F$16,Convencoes,2,0))))) -> 0 | F107: 0 | G107: 0 | H107: 0 | I107: 0
A108: =+OFFSET(Inputs!$CB$12,tbl_row,ROWS($A$29:A108)) -> 00:00:00 | B108: =IF(OR(B107=0,B107=B106),0,IF(AND(A108<>0,IF(YTM_YTC<>$L$1,A108<=$F$10,TRUE)),A108,IF(YTM_YTC<>$L$1,B107,IF(B107<INDEX(Table3[LAST_CALLABLE_DATE],tbl_row),EDATE(B107,$M$3),B107)))) -> 00:00:00 | C108: =IF(OR(AND(B108<>0,B108=B107),AND(B108<>0,B109=0)),"Amortização",IF(B109=0,0,"Cupão"&ROW()-ROW($C$29)+1-COUNTIF($C$28:C107,"Amortização"))) -> 0 | D108: =IF(AND(C108=0,C109=0),0,IF(B109=0,$C$20*IF(YTM_YTC="YTC Bruta",$F$18,1),$C$20*$C$13*IF(VLOOKUP($F$16,Convencoes,2,0)=1,1/VLOOKUP($F$15,Tabelas!$J$4:$K$8,2,0),YEARFRAC(B107,B108,VLOOKUP($F$16,Convencoes,2,0))))) -> 0 | F108: 0 | G108: 0 | H108: 0 | I108: 0
A109: =+OFFSET(Inputs!$CB$12,tbl_row,ROWS($A$29:A109)) -> 00:00:00 | B109: =IF(OR(B108=0,B108=B107),0,IF(AND(A109<>0,IF(YTM_YTC<>$L$1,A109<=$F$10,TRUE)),A109,IF(YTM_YTC<>$L$1,B108,IF(B108<INDEX(Table3[LAST_CALLABLE_DATE],tbl_row),EDATE(B108,$M$3),B108)))) -> 00:00:00 | C109: =IF(OR(AND(B109<>0,B109=B108),AND(B109<>0,B110=0)),"Amortização",IF(B110=0,0,"Cupão"&ROW()-ROW($C$29)+1-COUNTIF($C$28:C108,"Amortização"))) -> 0 | D109: =IF(AND(C109=0,C110=0),0,IF(B110=0,$C$20*IF(YTM_YTC="YTC Bruta",$F$18,1),$C$20*$C$13*IF(VLOOKUP($F$16,Convencoes,2,0)=1,1/VLOOKUP($F$15,Tabelas!$J$4:$K$8,2,0),YEARFRAC(B108,B109,VLOOKUP($F$16,Convencoes,2,0))))) -> 0 | F109: 0 | G109: 0 | H109: 0 | I109: 0
A110: =+OFFSET(Inputs!$CB$12,tbl_row,ROWS($A$29:A110)) -> 00:00:00 | B110: =IF(OR(B109=0,B109=B108),0,IF(AND(A110<>0,IF(YTM_YTC<>$L$1,A110<=$F$10,TRUE)),A110,IF(YTM_YTC<>$L$1,B109,IF(B109<INDEX(Table3[LAST_CALLABLE_DATE],tbl_row),EDATE(B109,$M$3),B109)))) -> 00:00:00 | C110: =IF(OR(AND(B110<>0,B110=B109),AND(B110<>0,B111=0)),"Amortização",IF(B111=0,0,"Cupão"&ROW()-ROW($C$29)+1-COUNTIF($C$28:C109,"Amortização"))) -> 0 | D110: =IF(AND(C110=0,C111=0),0,IF(B111=0,$C$20*IF(YTM_YTC="YTC Bruta",$F$18,1),$C$20*$C$13*IF(VLOOKUP($F$16,Convencoes,2,0)=1,1/VLOOKUP($F$15,Tabelas!$J$4:$K$8,2,0),YEARFRAC(B109,B110,VLOOKUP($F$16,Convencoes,2,0))))) -> 0 | F110: 0 | G110: 0 | H110: 0 | I110: 0
A111: =+OFFSET(Inputs!$CB$12,tbl_row,ROWS($A$29:A111)) -> 00:00:00 | B111: =IF(OR(B110=0,B110=B109),0,IF(AND(A111<>0,IF(YTM_YTC<>$L$1,A111<=$F$10,TRUE)),A111,IF(YTM_YTC<>$L$1,B110,IF(B110<INDEX(Table3[LAST_CALLABLE_DATE],tbl_row),EDATE(B110,$M$3),B110)))) -> 00:00:00 | C111: =IF(OR(AND(B111<>0,B111=B110),AND(B111<>0,B112=0)),"Amortização",IF(B112=0,0,"Cupão"&ROW()-ROW($C$29)+1-COUNTIF($C$28:C110,"Amortização"))) -> 0 | D111: =IF(AND(C111=0,C112=0),0,IF(B112=0,$C$20*IF(YTM_YTC="YTC Bruta",$F$18,1),$C$20*$C$13*IF(VLOOKUP($F$16,Convencoes,2,0)=1,1/VLOOKUP($F$15,Tabelas!$J$4:$K$8,2,0),YEARFRAC(B110,B111,VLOOKUP($F$16,Convencoes,2,0))))) -> 0 | F111: 0 | G111: 0 | H111: 0 | I111: 0
A112: =+OFFSET(Inputs!$CB$12,tbl_row,ROWS($A$29:A112)) -> 00:00:00 | B112: =IF(OR(B111=0,B111=B110),0,IF(AND(A112<>0,IF(YTM_YTC<>$L$1,A112<=$F$10,TRUE)),A112,IF(YTM_YTC<>$L$1,B111,IF(B111<INDEX(Table3[LAST_CALLABLE_DATE],tbl_row),EDATE(B111,$M$3),B111)))) -> 00:00:00 | C112: =IF(OR(AND(B112<>0,B112=B111),AND(B112<>0,B113=0)),"Amortização",IF(B113=0,0,"Cupão"&ROW()-ROW($C$29)+1-COUNTIF($C$28:C111,"Amortização"))) -> 0 | D112: =IF(AND(C112=0,C113=0),0,IF(B113=0,$C$20*IF(YTM_YTC="YTC Bruta",$F$18,1),$C$20*$C$13*IF(VLOOKUP($F$16,Convencoes,2,0)=1,1/VLOOKUP($F$15,Tabelas!$J$4:$K$8,2,0),YEARFRAC(B111,B112,VLOOKUP($F$16,Convencoes,2,0))))) -> 0 | F112: 0 | G112: 0 | H112: 0 | I112: 0
A113: =+OFFSET(Inputs!$CB$12,tbl_row,ROWS($A$29:A113)) -> 00:00:00 | B113: =IF(OR(B112=0,B112=B111),0,IF(AND(A113<>0,IF(YTM_YTC<>$L$1,A113<=$F$10,TRUE)),A113,IF(YTM_YTC<>$L$1,B112,IF(B112<INDEX(Table3[LAST_CALLABLE_DATE],tbl_row),EDATE(B112,$M$3),B112)))) -> 00:00:00 | C113: =IF(OR(AND(B113<>0,B113=B112),AND(B113<>0,B114=0)),"Amortização",IF(B114=0,0,"Cupão"&ROW()-ROW($C$29)+1-COUNTIF($C$28:C112,"Amortização"))) -> 0 | D113: =IF(AND(C113=0,C114=0),0,IF(B114=0,$C$20*IF(YTM_YTC="YTC Bruta",$F$18,1),$C$20*$C$13*IF(VLOOKUP($F$16,Convencoes,2,0)=1,1/VLOOKUP($F$15,Tabelas!$J$4:$K$8,2,0),YEARFRAC(B112,B113,VLOOKUP($F$16,Convencoes,2,0))))) -> 0 | F113: 0 | G113: 0 | H113: 0 | I113: 0
A114: =+OFFSET(Inputs!$CB$12,tbl_row,ROWS($A$29:A114)) -> 00:00:00 | B114: =IF(OR(B113=0,B113=B112),0,IF(AND(A114<>0,IF(YTM_YTC<>$L$1,A114<=$F$10,TRUE)),A114,IF(YTM_YTC<>$L$1,B113,IF(B113<INDEX(Table3[LAST_CALLABLE_DATE],tbl_row),EDATE(B113,$M$3),B113)))) -> 00:00:00 | C114: =IF(OR(AND(B114<>0,B114=B113),AND(B114<>0,B115=0)),"Amortização",IF(B115=0,0,"Cupão"&ROW()-ROW($C$29)+1-COUNTIF($C$28:C113,"Amortização"))) -> 0 | D114: =IF(AND(C114=0,C115=0),0,IF(B115=0,$C$20*IF(YTM_YTC="YTC Bruta",$F$18,1),$C$20*$C$13*IF(VLOOKUP($F$16,Convencoes,2,0)=1,1/VLOOKUP($F$15,Tabelas!$J$4:$K$8,2,0),YEARFRAC(B113,B114,VLOOKUP($F$16,Convencoes,2,0))))) -> 0 | F114: 0 | G114: 0 | H114: 0 | I114: 0
A115: =+OFFSET(Inputs!$CB$12,tbl_row,ROWS($A$29:A115)) -> 00:00:00 | B115: =IF(OR(B114=0,B114=B113),0,IF(AND(A115<>0,IF(YTM_YTC<>$L$1,A115<=$F$10,TRUE)),A115,IF(YTM_YTC<>$L$1,B114,IF(B114<INDEX(Table3[LAST_CALLABLE_DATE],tbl_row),EDATE(B114,$M$3),B114)))) -> 00:00:00 | C115: =IF(OR(AND(B115<>0,B115=B114),AND(B115<>0,B116=0)),"Amortização",IF(B116=0,0,"Cupão"&ROW()-ROW($C$29)+1-COUNTIF($C$28:C114,"Amortização"))) -> 0 | D115: =IF(AND(C115=0,C116=0),0,IF(B116=0,$C$20*IF(YTM_YTC="YTC Bruta",$F$18,1),$C$20*$C$13*IF(VLOOKUP($F$16,Convencoes,2,0)=1,1/VLOOKUP($F$15,Tabelas!$J$4:$K$8,2,0),YEARFRAC(B114,B115,VLOOKUP($F$16,Convencoes,2,0))))) -> 0 | F115: 0 | G115: 0 | H115: 0 | I115: 0
A116: =+OFFSET(Inputs!$CB$12,tbl_row,ROWS($A$29:A116)) -> 00:00:00 | B116: =IF(OR(B115=0,B115=B114),0,IF(AND(A116<>0,IF(YTM_YTC<>$L$1,A116<=$F$10,TRUE)),A116,IF(YTM_YTC<>$L$1,B115,IF(B115<INDEX(Table3[LAST_CALLABLE_DATE],tbl_row),EDATE(B115,$M$3),B115)))) -> 00:00:00 | C116: =IF(OR(AND(B116<>0,B116=B115),AND(B116<>0,B117=0)),"Amortização",IF(B117=0,0,"Cupão"&ROW()-ROW($C$29)+1-COUNTIF($C$28:C115,"Amortização"))) -> 0 | D116: =IF(AND(C116=0,C117=0),0,IF(B117=0,$C$20*IF(YTM_YTC="YTC Bruta",$F$18,1),$C$20*$C$13*IF(VLOOKUP($F$16,Convencoes,2,0)=1,1/VLOOKUP($F$15,Tabelas!$J$4:$K$8,2,0),YEARFRAC(B115,B116,VLOOKUP($F$16,Convencoes,2,0))))) -> 0 | F116: 0 | G116: 0 | H116: 0 | I116: 0
A117: =+OFFSET(Inputs!$CB$12,tbl_row,ROWS($A$29:A117)) -> 00:00:00 | B117: =IF(OR(B116=0,B116=B115),0,IF(AND(A117<>0,IF(YTM_YTC<>$L$1,A117<=$F$10,TRUE)),A117,IF(YTM_YTC<>$L$1,B116,IF(B116<INDEX(Table3[LAST_CALLABLE_DATE],tbl_row),EDATE(B116,$M$3),B116)))) -> 00:00:00 | C117: =IF(OR(AND(B117<>0,B117=B116),AND(B117<>0,B118=0)),"Amortização",IF(B118=0,0,"Cupão"&ROW()-ROW($C$29)+1-COUNTIF($C$28:C116,"Amortização"))) -> 0 | D117: =IF(AND(C117=0,C118=0),0,IF(B118=0,$C$20*IF(YTM_YTC="YTC Bruta",$F$18,1),$C$20*$C$13*IF(VLOOKUP($F$16,Convencoes,2,0)=1,1/VLOOKUP($F$15,Tabelas!$J$4:$K$8,2,0),YEARFRAC(B116,B117,VLOOKUP($F$16,Convencoes,2,0))))) -> 0 | F117: 0 | G117: 0 | H117: 0 | I117: 0
A118: =+OFFSET(Inputs!$CB$12,tbl_row,ROWS($A$29:A118)) -> 00:00:00 | B118: =IF(OR(B117=0,B117=B116),0,IF(AND(A118<>0,IF(YTM_YTC<>$L$1,A118<=$F$10,TRUE)),A118,IF(YTM_YTC<>$L$1,B117,IF(B117<INDEX(Table3[LAST_CALLABLE_DATE],tbl_row),EDATE(B117,$M$3),B117)))) -> 00:00:00 | C118: =IF(OR(AND(B118<>0,B118=B117),AND(B118<>0,B119=0)),"Amortização",IF(B119=0,0,"Cupão"&ROW()-ROW($C$29)+1-COUNTIF($C$28:C117,"Amortização"))) -> 0 | D118: =IF(AND(C118=0,C119=0),0,IF(B119=0,$C$20*IF(YTM_YTC="YTC Bruta",$F$18,1),$C$20*$C$13*IF(VLOOKUP($F$16,Convencoes,2,0)=1,1/VLOOKUP($F$15,Tabelas!$J$4:$K$8,2,0),YEARFRAC(B117,B118,VLOOKUP($F$16,Convencoes,2,0))))) -> 0 | F118: 0 | G118: 0 | H118: 0 | I118: 0
A119: =+OFFSET(Inputs!$CB$12,tbl_row,ROWS($A$29:A119)) -> 00:00:00 | B119: =IF(OR(B118=0,B118=B117),0,IF(AND(A119<>0,IF(YTM_YTC<>$L$1,A119<=$F$10,TRUE)),A119,IF(YTM_YTC<>$L$1,B118,IF(B118<INDEX(Table3[LAST_CALLABLE_DATE],tbl_row),EDATE(B118,$M$3),B118)))) -> 00:00:00 | C119: =IF(OR(AND(B119<>0,B119=B118),AND(B119<>0,B120=0)),"Amortização",IF(B120=0,0,"Cupão"&ROW()-ROW($C$29)+1-COUNTIF($C$28:C118,"Amortização"))) -> 0 | D119: =IF(AND(C119=0,C120=0),0,IF(B120=0,$C$20*IF(YTM_YTC="YTC Bruta",$F$18,1),$C$20*$C$13*IF(VLOOKUP($F$16,Convencoes,2,0)=1,1/VLOOKUP($F$15,Tabelas!$J$4:$K$8,2,0),YEARFRAC(B118,B119,VLOOKUP($F$16,Convencoes,2,0))))) -> 0 | F119: 0 | G119: 0 | H119: 0 | I119: 0
A120: =+OFFSET(Inputs!$CB$12,tbl_row,ROWS($A$29:A120)) -> 00:00:00 | B120: =IF(OR(B119=0,B119=B118),0,IF(AND(A120<>0,IF(YTM_YTC<>$L$1,A120<=$F$10,TRUE)),A120,IF(YTM_YTC<>$L$1,B119,IF(B119<INDEX(Table3[LAST_CALLABLE_DATE],tbl_row),EDATE(B119,$M$3),B119)))) -> 00:00:00 | C120: =IF(OR(AND(B120<>0,B120=B119),AND(B120<>0,B121=0)),"Amortização",IF(B121=0,0,"Cupão"&ROW()-ROW($C$29)+1-COUNTIF($C$28:C119,"Amortização"))) -> 0 | D120: =IF(AND(C120=0,C121=0),0,IF(B121=0,$C$20*IF(YTM_YTC="YTC Bruta",$F$18,1),$C$20*$C$13*IF(VLOOKUP($F$16,Convencoes,2,0)=1,1/VLOOKUP($F$15,Tabelas!$J$4:$K$8,2,0),YEARFRAC(B119,B120,VLOOKUP($F$16,Convencoes,2,0))))) -> 0 | F120: 0 | G120: 0 | H120: 0 | I120: 0
A121: =+OFFSET(Inputs!$CB$12,tbl_row,ROWS($A$29:A121)) -> 00:00:00 | B121: =IF(OR(B120=0,B120=B119),0,IF(AND(A121<>0,IF(YTM_YTC<>$L$1,A121<=$F$10,TRUE)),A121,IF(YTM_YTC<>$L$1,B120,IF(B120<INDEX(Table3[LAST_CALLABLE_DATE],tbl_row),EDATE(B120,$M$3),B120)))) -> 00:00:00 | C121: =IF(OR(AND(B121<>0,B121=B120),AND(B121<>0,B122=0)),"Amortização",IF(B122=0,0,"Cupão"&ROW()-ROW($C$29)+1-COUNTIF($C$28:C120,"Amortização"))) -> 0 | D121: =IF(AND(C121=0,C122=0),0,IF(B122=0,$C$20*IF(YTM_YTC="YTC Bruta",$F$18,1),$C$20*$C$13*IF(VLOOKUP($F$16,Convencoes,2,0)=1,1/VLOOKUP($F$15,Tabelas!$J$4:$K$8,2,0),YEARFRAC(B120,B121,VLOOKUP($F$16,Convencoes,2,0))))) -> 0 | F121: 0 | G121: 0 | H121: 0 | I121: 0
A122: =+OFFSET(Inputs!$CB$12,tbl_row,ROWS($A$29:A122)) -> 00:00:00 | B122: =IF(OR(B121=0,B121=B120),0,IF(AND(A122<>0,IF(YTM_YTC<>$L$1,A122<=$F$10,TRUE)),A122,IF(YTM_YTC<>$L$1,B121,IF(B121<INDEX(Table3[LAST_CALLABLE_DATE],tbl_row),EDATE(B121,$M$3),B121)))) -> 00:00:00 | C122: =IF(OR(AND(B122<>0,B122=B121),AND(B122<>0,B123=0)),"Amortização",IF(B123=0,0,"Cupão"&ROW()-ROW($C$29)+1-COUNTIF($C$28:C121,"Amortização"))) -> 0 | D122: =IF(AND(C122=0,C123=0),0,IF(B123=0,$C$20*IF(YTM_YTC="YTC Bruta",$F$18,1),$C$20*$C$13*IF(VLOOKUP($F$16,Convencoes,2,0)=1,1/VLOOKUP($F$15,Tabelas!$J$4:$K$8,2,0),YEARFRAC(B121,B122,VLOOKUP($F$16,Convencoes,2,0))))) -> 0 | F122: 0 | G122: 0 | H122: 0 | I122: 0
A123: =+OFFSET(Inputs!$CB$12,tbl_row,ROWS($A$29:A123)) -> 00:00:00 | B123: =IF(OR(B122=0,B122=B121),0,IF(AND(A123<>0,IF(YTM_YTC<>$L$1,A123<=$F$10,TRUE)),A123,IF(YTM_YTC<>$L$1,B122,IF(B122<INDEX(Table3[LAST_CALLABLE_DATE],tbl_row),EDATE(B122,$M$3),B122)))) -> 00:00:00 | C123: =IF(OR(AND(B123<>0,B123=B122),AND(B123<>0,B124=0)),"Amortização",IF(B124=0,0,"Cupão"&ROW()-ROW($C$29)+1-COUNTIF($C$28:C122,"Amortização"))) -> 0 | D123: =IF(AND(C123=0,C124=0),0,IF(B124=0,$C$20*IF(YTM_YTC="YTC Bruta",$F$18,1),$C$20*$C$13*IF(VLOOKUP($F$16,Convencoes,2,0)=1,1/VLOOKUP($F$15,Tabelas!$J$4:$K$8,2,0),YEARFRAC(B122,B123,VLOOKUP($F$16,Convencoes,2,0))))) -> 0 | F123: 0 | G123: 0 | H123: 0 | I123: 0
A124: =+OFFSET(Inputs!$CB$12,tbl_row,ROWS($A$29:A124)) -> 00:00:00 | B124: =IF(OR(B123=0,B123=B122),0,IF(AND(A124<>0,IF(YTM_YTC<>$L$1,A124<=$F$10,TRUE)),A124,IF(YTM_YTC<>$L$1,B123,IF(B123<INDEX(Table3[LAST_CALLABLE_DATE],tbl_row),EDATE(B123,$M$3),B123)))) -> 00:00:00 | C124: =IF(OR(AND(B124<>0,B124=B123),AND(B124<>0,B125=0)),"Amortização",IF(B125=0,0,"Cupão"&ROW()-ROW($C$29)+1-COUNTIF($C$28:C123,"Amortização"))) -> 0 | D124: =IF(AND(C124=0,C125=0),0,IF(B125=0,$C$20*IF(YTM_YTC="YTC Bruta",$F$18,1),$C$20*$C$13*IF(VLOOKUP($F$16,Convencoes,2,0)=1,1/VLOOKUP($F$15,Tabelas!$J$4:$K$8,2,0),YEARFRAC(B123,B124,VLOOKUP($F$16,Convencoes,2,0))))) -> 0 | F124: 0 | G124: 0 | H124: 0 | I124: 0
A125: =+OFFSET(Inputs!$CB$12,tbl_row,ROWS($A$29:A125)) -> 00:00:00 | B125: =IF(OR(B124=0,B124=B123),0,IF(AND(A125<>0,IF(YTM_YTC<>$L$1,A125<=$F$10,TRUE)),A125,IF(YTM_YTC<>$L$1,B124,IF(B124<INDEX(Table3[LAST_CALLABLE_DATE],tbl_row),EDATE(B124,$M$3),B124)))) -> 00:00:00 | C125: =IF(OR(AND(B125<>0,B125=B124),AND(B125<>0,B126=0)),"Amortização",IF(B126=0,0,"Cupão"&ROW()-ROW($C$29)+1-COUNTIF($C$28:C124,"Amortização"))) -> 0 | D125: =IF(AND(C125=0,C126=0),0,IF(B126=0,$C$20*IF(YTM_YTC="YTC Bruta",$F$18,1),$C$20*$C$13*IF(VLOOKUP($F$16,Convencoes,2,0)=1,1/VLOOKUP($F$15,Tabelas!$J$4:$K$8,2,0),YEARFRAC(B124,B125,VLOOKUP($F$16,Convencoes,2,0))))) -> 0 | F125: 0 | G125: 0 | H125: 0 | I125: 0
A126: =+OFFSET(Inputs!$CB$12,tbl_row,ROWS($A$29:A126)) -> 00:00:00 | B126: =IF(OR(B125=0,B125=B124),0,IF(AND(A126<>0,IF(YTM_YTC<>$L$1,A126<=$F$10,TRUE)),A126,IF(YTM_YTC<>$L$1,B125,IF(B125<INDEX(Table3[LAST_CALLABLE_DATE],tbl_row),EDATE(B125,$M$3),B125)))) -> 00:00:00 | C126: =IF(OR(AND(B126<>0,B126=B125),AND(B126<>0,B127=0)),"Amortização",IF(B127=0,0,"Cupão"&ROW()-ROW($C$29)+1-COUNTIF($C$28:C125,"Amortização"))) -> 0 | D126: =IF(AND(C126=0,C127=0),0,IF(B127=0,$C$20*IF(YTM_YTC="YTC Bruta",$F$18,1),$C$20*$C$13*IF(VLOOKUP($F$16,Convencoes,2,0)=1,1/VLOOKUP($F$15,Tabelas!$J$4:$K$8,2,0),YEARFRAC(B125,B126,VLOOKUP($F$16,Convencoes,2,0))))) -> 0 | F126: 0 | G126: 0 | H126: 0 | I126: 0
A127: =+OFFSET(Inputs!$CB$12,tbl_row,ROWS($A$29:A127)) -> 00:00:00 | B127: =IF(OR(B126=0,B126=B125),0,IF(AND(A127<>0,IF(YTM_YTC<>$L$1,A127<=$F$10,TRUE)),A127,IF(YTM_YTC<>$L$1,B126,IF(B126<INDEX(Table3[LAST_CALLABLE_DATE],tbl_row),EDATE(B126,$M$3),B126)))) -> 00:00:00 | C127: =IF(OR(AND(B127<>0,B127=B126),AND(B127<>0,B128=0)),"Amortização",IF(B128=0,0,"Cupão"&ROW()-ROW($C$29)+1-COUNTIF($C$28:C126,"Amortização"))) -> 0 | D127: =IF(AND(C127=0,C128=0),0,IF(B128=0,$C$20*IF(YTM_YTC="YTC Bruta",$F$18,1),$C$20*$C$13*IF(VLOOKUP($F$16,Convencoes,2,0)=1,1/VLOOKUP($F$15,Tabelas!$J$4:$K$8,2,0),YEARFRAC(B126,B127,VLOOKUP($F$16,Convencoes,2,0))))) -> 0 | F127: 0 | G127: 0 | H127: 0 | I127: 0
A128: =+OFFSET(Inputs!$CB$12,tbl_row,ROWS($A$29:A128)) -> 00:00:00 | B128: =IF(OR(B127=0,B127=B126),0,IF(AND(A128<>0,IF(YTM_YTC<>$L$1,A128<=$F$10,TRUE)),A128,IF(YTM_YTC<>$L$1,B127,IF(B127<INDEX(Table3[LAST_CALLABLE_DATE],tbl_row),EDATE(B127,$M$3),B127)))) -> 00:00:00 | C128: =IF(OR(AND(B128<>0,B128=B127),AND(B128<>0,B129=0)),"Amortização",IF(B129=0,0,"Cupão"&ROW()-ROW($C$29)+1-COUNTIF($C$28:C127,"Amortização"))) -> 0 | D128: =IF(AND(C128=0,C129=0),0,IF(B129=0,$C$20*IF(YTM_YTC="YTC Bruta",$F$18,1),$C$20*$C$13*IF(VLOOKUP($F$16,Convencoes,2,0)=1,1/VLOOKUP($F$15,Tabelas!$J$4:$K$8,2,0),YEARFRAC(B127,B128,VLOOKUP($F$16,Convencoes,2,0))))) -> 0 | F128: 0 | G128: 0 | H128: 0 | I128: 0
A129: =+OFFSET(Inputs!$CB$12,tbl_row,ROWS($A$29:A129)) -> 00:00:00 | B129: =IF(OR(B128=0,B128=B127),0,IF(AND(A129<>0,IF(YTM_YTC<>$L$1,A129<=$F$10,TRUE)),A129,IF(YTM_YTC<>$L$1,B128,IF(B128<INDEX(Table3[LAST_CALLABLE_DATE],tbl_row),EDATE(B128,$M$3),B128)))) -> 00:00:00 | C129: =IF(OR(AND(B129<>0,B129=B128),AND(B129<>0,B130=0)),"Amortização",IF(B130=0,0,"Cupão"&ROW()-ROW($C$29)+1-COUNTIF($C$28:C128,"Amortização"))) -> 0 | D129: =IF(AND(C129=0,C130=0),0,IF(B130=0,$C$20*IF(YTM_YTC="YTC Bruta",$F$18,1),$C$20*$C$13*IF(VLOOKUP($F$16,Convencoes,2,0)=1,1/VLOOKUP($F$15,Tabelas!$J$4:$K$8,2,0),YEARFRAC(B128,B129,VLOOKUP($F$16,Convencoes,2,0))))) -> 0 | F129: 0 | G129: 0 | H129: 0 | I129: 0
A130: =+OFFSET(Inputs!$CB$12,tbl_row,ROWS($A$29:A130)) -> 00:00:00 | B130: =IF(OR(B129=0,B129=B128),0,IF(AND(A130<>0,IF(YTM_YTC<>$L$1,A130<=$F$10,TRUE)),A130,IF(YTM_YTC<>$L$1,B129,IF(B129<INDEX(Table3[LAST_CALLABLE_DATE],tbl_row),EDATE(B129,$M$3),B129)))) -> 00:00:00 | C130: =IF(OR(AND(B130<>0,B130=B129),AND(B130<>0,B131=0)),"Amortização",IF(B131=0,0,"Cupão"&ROW()-ROW($C$29)+1-COUNTIF($C$28:C129,"Amortização"))) -> 0 | D130: =IF(AND(C130=0,C131=0),0,IF(B131=0,$C$20*IF(YTM_YTC="YTC Bruta",$F$18,1),$C$20*$C$13*IF(VLOOKUP($F$16,Convencoes,2,0)=1,1/VLOOKUP($F$15,Tabelas!$J$4:$K$8,2,0),YEARFRAC(B129,B130,VLOOKUP($F$16,Convencoes,2,0))))) -> 0 | F130: 0 | G130: 0 | H130: 0 | I130: 0
A131: =+OFFSET(Inputs!$CB$12,tbl_row,ROWS($A$29:A131)) -> 00:00:00 | B131: =IF(OR(B130=0,B130=B129),0,IF(AND(A131<>0,IF(YTM_YTC<>$L$1,A131<=$F$10,TRUE)),A131,IF(YTM_YTC<>$L$1,B130,IF(B130<INDEX(Table3[LAST_CALLABLE_DATE],tbl_row),EDATE(B130,$M$3),B130)))) -> 00:00:00 | C131: =IF(OR(AND(B131<>0,B131=B130),AND(B131<>0,B132=0)),"Amortização",IF(B132=0,0,"Cupão"&ROW()-ROW($C$29)+1-COUNTIF($C$28:C130,"Amortização"))) -> 0 | D131: =IF(AND(C131=0,C132=0),0,IF(B132=0,$C$20*IF(YTM_YTC="YTC Bruta",$F$18,1),$C$20*$C$13*IF(VLOOKUP($F$16,Convencoes,2,0)=1,1/VLOOKUP($F$15,Tabelas!$J$4:$K$8,2,0),YEARFRAC(B130,B131,VLOOKUP($F$16,Convencoes,2,0))))) -> 0 | F131: 0 | G131: 0 | H131: 0 | I131: 0
A132: =+OFFSET(Inputs!$CB$12,tbl_row,ROWS($A$29:A132)) -> 00:00:00 | B132: =IF(OR(B131=0,B131=B130),0,IF(AND(A132<>0,IF(YTM_YTC<>$L$1,A132<=$F$10,TRUE)),A132,IF(YTM_YTC<>$L$1,B131,IF(B131<INDEX(Table3[LAST_CALLABLE_DATE],tbl_row),EDATE(B131,$M$3),B131)))) -> 00:00:00 | C132: =IF(OR(AND(B132<>0,B132=B131),AND(B132<>0,B133=0)),"Amortização",IF(B133=0,0,"Cupão"&ROW()-ROW($C$29)+1-COUNTIF($C$28:C131,"Amortização"))) -> 0 | D132: =IF(AND(C132=0,C133=0),0,IF(B133=0,$C$20*IF(YTM_YTC="YTC Bruta",$F$18,1),$C$20*$C$13*IF(VLOOKUP($F$16,Convencoes,2,0)=1,1/VLOOKUP($F$15,Tabelas!$J$4:$K$8,2,0),YEARFRAC(B131,B132,VLOOKUP($F$16,Convencoes,2,0))))) -> 0 | F132: 0 | G132: 0 | H132: 0 | I132: 0
A133: =+OFFSET(Inputs!$CB$12,tbl_row,ROWS($A$29:A133)) -> 00:00:00 | B133: =IF(OR(B132=0,B132=B131),0,IF(AND(A133<>0,IF(YTM_YTC<>$L$1,A133<=$F$10,TRUE)),A133,IF(YTM_YTC<>$L$1,B132,IF(B132<INDEX(Table3[LAST_CALLABLE_DATE],tbl_row),EDATE(B132,$M$3),B132)))) -> 00:00:00 | C133: =IF(OR(AND(B133<>0,B133=B132),AND(B133<>0,B134=0)),"Amortização",IF(B134=0,0,"Cupão"&ROW()-ROW($C$29)+1-COUNTIF($C$28:C132,"Amortização"))) -> 0 | D133: =IF(AND(C133=0,C134=0),0,IF(B134=0,$C$20*IF(YTM_YTC="YTC Bruta",$F$18,1),$C$20*$C$13*IF(VLOOKUP($F$16,Convencoes,2,0)=1,1/VLOOKUP($F$15,Tabelas!$J$4:$K$8,2,0),YEARFRAC(B132,B133,VLOOKUP($F$16,Convencoes,2,0))))) -> 0 | F133: 0 | G133: 0 | H133: 0 | I133: 0
A134: =+OFFSET(Inputs!$CB$12,tbl_row,ROWS($A$29:A134)) -> 00:00:00 | B134: =IF(OR(B133=0,B133=B132),0,IF(AND(A134<>0,IF(YTM_YTC<>$L$1,A134<=$F$10,TRUE)),A134,IF(YTM_YTC<>$L$1,B133,IF(B133<INDEX(Table3[LAST_CALLABLE_DATE],tbl_row),EDATE(B133,$M$3),B133)))) -> 00:00:00 | C134: =IF(OR(AND(B134<>0,B134=B133),AND(B134<>0,B135=0)),"Amortização",IF(B135=0,0,"Cupão"&ROW()-ROW($C$29)+1-COUNTIF($C$28:C133,"Amortização"))) -> 0 | D134: =IF(AND(C134=0,C135=0),0,IF(B135=0,$C$20*IF(YTM_YTC="YTC Bruta",$F$18,1),$C$20*$C$13*IF(VLOOKUP($F$16,Convencoes,2,0)=1,1/VLOOKUP($F$15,Tabelas!$J$4:$K$8,2,0),YEARFRAC(B133,B134,VLOOKUP($F$16,Convencoes,2,0))))) -> 0 | F134: 0 | G134: 0 | H134: 0 | I134: 0
A135: =+OFFSET(Inputs!$CB$12,tbl_row,ROWS($A$29:A135)) -> 00:00:00 | B135: =IF(OR(B134=0,B134=B133),0,IF(AND(A135<>0,IF(YTM_YTC<>$L$1,A135<=$F$10,TRUE)),A135,IF(YTM_YTC<>$L$1,B134,IF(B134<INDEX(Table3[LAST_CALLABLE_DATE],tbl_row),EDATE(B134,$M$3),B134)))) -> 00:00:00 | C135: =IF(OR(AND(B135<>0,B135=B134),AND(B135<>0,B136=0)),"Amortização",IF(B136=0,0,"Cupão"&ROW()-ROW($C$29)+1-COUNTIF($C$28:C134,"Amortização"))) -> 0 | D135: =IF(AND(C135=0,C136=0),0,IF(B136=0,$C$20*IF(YTM_YTC="YTC Bruta",$F$18,1),$C$20*$C$13*IF(VLOOKUP($F$16,Convencoes,2,0)=1,1/VLOOKUP($F$15,Tabelas!$J$4:$K$8,2,0),YEARFRAC(B134,B135,VLOOKUP($F$16,Convencoes,2,0))))) -> 0 | F135: 0 | G135: 0 | H135: 0 | I135: 0
A136: =+OFFSET(Inputs!$CB$12,tbl_row,ROWS($A$29:A136)) -> 00:00:00 | B136: =IF(OR(B135=0,B135=B134),0,IF(AND(A136<>0,IF(YTM_YTC<>$L$1,A136<=$F$10,TRUE)),A136,IF(YTM_YTC<>$L$1,B135,IF(B135<INDEX(Table3[LAST_CALLABLE_DATE],tbl_row),EDATE(B135,$M$3),B135)))) -> 00:00:00 | C136: =IF(OR(AND(B136<>0,B136=B135),AND(B136<>0,B137=0)),"Amortização",IF(B137=0,0,"Cupão"&ROW()-ROW($C$29)+1-COUNTIF($C$28:C135,"Amortização"))) -> 0 | D136: =IF(AND(C136=0,C137=0),0,IF(B137=0,$C$20*IF(YTM_YTC="YTC Bruta",$F$18,1),$C$20*$C$13*IF(VLOOKUP($F$16,Convencoes,2,0)=1,1/VLOOKUP($F$15,Tabelas!$J$4:$K$8,2,0),YEARFRAC(B135,B136,VLOOKUP($F$16,Convencoes,2,0))))) -> 0 | F136: 0 | G136: 0 | H136: 0 | I136: 0
A137: =+OFFSET(Inputs!$CB$12,tbl_row,ROWS($A$29:A137)) -> 00:00:00 | B137: =IF(OR(B136=0,B136=B135),0,IF(AND(A137<>0,IF(YTM_YTC<>$L$1,A137<=$F$10,TRUE)),A137,IF(YTM_YTC<>$L$1,B136,IF(B136<INDEX(Table3[LAST_CALLABLE_DATE],tbl_row),EDATE(B136,$M$3),B136)))) -> 00:00:00 | C137: =IF(OR(AND(B137<>0,B137=B136),AND(B137<>0,B138=0)),"Amortização",IF(B138=0,0,"Cupão"&ROW()-ROW($C$29)+1-COUNTIF($C$28:C136,"Amortização"))) -> 0 | D137: =IF(AND(C137=0,C138=0),0,IF(B138=0,$C$20*IF(YTM_YTC="YTC Bruta",$F$18,1),$C$20*$C$13*IF(VLOOKUP($F$16,Convencoes,2,0)=1,1/VLOOKUP($F$15,Tabelas!$J$4:$K$8,2,0),YEARFRAC(B136,B137,VLOOKUP($F$16,Convencoes,2,0))))) -> 0 | F137: 0 | G137: 0 | H137: 0 | I137: 0
A138: =+OFFSET(Inputs!$CB$12,tbl_row,ROWS($A$29:A138)) -> 00:00:00 | B138: =IF(OR(B137=0,B137=B136),0,IF(AND(A138<>0,IF(YTM_YTC<>$L$1,A138<=$F$10,TRUE)),A138,IF(YTM_YTC<>$L$1,B137,IF(B137<INDEX(Table3[LAST_CALLABLE_DATE],tbl_row),EDATE(B137,$M$3),B137)))) -> 00:00:00 | C138: =IF(OR(AND(B138<>0,B138=B137),AND(B138<>0,B139=0)),"Amortização",IF(B139=0,0,"Cupão"&ROW()-ROW($C$29)+1-COUNTIF($C$28:C137,"Amortização"))) -> 0 | D138: =IF(AND(C138=0,C139=0),0,IF(B139=0,$C$20*IF(YTM_YTC="YTC Bruta",$F$18,1),$C$20*$C$13*IF(VLOOKUP($F$16,Convencoes,2,0)=1,1/VLOOKUP($F$15,Tabelas!$J$4:$K$8,2,0),YEARFRAC(B137,B138,VLOOKUP($F$16,Convencoes,2,0))))) -> 0 | F138: 0 | G138: 0 | H138: 0 | I138: 0
A139: =+OFFSET(Inputs!$CB$12,tbl_row,ROWS($A$29:A139)) -> 00:00:00 | B139: =IF(OR(B138=0,B138=B137),0,IF(AND(A139<>0,IF(YTM_YTC<>$L$1,A139<=$F$10,TRUE)),A139,IF(YTM_YTC<>$L$1,B138,IF(B138<INDEX(Table3[LAST_CALLABLE_DATE],tbl_row),EDATE(B138,$M$3),B138)))) -> 00:00:00 | C139: =IF(OR(AND(B139<>0,B139=B138),AND(B139<>0,B140=0)),"Amortização",IF(B140=0,0,"Cupão"&ROW()-ROW($C$29)+1-COUNTIF($C$28:C138,"Amortização"))) -> 0 | D139: =IF(AND(C139=0,C140=0),0,IF(B140=0,$C$20*IF(YTM_YTC="YTC Bruta",$F$18,1),$C$20*$C$13*IF(VLOOKUP($F$16,Convencoes,2,0)=1,1/VLOOKUP($F$15,Tabelas!$J$4:$K$8,2,0),YEARFRAC(B138,B139,VLOOKUP($F$16,Convencoes,2,0))))) -> 0 | F139: 0 | G139: 0 | H139: 0 | I139: 0
A140: =+OFFSET(Inputs!$CB$12,tbl_row,ROWS($A$29:A140)) -> 00:00:00 | B140: =IF(OR(B139=0,B139=B138),0,IF(AND(A140<>0,IF(YTM_YTC<>$L$1,A140<=$F$10,TRUE)),A140,IF(YTM_YTC<>$L$1,B139,IF(B139<INDEX(Table3[LAST_CALLABLE_DATE],tbl_row),EDATE(B139,$M$3),B139)))) -> 00:00:00 | C140: =IF(OR(AND(B140<>0,B140=B139),AND(B140<>0,B141=0)),"Amortização",IF(B141=0,0,"Cupão"&ROW()-ROW($C$29)+1-COUNTIF($C$28:C139,"Amortização"))) -> 0 | D140: =IF(AND(C140=0,C141=0),0,IF(B141=0,$C$20*IF(YTM_YTC="YTC Bruta",$F$18,1),$C$20*$C$13*IF(VLOOKUP($F$16,Convencoes,2,0)=1,1/VLOOKUP($F$15,Tabelas!$J$4:$K$8,2,0),YEARFRAC(B139,B140,VLOOKUP($F$16,Convencoes,2,0))))) -> 0 | F140: 0 | G140: 0 | H140: 0 | I140: 0
A141: =+OFFSET(Inputs!$CB$12,tbl_row,ROWS($A$29:A141)) -> 00:00:00 | B141: =IF(OR(B140=0,B140=B139),0,IF(AND(A141<>0,IF(YTM_YTC<>$L$1,A141<=$F$10,TRUE)),A141,IF(YTM_YTC<>$L$1,B140,IF(B140<INDEX(Table3[LAST_CALLABLE_DATE],tbl_row),EDATE(B140,$M$3),B140)))) -> 00:00:00 | C141: =IF(OR(AND(B141<>0,B141=B140),AND(B141<>0,B142=0)),"Amortização",IF(B142=0,0,"Cupão"&ROW()-ROW($C$29)+1-COUNTIF($C$28:C140,"Amortização"))) -> 0 | D141: =IF(AND(C141=0,C142=0),0,IF(B142=0,$C$20*IF(YTM_YTC="YTC Bruta",$F$18,1),$C$20*$C$13*IF(VLOOKUP($F$16,Convencoes,2,0)=1,1/VLOOKUP($F$15,Tabelas!$J$4:$K$8,2,0),YEARFRAC(B140,B141,VLOOKUP($F$16,Convencoes,2,0))))) -> 0 | F141: 0 | G141: 0 | H141: 0 | I141: 0
A142: =+OFFSET(Inputs!$CB$12,tbl_row,ROWS($A$29:A142)) -> 00:00:00 | B142: =IF(OR(B141=0,B141=B140),0,IF(AND(A142<>0,IF(YTM_YTC<>$L$1,A142<=$F$10,TRUE)),A142,IF(YTM_YTC<>$L$1,B141,IF(B141<INDEX(Table3[LAST_CALLABLE_DATE],tbl_row),EDATE(B141,$M$3),B141)))) -> 00:00:00 | C142: =IF(OR(AND(B142<>0,B142=B141),AND(B142<>0,B143=0)),"Amortização",IF(B143=0,0,"Cupão"&ROW()-ROW($C$29)+1-COUNTIF($C$28:C141,"Amortização"))) -> 0 | D142: =IF(AND(C142=0,C143=0),0,IF(B143=0,$C$20*IF(YTM_YTC="YTC Bruta",$F$18,1),$C$20*$C$13*IF(VLOOKUP($F$16,Convencoes,2,0)=1,1/VLOOKUP($F$15,Tabelas!$J$4:$K$8,2,0),YEARFRAC(B141,B142,VLOOKUP($F$16,Convencoes,2,0))))) -> 0 | F142: 0 | G142: 0 | H142: 0 | I142: 0
A143: =+OFFSET(Inputs!$CB$12,tbl_row,ROWS($A$29:A143)) -> 00:00:00 | B143: =IF(OR(B142=0,B142=B141),0,IF(AND(A143<>0,IF(YTM_YTC<>$L$1,A143<=$F$10,TRUE)),A143,IF(YTM_YTC<>$L$1,B142,IF(B142<INDEX(Table3[LAST_CALLABLE_DATE],tbl_row),EDATE(B142,$M$3),B142)))) -> 00:00:00 | C143: =IF(OR(AND(B143<>0,B143=B142),AND(B143<>0,B144=0)),"Amortização",IF(B144=0,0,"Cupão"&ROW()-ROW($C$29)+1-COUNTIF($C$28:C142,"Amortização"))) -> 0 | D143: =IF(AND(C143=0,C144=0),0,IF(B144=0,$C$20*IF(YTM_YTC="YTC Bruta",$F$18,1),$C$20*$C$13*IF(VLOOKUP($F$16,Convencoes,2,0)=1,1/VLOOKUP($F$15,Tabelas!$J$4:$K$8,2,0),YEARFRAC(B142,B143,VLOOKUP($F$16,Convencoes,2,0))))) -> 0 | F143: 0 | G143: 0 | H143: 0 | I143: 0
A144: =+OFFSET(Inputs!$CB$12,tbl_row,ROWS($A$29:A144)) -> 00:00:00 | B144: =IF(OR(B143=0,B143=B142),0,IF(AND(A144<>0,IF(YTM_YTC<>$L$1,A144<=$F$10,TRUE)),A144,IF(YTM_YTC<>$L$1,B143,IF(B143<INDEX(Table3[LAST_CALLABLE_DATE],tbl_row),EDATE(B143,$M$3),B143)))) -> 00:00:00 | C144: =IF(OR(AND(B144<>0,B144=B143),AND(B144<>0,B145=0)),"Amortização",IF(B145=0,0,"Cupão"&ROW()-ROW($C$29)+1-COUNTIF($C$28:C143,"Amortização"))) -> 0 | D144: =IF(AND(C144=0,C145=0),0,IF(B145=0,$C$20*IF(YTM_YTC="YTC Bruta",$F$18,1),$C$20*$C$13*IF(VLOOKUP($F$16,Convencoes,2,0)=1,1/VLOOKUP($F$15,Tabelas!$J$4:$K$8,2,0),YEARFRAC(B143,B144,VLOOKUP($F$16,Convencoes,2,0))))) -> 0 | F144: 0 | G144: 0 | H144: 0 | I144: 0
A145: =+OFFSET(Inputs!$CB$12,tbl_row,ROWS($A$29:A145)) -> 00:00:00 | B145: =IF(OR(B144=0,B144=B143),0,IF(AND(A145<>0,IF(YTM_YTC<>$L$1,A145<=$F$10,TRUE)),A145,IF(YTM_YTC<>$L$1,B144,IF(B144<INDEX(Table3[LAST_CALLABLE_DATE],tbl_row),EDATE(B144,$M$3),B144)))) -> 00:00:00 | C145: =IF(OR(AND(B145<>0,B145=B144),AND(B145<>0,B146=0)),"Amortização",IF(B146=0,0,"Cupão"&ROW()-ROW($C$29)+1-COUNTIF($C$28:C144,"Amortização"))) -> 0 | D145: =IF(AND(C145=0,C146=0),0,IF(B146=0,$C$20*IF(YTM_YTC="YTC Bruta",$F$18,1),$C$20*$C$13*IF(VLOOKUP($F$16,Convencoes,2,0)=1,1/VLOOKUP($F$15,Tabelas!$J$4:$K$8,2,0),YEARFRAC(B144,B145,VLOOKUP($F$16,Convencoes,2,0))))) -> 0 | F145: 0 | G145: 0 | H145: 0 | I145: 0
A146: =+OFFSET(Inputs!$CB$12,tbl_row,ROWS($A$29:A146)) -> 00:00:00 | B146: =IF(OR(B145=0,B145=B144),0,IF(AND(A146<>0,IF(YTM_YTC<>$L$1,A146<=$F$10,TRUE)),A146,IF(YTM_YTC<>$L$1,B145,IF(B145<INDEX(Table3[LAST_CALLABLE_DATE],tbl_row),EDATE(B145,$M$3),B145)))) -> 00:00:00 | C146: =IF(OR(AND(B146<>0,B146=B145),AND(B146<>0,B147=0)),"Amortização",IF(B147=0,0,"Cupão"&ROW()-ROW($C$29)+1-COUNTIF($C$28:C145,"Amortização"))) -> 0 | D146: =IF(AND(C146=0,C147=0),0,IF(B147=0,$C$20*IF(YTM_YTC="YTC Bruta",$F$18,1),$C$20*$C$13*IF(VLOOKUP($F$16,Convencoes,2,0)=1,1/VLOOKUP($F$15,Tabelas!$J$4:$K$8,2,0),YEARFRAC(B145,B146,VLOOKUP($F$16,Convencoes,2,0))))) -> 0 | F146: 0 | G146: 0 | H146: 0 | I146: 0
A147: =+OFFSET(Inputs!$CB$12,tbl_row,ROWS($A$29:A147)) -> 00:00:00 | B147: =IF(OR(B146=0,B146=B145),0,IF(AND(A147<>0,IF(YTM_YTC<>$L$1,A147<=$F$10,TRUE)),A147,IF(YTM_YTC<>$L$1,B146,IF(B146<INDEX(Table3[LAST_CALLABLE_DATE],tbl_row),EDATE(B146,$M$3),B146)))) -> 00:00:00 | C147: =IF(OR(AND(B147<>0,B147=B146),AND(B147<>0,B148=0)),"Amortização",IF(B148=0,0,"Cupão"&ROW()-ROW($C$29)+1-COUNTIF($C$28:C146,"Amortização"))) -> 0 | D147: =IF(AND(C147=0,C148=0),0,IF(B148=0,$C$20*IF(YTM_YTC="YTC Bruta",$F$18,1),$C$20*$C$13*IF(VLOOKUP($F$16,Convencoes,2,0)=1,1/VLOOKUP($F$15,Tabelas!$J$4:$K$8,2,0),YEARFRAC(B146,B147,VLOOKUP($F$16,Convencoes,2,0))))) -> 0 | F147: 0 | G147: 0 | H147: 0 | I147: 0
A148: =+OFFSET(Inputs!$CB$12,tbl_row,ROWS($A$29:A148)) -> 00:00:00 | B148: =IF(OR(B147=0,B147=B146),0,IF(AND(A148<>0,IF(YTM_YTC<>$L$1,A148<=$F$10,TRUE)),A148,IF(YTM_YTC<>$L$1,B147,IF(B147<INDEX(Table3[LAST_CALLABLE_DATE],tbl_row),EDATE(B147,$M$3),B147)))) -> 00:00:00 | C148: =IF(OR(AND(B148<>0,B148=B147),AND(B148<>0,B149=0)),"Amortização",IF(B149=0,0,"Cupão"&ROW()-ROW($C$29)+1-COUNTIF($C$28:C147,"Amortização"))) -> 0 | D148: =IF(AND(C148=0,C149=0),0,IF(B149=0,$C$20*IF(YTM_YTC="YTC Bruta",$F$18,1),$C$20*$C$13*IF(VLOOKUP($F$16,Convencoes,2,0)=1,1/VLOOKUP($F$15,Tabelas!$J$4:$K$8,2,0),YEARFRAC(B147,B148,VLOOKUP($F$16,Convencoes,2,0))))) -> 0 | F148: 0 | G148: 0 | H148: 0 | I148: 0
A149: =+OFFSET(Inputs!$CB$12,tbl_row,ROWS($A$29:A149)) -> 00:00:00 | B149: =IF(OR(B148=0,B148=B147),0,IF(AND(A149<>0,IF(YTM_YTC<>$L$1,A149<=$F$10,TRUE)),A149,IF(YTM_YTC<>$L$1,B148,IF(B148<INDEX(Table3[LAST_CALLABLE_DATE],tbl_row),EDATE(B148,$M$3),B148)))) -> 00:00:00 | C149: =IF(OR(AND(B149<>0,B149=B148),AND(B149<>0,B150=0)),"Amortização",IF(B150=0,0,"Cupão"&ROW()-ROW($C$29)+1-COUNTIF($C$28:C148,"Amortização"))) -> 0 | D149: =IF(AND(C149=0,C150=0),0,IF(B150=0,$C$20*IF(YTM_YTC="YTC Bruta",$F$18,1),$C$20*$C$13*IF(VLOOKUP($F$16,Convencoes,2,0)=1,1/VLOOKUP($F$15,Tabelas!$J$4:$K$8,2,0),YEARFRAC(B148,B149,VLOOKUP($F$16,Convencoes,2,0))))) -> 0 | F149: 0 | G149: 0 | H149: 0 | I149: 0
A150: =+OFFSET(Inputs!$CB$12,tbl_row,ROWS($A$29:A150)) -> 00:00:00 | B150: =IF(OR(B149=0,B149=B148),0,IF(AND(A150<>0,IF(YTM_YTC<>$L$1,A150<=$F$10,TRUE)),A150,IF(YTM_YTC<>$L$1,B149,IF(B149<INDEX(Table3[LAST_CALLABLE_DATE],tbl_row),EDATE(B149,$M$3),B149)))) -> 00:00:00 | C150: =IF(OR(AND(B150<>0,B150=B149),AND(B150<>0,B151=0)),"Amortização",IF(B151=0,0,"Cupão"&ROW()-ROW($C$29)+1-COUNTIF($C$28:C149,"Amortização"))) -> 0 | D150: =IF(AND(C150=0,C151=0),0,IF(B151=0,$C$20*IF(YTM_YTC="YTC Bruta",$F$18,1),$C$20*$C$13*IF(VLOOKUP($F$16,Convencoes,2,0)=1,1/VLOOKUP($F$15,Tabelas!$J$4:$K$8,2,0),YEARFRAC(B149,B150,VLOOKUP($F$16,Convencoes,2,0))))) -> 0 | F150: 0 | G150: 0 | H150: 0 | I150: 0
A151: =+OFFSET(Inputs!$CB$12,tbl_row,ROWS($A$29:A151)) -> 00:00:00 | B151: =IF(OR(B150=0,B150=B149),0,IF(AND(A151<>0,IF(YTM_YTC<>$L$1,A151<=$F$10,TRUE)),A151,IF(YTM_YTC<>$L$1,B150,IF(B150<INDEX(Table3[LAST_CALLABLE_DATE],tbl_row),EDATE(B150,$M$3),B150)))) -> 00:00:00 | C151: =IF(OR(AND(B151<>0,B151=B150),AND(B151<>0,B152=0)),"Amortização",IF(B152=0,0,"Cupão"&ROW()-ROW($C$29)+1-COUNTIF($C$28:C150,"Amortização"))) -> 0 | D151: =IF(AND(C151=0,C152=0),0,IF(B152=0,$C$20*IF(YTM_YTC="YTC Bruta",$F$18,1),$C$20*$C$13*IF(VLOOKUP($F$16,Convencoes,2,0)=1,1/VLOOKUP($F$15,Tabelas!$J$4:$K$8,2,0),YEARFRAC(B150,B151,VLOOKUP($F$16,Convencoes,2,0))))) -> 0 | F151: 0 | G151: 0 | H151: 0 | I151: 0
A152: =+OFFSET(Inputs!$CB$12,tbl_row,ROWS($A$29:A152)) -> 00:00:00 | B152: =IF(OR(B151=0,B151=B150),0,IF(AND(A152<>0,IF(YTM_YTC<>$L$1,A152<=$F$10,TRUE)),A152,IF(YTM_YTC<>$L$1,B151,IF(B151<INDEX(Table3[LAST_CALLABLE_DATE],tbl_row),EDATE(B151,$M$3),B151)))) -> 00:00:00 | C152: =IF(OR(AND(B152<>0,B152=B151),AND(B152<>0,B153=0)),"Amortização",IF(B153=0,0,"Cupão"&ROW()-ROW($C$29)+1-COUNTIF($C$28:C151,"Amortização"))) -> 0 | D152: =IF(AND(C152=0,C153=0),0,IF(B153=0,$C$20*IF(YTM_YTC="YTC Bruta",$F$18,1),$C$20*$C$13*IF(VLOOKUP($F$16,Convencoes,2,0)=1,1/VLOOKUP($F$15,Tabelas!$J$4:$K$8,2,0),YEARFRAC(B151,B152,VLOOKUP($F$16,Convencoes,2,0))))) -> 0 | F152: 0 | G152: 0 | H152: 0 | I152: 0
A153: =+OFFSET(Inputs!$CB$12,tbl_row,ROWS($A$29:A153)) -> 00:00:00 | B153: =IF(OR(B152=0,B152=B151),0,IF(AND(A153<>0,IF(YTM_YTC<>$L$1,A153<=$F$10,TRUE)),A153,IF(YTM_YTC<>$L$1,B152,IF(B152<INDEX(Table3[LAST_CALLABLE_DATE],tbl_row),EDATE(B152,$M$3),B152)))) -> 00:00:00 | C153: =IF(OR(AND(B153<>0,B153=B152),AND(B153<>0,B154=0)),"Amortização",IF(B154=0,0,"Cupão"&ROW()-ROW($C$29)+1-COUNTIF($C$28:C152,"Amortização"))) -> 0 | D153: =IF(AND(C153=0,C154=0),0,IF(B154=0,$C$20*IF(YTM_YTC="YTC Bruta",$F$18,1),$C$20*$C$13*IF(VLOOKUP($F$16,Convencoes,2,0)=1,1/VLOOKUP($F$15,Tabelas!$J$4:$K$8,2,0),YEARFRAC(B152,B153,VLOOKUP($F$16,Convencoes,2,0))))) -> 0 | F153: 0 | G153: 0 | H153: 0 | I153: 0
A154: =+OFFSET(Inputs!$CB$12,tbl_row,ROWS($A$29:A154)) -> 00:00:00 | B154: =IF(OR(B153=0,B153=B152),0,IF(AND(A154<>0,IF(YTM_YTC<>$L$1,A154<=$F$10,TRUE)),A154,IF(YTM_YTC<>$L$1,B153,IF(B153<INDEX(Table3[LAST_CALLABLE_DATE],tbl_row),EDATE(B153,$M$3),B153)))) -> 00:00:00 | C154: =IF(OR(AND(B154<>0,B154=B153),AND(B154<>0,B155=0)),"Amortização",IF(B155=0,0,"Cupão"&ROW()-ROW($C$29)+1-COUNTIF($C$28:C153,"Amortização"))) -> 0 | D154: =IF(AND(C154=0,C155=0),0,IF(B155=0,$C$20*IF(YTM_YTC="YTC Bruta",$F$18,1),$C$20*$C$13*IF(VLOOKUP($F$16,Convencoes,2,0)=1,1/VLOOKUP($F$15,Tabelas!$J$4:$K$8,2,0),YEARFRAC(B153,B154,VLOOKUP($F$16,Convencoes,2,0))))) -> 0 | F154: 0 | G154: 0 | H154: 0 | I154: 0
A155: =+OFFSET(Inputs!$CB$12,tbl_row,ROWS($A$29:A155)) -> 00:00:00 | B155: =IF(OR(B154=0,B154=B153),0,IF(AND(A155<>0,IF(YTM_YTC<>$L$1,A155<=$F$10,TRUE)),A155,IF(YTM_YTC<>$L$1,B154,IF(B154<INDEX(Table3[LAST_CALLABLE_DATE],tbl_row),EDATE(B154,$M$3),B154)))) -> 00:00:00 | C155: =IF(OR(AND(B155<>0,B155=B154),AND(B155<>0,B156=0)),"Amortização",IF(B156=0,0,"Cupão"&ROW()-ROW($C$29)+1-COUNTIF($C$28:C154,"Amortização"))) -> 0 | D155: =IF(AND(C155=0,C156=0),0,IF(B156=0,$C$20*IF(YTM_YTC="YTC Bruta",$F$18,1),$C$20*$C$13*IF(VLOOKUP($F$16,Convencoes,2,0)=1,1/VLOOKUP($F$15,Tabelas!$J$4:$K$8,2,0),YEARFRAC(B154,B155,VLOOKUP($F$16,Convencoes,2,0))))) -> 0 | F155: 0 | G155: 0 | H155: 0 | I155: 0
A156: =+OFFSET(Inputs!$CB$12,tbl_row,ROWS($A$29:A156)) -> 00:00:00 | B156: =IF(OR(B155=0,B155=B154),0,IF(AND(A156<>0,IF(YTM_YTC<>$L$1,A156<=$F$10,TRUE)),A156,IF(YTM_YTC<>$L$1,B155,IF(B155<INDEX(Table3[LAST_CALLABLE_DATE],tbl_row),EDATE(B155,$M$3),B155)))) -> 00:00:00 | C156: =IF(OR(AND(B156<>0,B156=B155),AND(B156<>0,B157=0)),"Amortização",IF(B157=0,0,"Cupão"&ROW()-ROW($C$29)+1-COUNTIF($C$28:C155,"Amortização"))) -> 0 | D156: =IF(AND(C156=0,C157=0),0,IF(B157=0,$C$20*IF(YTM_YTC="YTC Bruta",$F$18,1),$C$20*$C$13*IF(VLOOKUP($F$16,Convencoes,2,0)=1,1/VLOOKUP($F$15,Tabelas!$J$4:$K$8,2,0),YEARFRAC(B155,B156,VLOOKUP($F$16,Convencoes,2,0))))) -> 0 | F156: 0 | G156: 0 | H156: 0 | I156: 0
A157: =+OFFSET(Inputs!$CB$12,tbl_row,ROWS($A$29:A157)) -> 00:00:00 | B157: =IF(OR(B156=0,B156=B155),0,IF(AND(A157<>0,IF(YTM_YTC<>$L$1,A157<=$F$10,TRUE)),A157,IF(YTM_YTC<>$L$1,B156,IF(B156<INDEX(Table3[LAST_CALLABLE_DATE],tbl_row),EDATE(B156,$M$3),B156)))) -> 00:00:00 | C157: =IF(OR(AND(B157<>0,B157=B156),AND(B157<>0,B158=0)),"Amortização",IF(B158=0,0,"Cupão"&ROW()-ROW($C$29)+1-COUNTIF($C$28:C156,"Amortização"))) -> 0 | D157: =IF(AND(C157=0,C158=0),0,IF(B158=0,$C$20*IF(YTM_YTC="YTC Bruta",$F$18,1),$C$20*$C$13*IF(VLOOKUP($F$16,Convencoes,2,0)=1,1/VLOOKUP($F$15,Tabelas!$J$4:$K$8,2,0),YEARFRAC(B156,B157,VLOOKUP($F$16,Convencoes,2,0))))) -> 0 | F157: 0 | G157: 0 | H157: 0 | I157: 0
A158: =+OFFSET(Inputs!$CB$12,tbl_row,ROWS($A$29:A158)) -> 00:00:00 | B158: =IF(OR(B157=0,B157=B156),0,IF(AND(A158<>0,IF(YTM_YTC<>$L$1,A158<=$F$10,TRUE)),A158,IF(YTM_YTC<>$L$1,B157,IF(B157<INDEX(Table3[LAST_CALLABLE_DATE],tbl_row),EDATE(B157,$M$3),B157)))) -> 00:00:00 | C158: =IF(OR(AND(B158<>0,B158=B157),AND(B158<>0,B159=0)),"Amortização",IF(B159=0,0,"Cupão"&ROW()-ROW($C$29)+1-COUNTIF($C$28:C157,"Amortização"))) -> 0 | D158: =IF(AND(C158=0,C159=0),0,IF(B159=0,$C$20*IF(YTM_YTC="YTC Bruta",$F$18,1),$C$20*$C$13*IF(VLOOKUP($F$16,Convencoes,2,0)=1,1/VLOOKUP($F$15,Tabelas!$J$4:$K$8,2,0),YEARFRAC(B157,B158,VLOOKUP($F$16,Convencoes,2,0))))) -> 0 | F158: 0 | G158: 0 | H158: 0 | I158: 0
A159: =+OFFSET(Inputs!$CB$12,tbl_row,ROWS($A$29:A159)) -> 00:00:00 | B159: =IF(OR(B158=0,B158=B157),0,IF(AND(A159<>0,IF(YTM_YTC<>$L$1,A159<=$F$10,TRUE)),A159,IF(YTM_YTC<>$L$1,B158,IF(B158<INDEX(Table3[LAST_CALLABLE_DATE],tbl_row),EDATE(B158,$M$3),B158)))) -> 00:00:00 | C159: =IF(OR(AND(B159<>0,B159=B158),AND(B159<>0,B160=0)),"Amortização",IF(B160=0,0,"Cupão"&ROW()-ROW($C$29)+1-COUNTIF($C$28:C158,"Amortização"))) -> 0 | D159: =IF(AND(C159=0,C160=0),0,IF(B160=0,$C$20*IF(YTM_YTC="YTC Bruta",$F$18,1),$C$20*$C$13*IF(VLOOKUP($F$16,Convencoes,2,0)=1,1/VLOOKUP($F$15,Tabelas!$J$4:$K$8,2,0),YEARFRAC(B158,B159,VLOOKUP($F$16,Convencoes,2,0))))) -> 0 | F159: =-ROUND(IF(C159="Amortização",MAX(Mín._Com._Reemb.,D159*Comissão_Reemb.)*(1+IVA),IF(D159=0,0,MAX(Mín._Com._Juros,(D159+G159)*Comissão_Juros)*(1+IVA))),2) -> 0 | G159: =ROUND(IF(B160=0,0,IF(D159<0,-IRS*E159,-IRS*D159)),2) -> 0 | H159: =IF(B158=0,0,D159+E159) -> 0 | I159: =IF(H159=0,0,H159+F159+G159) -> 0
A160: =+OFFSET(Inputs!$CB$12,tbl_row,ROWS($A$29:A160)) -> 00:00:00 | B160: =IF(OR(B159=0,B159=B158),0,IF(AND(A160<>0,IF(YTM_YTC<>$L$1,A160<=$F$10,TRUE)),A160,IF(YTM_YTC<>$L$1,B159,IF(B159<INDEX(Table3[LAST_CALLABLE_DATE],tbl_row),EDATE(B159,$M$3),B159)))) -> 00:00:00 | C160: =IF(OR(AND(B160<>0,B160=B159),AND(B160<>0,B161=0)),"Amortização",IF(B161=0,0,"Cupão"&ROW()-ROW($C$29)+1-COUNTIF($C$28:C159,"Amortização"))) -> 0 | D160: =IF(AND(C160=0,C161=0),0,IF(B161=0,$C$20*IF(YTM_YTC="YTC Bruta",$F$18,1),$C$20*$C$13*IF(VLOOKUP($F$16,Convencoes,2,0)=1,1/VLOOKUP($F$15,Tabelas!$J$4:$K$8,2,0),YEARFRAC(B159,B160,VLOOKUP($F$16,Convencoes,2,0))))) -> 0 | F160: 0 | G160: 0 | H160: 0 | I160: 0
A161: =+OFFSET(Inputs!$CB$12,tbl_row,ROWS($A$29:A161)) -> 00:00:00 | B161: =IF(OR(B160=0,B160=B159),0,IF(AND(A161<>0,IF(YTM_YTC<>$L$1,A161<=$F$10,TRUE)),A161,IF(YTM_YTC<>$L$1,B160,IF(B160<INDEX(Table3[LAST_CALLABLE_DATE],tbl_row),EDATE(B160,$M$3),B160)))) -> 00:00:00 | C161: =IF(OR(AND(B161<>0,B161=B160),AND(B161<>0,B162=0)),"Amortização",IF(B162=0,0,"Cupão"&ROW()-ROW($C$29)+1-COUNTIF($C$28:C160,"Amortização"))) -> 0 | D161: =IF(AND(C161=0,C162=0),0,IF(B162=0,$C$20*IF(YTM_YTC="YTC Bruta",$F$18,1),$C$20*$C$13*IF(VLOOKUP($F$16,Convencoes,2,0)=1,1/VLOOKUP($F$15,Tabelas!$J$4:$K$8,2,0),YEARFRAC(B160,B161,VLOOKUP($F$16,Convencoes,2,0))))) -> 0 | F161: 0 | G161: 0 | H161: 0 | I161: 0
A162: =+OFFSET(Inputs!$CB$12,tbl_row,ROWS($A$29:A162)) -> 00:00:00 | B162: =IF(OR(B161=0,B161=B160),0,IF(AND(A162<>0,IF(YTM_YTC<>$L$1,A162<=$F$10,TRUE)),A162,IF(YTM_YTC<>$L$1,B161,IF(B161<INDEX(Table3[LAST_CALLABLE_DATE],tbl_row),EDATE(B161,$M$3),B161)))) -> 00:00:00 | C162: =IF(OR(AND(B162<>0,B162=B161),AND(B162<>0,B163=0)),"Amortização",IF(B163=0,0,"Cupão"&ROW()-ROW($C$29)+1-COUNTIF($C$28:C161,"Amortização"))) -> 0 | D162: =IF(AND(C162=0,C163=0),0,IF(B163=0,$C$20*IF(YTM_YTC="YTC Bruta",$F$18,1),$C$20*$C$13*IF(VLOOKUP($F$16,Convencoes,2,0)=1,1/VLOOKUP($F$15,Tabelas!$J$4:$K$8,2,0),YEARFRAC(B161,B162,VLOOKUP($F$16,Convencoes,2,0))))) -> 0 | F162: 0 | G162: 0 | H162: 0 | I162: 0
A163: =+OFFSET(Inputs!$CB$12,tbl_row,ROWS($A$29:A163)) -> 00:00:00 | B163: =IF(OR(B162=0,B162=B161),0,IF(AND(A163<>0,IF(YTM_YTC<>$L$1,A163<=$F$10,TRUE)),A163,IF(YTM_YTC<>$L$1,B162,IF(B162<INDEX(Table3[LAST_CALLABLE_DATE],tbl_row),EDATE(B162,$M$3),B162)))) -> 00:00:00 | C163: =IF(OR(AND(B163<>0,B163=B162),AND(B163<>0,B164=0)),"Amortização",IF(B164=0,0,"Cupão"&ROW()-ROW($C$29)+1-COUNTIF($C$28:C162,"Amortização"))) -> 0 | D163: =IF(AND(C163=0,C164=0),0,IF(B164=0,$C$20*IF(YTM_YTC="YTC Bruta",$F$18,1),$C$20*$C$13*IF(VLOOKUP($F$16,Convencoes,2,0)=1,1/VLOOKUP($F$15,Tabelas!$J$4:$K$8,2,0),YEARFRAC(B162,B163,VLOOKUP($F$16,Convencoes,2,0))))) -> 0 | F163: 0 | G163: 0 | H163: 0 | I163: 0
A164: =+OFFSET(Inputs!$CB$12,tbl_row,ROWS($A$29:A164)) -> 00:00:00 | B164: =IF(OR(B163=0,B163=B162),0,IF(AND(A164<>0,IF(YTM_YTC<>$L$1,A164<=$F$10,TRUE)),A164,IF(YTM_YTC<>$L$1,B163,IF(B163<INDEX(Table3[LAST_CALLABLE_DATE],tbl_row),EDATE(B163,$M$3),B163)))) -> 00:00:00 | C164: =IF(OR(AND(B164<>0,B164=B163),AND(B164<>0,B165=0)),"Amortização",IF(B165=0,0,"Cupão"&ROW()-ROW($C$29)+1-COUNTIF($C$28:C163,"Amortização"))) -> 0 | D164: =IF(AND(C164=0,C165=0),0,IF(B165=0,$C$20*IF(YTM_YTC="YTC Bruta",$F$18,1),$C$20*$C$13*IF(VLOOKUP($F$16,Convencoes,2,0)=1,1/VLOOKUP($F$15,Tabelas!$J$4:$K$8,2,0),YEARFRAC(B163,B164,VLOOKUP($F$16,Convencoes,2,0))))) -> 0 | F164: 0 | G164: 0 | H164: 0 | I164: 0
A165: =+OFFSET(Inputs!$CB$12,tbl_row,ROWS($A$29:A165)) -> 00:00:00 | B165: =IF(OR(B164=0,B164=B163),0,IF(AND(A165<>0,IF(YTM_YTC<>$L$1,A165<=$F$10,TRUE)),A165,IF(YTM_YTC<>$L$1,B164,IF(B164<INDEX(Table3[LAST_CALLABLE_DATE],tbl_row),EDATE(B164,$M$3),B164)))) -> 00:00:00 | C165: =IF(OR(AND(B165<>0,B165=B164),AND(B165<>0,B166=0)),"Amortização",IF(B166=0,0,"Cupão"&ROW()-ROW($C$29)+1-COUNTIF($C$28:C164,"Amortização"))) -> 0 | D165: =IF(AND(C165=0,C166=0),0,IF(B166=0,$C$20*IF(YTM_YTC="YTC Bruta",$F$18,1),$C$20*$C$13*IF(VLOOKUP($F$16,Convencoes,2,0)=1,1/VLOOKUP($F$15,Tabelas!$J$4:$K$8,2,0),YEARFRAC(B164,B165,VLOOKUP($F$16,Convencoes,2,0))))) -> 0 | F165: 0 | G165: 0 | H165: 0 | I165: 0
A166: =+OFFSET(Inputs!$CB$12,tbl_row,ROWS($A$29:A166)) -> 00:00:00 | B166: =IF(OR(B165=0,B165=B164),0,IF(AND(A166<>0,IF(YTM_YTC<>$L$1,A166<=$F$10,TRUE)),A166,IF(YTM_YTC<>$L$1,B165,IF(B165<INDEX(Table3[LAST_CALLABLE_DATE],tbl_row),EDATE(B165,$M$3),B165)))) -> 00:00:00 | C166: =IF(OR(AND(B166<>0,B166=B165),AND(B166<>0,B167=0)),"Amortização",IF(B167=0,0,"Cupão"&ROW()-ROW($C$29)+1-COUNTIF($C$28:C165,"Amortização"))) -> 0 | D166: =IF(AND(C166=0,C167=0),0,IF(B167=0,$C$20*IF(YTM_YTC="YTC Bruta",$F$18,1),$C$20*$C$13*IF(VLOOKUP($F$16,Convencoes,2,0)=1,1/VLOOKUP($F$15,Tabelas!$J$4:$K$8,2,0),YEARFRAC(B165,B166,VLOOKUP($F$16,Convencoes,2,0))))) -> 0 | F166: 0 | G166: 0 | H166: 0 | I166: 0
A167: =+OFFSET(Inputs!$CB$12,tbl_row,ROWS($A$29:A167)) -> 00:00:00 | B167: =IF(OR(B166=0,B166=B165),0,IF(AND(A167<>0,IF(YTM_YTC<>$L$1,A167<=$F$10,TRUE)),A167,IF(YTM_YTC<>$L$1,B166,IF(B166<INDEX(Table3[LAST_CALLABLE_DATE],tbl_row),EDATE(B166,$M$3),B166)))) -> 00:00:00 | C167: =IF(OR(AND(B167<>0,B167=B166),AND(B167<>0,B168=0)),"Amortização",IF(B168=0,0,"Cupão"&ROW()-ROW($C$29)+1-COUNTIF($C$28:C166,"Amortização"))) -> 0 | D167: =IF(AND(C167=0,C168=0),0,IF(B168=0,$C$20*IF(YTM_YTC="YTC Bruta",$F$18,1),$C$20*$C$13*IF(VLOOKUP($F$16,Convencoes,2,0)=1,1/VLOOKUP($F$15,Tabelas!$J$4:$K$8,2,0),YEARFRAC(B166,B167,VLOOKUP($F$16,Convencoes,2,0))))) -> 0 | F167: 0 | G167: 0 | H167: 0 | I167: 0
A168: =+OFFSET(Inputs!$CB$12,tbl_row,ROWS($A$29:A168)) -> 00:00:00 | B168: =IF(OR(B167=0,B167=B166),0,IF(AND(A168<>0,IF(YTM_YTC<>$L$1,A168<=$F$10,TRUE)),A168,IF(YTM_YTC<>$L$1,B167,IF(B167<INDEX(Table3[LAST_CALLABLE_DATE],tbl_row),EDATE(B167,$M$3),B167)))) -> 00:00:00 | C168: =IF(OR(AND(B168<>0,B168=B167),AND(B168<>0,B169=0)),"Amortização",IF(B169=0,0,"Cupão"&ROW()-ROW($C$29)+1-COUNTIF($C$28:C167,"Amortização"))) -> 0 | D168: =IF(AND(C168=0,C169=0),0,IF(B169=0,$C$20*IF(YTM_YTC="YTC Bruta",$F$18,1),$C$20*$C$13*IF(VLOOKUP($F$16,Convencoes,2,0)=1,1/VLOOKUP($F$15,Tabelas!$J$4:$K$8,2,0),YEARFRAC(B167,B168,VLOOKUP($F$16,Convencoes,2,0))))) -> 0 | F168: 0 | G168: 0 | H168: 0 | I168: 0
A169: =+OFFSET(Inputs!$CB$12,tbl_row,ROWS($A$29:A169)) -> 00:00:00 | B169: =IF(OR(B168=0,B168=B167),0,IF(AND(A169<>0,IF(YTM_YTC<>$L$1,A169<=$F$10,TRUE)),A169,IF(YTM_YTC<>$L$1,B168,IF(B168<INDEX(Table3[LAST_CALLABLE_DATE],tbl_row),EDATE(B168,$M$3),B168)))) -> 00:00:00 | C169: =IF(OR(AND(B169<>0,B169=B168),AND(B169<>0,B170=0)),"Amortização",IF(B170=0,0,"Cupão"&ROW()-ROW($C$29)+1-COUNTIF($C$28:C168,"Amortização"))) -> 0 | D169: =IF(AND(C169=0,C170=0),0,IF(B170=0,$C$20*IF(YTM_YTC="YTC Bruta",$F$18,1),$C$20*$C$13*IF(VLOOKUP($F$16,Convencoes,2,0)=1,1/VLOOKUP($F$15,Tabelas!$J$4:$K$8,2,0),YEARFRAC(B168,B169,VLOOKUP($F$16,Convencoes,2,0))))) -> 0 | F169: 0 | G169: 0 | H169: 0 | I169: 0
A170: =+OFFSET(Inputs!$CB$12,tbl_row,ROWS($A$29:A170)) -> 00:00:00 | B170: =IF(OR(B169=0,B169=B168),0,IF(AND(A170<>0,IF(YTM_YTC<>$L$1,A170<=$F$10,TRUE)),A170,IF(YTM_YTC<>$L$1,B169,IF(B169<INDEX(Table3[LAST_CALLABLE_DATE],tbl_row),EDATE(B169,$M$3),B169)))) -> 00:00:00 | C170: =IF(OR(AND(B170<>0,B170=B169),AND(B170<>0,B171=0)),"Amortização",IF(B171=0,0,"Cupão"&ROW()-ROW($C$29)+1-COUNTIF($C$28:C169,"Amortização"))) -> 0 | D170: =IF(AND(C170=0,C171=0),0,IF(B171=0,$C$20*IF(YTM_YTC="YTC Bruta",$F$18,1),$C$20*$C$13*IF(VLOOKUP($F$16,Convencoes,2,0)=1,1/VLOOKUP($F$15,Tabelas!$J$4:$K$8,2,0),YEARFRAC(B169,B170,VLOOKUP($F$16,Convencoes,2,0))))) -> 0 | F170: 0 | G170: 0 | H170: 0 | I170: 0
A171: =+OFFSET(Inputs!$CB$12,tbl_row,ROWS($A$29:A171)) -> 00:00:00 | B171: =IF(OR(B170=0,B170=B169),0,IF(AND(A171<>0,IF(YTM_YTC<>$L$1,A171<=$F$10,TRUE)),A171,IF(YTM_YTC<>$L$1,B170,IF(B170<INDEX(Table3[LAST_CALLABLE_DATE],tbl_row),EDATE(B170,$M$3),B170)))) -> 00:00:00 | C171: =IF(OR(AND(B171<>0,B171=B170),AND(B171<>0,B172=0)),"Amortização",IF(B172=0,0,"Cupão"&ROW()-ROW($C$29)+1-COUNTIF($C$28:C170,"Amortização"))) -> 0 | D171: =IF(AND(C171=0,C172=0),0,IF(B172=0,$C$20*IF(YTM_YTC="YTC Bruta",$F$18,1),$C$20*$C$13*IF(VLOOKUP($F$16,Convencoes,2,0)=1,1/VLOOKUP($F$15,Tabelas!$J$4:$K$8,2,0),YEARFRAC(B170,B171,VLOOKUP($F$16,Convencoes,2,0))))) -> 0 | F171: 0 | G171: 0 | H171: 0 | I171: 0
A172: =+OFFSET(Inputs!$CB$12,tbl_row,ROWS($A$29:A172)) -> 00:00:00 | B172: =IF(OR(B171=0,B171=B170),0,IF(AND(A172<>0,IF(YTM_YTC<>$L$1,A172<=$F$10,TRUE)),A172,IF(YTM_YTC<>$L$1,B171,IF(B171<INDEX(Table3[LAST_CALLABLE_DATE],tbl_row),EDATE(B171,$M$3),B171)))) -> 00:00:00 | C172: =IF(OR(AND(B172<>0,B172=B171),AND(B172<>0,B173=0)),"Amortização",IF(B173=0,0,"Cupão"&ROW()-ROW($C$29)+1-COUNTIF($C$28:C171,"Amortização"))) -> 0 | D172: =IF(AND(C172=0,C173=0),0,IF(B173=0,$C$20*IF(YTM_YTC="YTC Bruta",$F$18,1),$C$20*$C$13*IF(VLOOKUP($F$16,Convencoes,2,0)=1,1/VLOOKUP($F$15,Tabelas!$J$4:$K$8,2,0),YEARFRAC(B171,B172,VLOOKUP($F$16,Convencoes,2,0))))) -> 0 | F172: 0 | G172: 0 | H172: 0 | I172: 0
A173: =+OFFSET(Inputs!$CB$12,tbl_row,ROWS($A$29:A173)) -> 00:00:00 | B173: =IF(OR(B172=0,B172=B171),0,IF(AND(A173<>0,IF(YTM_YTC<>$L$1,A173<=$F$10,TRUE)),A173,IF(YTM_YTC<>$L$1,B172,IF(B172<INDEX(Table3[LAST_CALLABLE_DATE],tbl_row),EDATE(B172,$M$3),B172)))) -> 00:00:00 | C173: =IF(OR(AND(B173<>0,B173=B172),AND(B173<>0,B174=0)),"Amortização",IF(B174=0,0,"Cupão"&ROW()-ROW($C$29)+1-COUNTIF($C$28:C172,"Amortização"))) -> 0 | D173: =IF(AND(C173=0,C174=0),0,IF(B174=0,$C$20*IF(YTM_YTC="YTC Bruta",$F$18,1),$C$20*$C$13*IF(VLOOKUP($F$16,Convencoes,2,0)=1,1/VLOOKUP($F$15,Tabelas!$J$4:$K$8,2,0),YEARFRAC(B172,B173,VLOOKUP($F$16,Convencoes,2,0))))) -> 0 | F173: 0 | G173: 0 | H173: 0 | I173: 0
A174: =+OFFSET(Inputs!$CB$12,tbl_row,ROWS($A$29:A174)) -> 00:00:00 | B174: =IF(OR(B173=0,B173=B172),0,IF(AND(A174<>0,IF(YTM_YTC<>$L$1,A174<=$F$10,TRUE)),A174,IF(YTM_YTC<>$L$1,B173,IF(B173<INDEX(Table3[LAST_CALLABLE_DATE],tbl_row),EDATE(B173,$M$3),B173)))) -> 00:00:00 | C174: =IF(OR(AND(B174<>0,B174=B173),AND(B174<>0,B175=0)),"Amortização",IF(B175=0,0,"Cupão"&ROW()-ROW($C$29)+1-COUNTIF($C$28:C173,"Amortização"))) -> 0 | D174: =IF(AND(C174=0,C175=0),0,IF(B175=0,$C$20*IF(YTM_YTC="YTC Bruta",$F$18,1),$C$20*$C$13*IF(VLOOKUP($F$16,Convencoes,2,0)=1,1/VLOOKUP($F$15,Tabelas!$J$4:$K$8,2,0),YEARFRAC(B173,B174,VLOOKUP($F$16,Convencoes,2,0))))) -> 0 | F174: 0 | G174: 0 | H174: 0 | I174: 0
A175: =+OFFSET(Inputs!$CB$12,tbl_row,ROWS($A$29:A175)) -> 00:00:00 | B175: =IF(OR(B174=0,B174=B173),0,IF(AND(A175<>0,IF(YTM_YTC<>$L$1,A175<=$F$10,TRUE)),A175,IF(YTM_YTC<>$L$1,B174,IF(B174<INDEX(Table3[LAST_CALLABLE_DATE],tbl_row),EDATE(B174,$M$3),B174)))) -> 00:00:00 | C175: =IF(OR(AND(B175<>0,B175=B174),AND(B175<>0,B176=0)),"Amortização",IF(B176=0,0,"Cupão"&ROW()-ROW($C$29)+1-COUNTIF($C$28:C174,"Amortização"))) -> 0 | D175: =IF(AND(C175=0,C176=0),0,IF(B176=0,$C$20*IF(YTM_YTC="YTC Bruta",$F$18,1),$C$20*$C$13*IF(VLOOKUP($F$16,Convencoes,2,0)=1,1/VLOOKUP($F$15,Tabelas!$J$4:$K$8,2,0),YEARFRAC(B174,B175,VLOOKUP($F$16,Convencoes,2,0))))) -> 0 | F175: 0 | G175: 0 | H175: 0 | I175: 0
A176: =+OFFSET(Inputs!$CB$12,tbl_row,ROWS($A$29:A176)) -> 00:00:00 | B176: =IF(OR(B175=0,B175=B174),0,IF(AND(A176<>0,IF(YTM_YTC<>$L$1,A176<=$F$10,TRUE)),A176,IF(YTM_YTC<>$L$1,B175,IF(B175<INDEX(Table3[LAST_CALLABLE_DATE],tbl_row),EDATE(B175,$M$3),B175)))) -> 00:00:00 | C176: =IF(OR(AND(B176<>0,B176=B175),AND(B176<>0,B177=0)),"Amortização",IF(B177=0,0,"Cupão"&ROW()-ROW($C$29)+1-COUNTIF($C$28:C175,"Amortização"))) -> 0 | D176: =IF(AND(C176=0,C177=0),0,IF(B177=0,$C$20*IF(YTM_YTC="YTC Bruta",$F$18,1),$C$20*$C$13*IF(VLOOKUP($F$16,Convencoes,2,0)=1,1/VLOOKUP($F$15,Tabelas!$J$4:$K$8,2,0),YEARFRAC(B175,B176,VLOOKUP($F$16,Convencoes,2,0))))) -> 0 | F176: 0 | G176: 0 | H176: 0 | I176: 0
A177: =+OFFSET(Inputs!$CB$12,tbl_row,ROWS($A$29:A177)) -> 00:00:00 | B177: =IF(OR(B176=0,B176=B175),0,IF(AND(A177<>0,IF(YTM_YTC<>$L$1,A177<=$F$10,TRUE)),A177,IF(YTM_YTC<>$L$1,B176,IF(B176<INDEX(Table3[LAST_CALLABLE_DATE],tbl_row),EDATE(B176,$M$3),B176)))) -> 00:00:00 | C177: =IF(OR(AND(B177<>0,B177=B176),AND(B177<>0,B178=0)),"Amortização",IF(B178=0,0,"Cupão"&ROW()-ROW($C$29)+1-COUNTIF($C$28:C176,"Amortização"))) -> 0 | D177: =IF(AND(C177=0,C178=0),0,IF(B178=0,$C$20*IF(YTM_YTC="YTC Bruta",$F$18,1),$C$20*$C$13*IF(VLOOKUP($F$16,Convencoes,2,0)=1,1/VLOOKUP($F$15,Tabelas!$J$4:$K$8,2,0),YEARFRAC(B176,B177,VLOOKUP($F$16,Convencoes,2,0))))) -> 0 | F177: 0 | G177: 0 | H177: 0 | I177: 0
A178: =+OFFSET(Inputs!$CB$12,tbl_row,ROWS($A$29:A178)) -> 00:00:00 | B178: =IF(OR(B177=0,B177=B176),0,IF(AND(A178<>0,IF(YTM_YTC<>$L$1,A178<=$F$10,TRUE)),A178,IF(YTM_YTC<>$L$1,B177,IF(B177<INDEX(Table3[LAST_CALLABLE_DATE],tbl_row),EDATE(B177,$M$3),B177)))) -> 00:00:00 | C178: =IF(OR(AND(B178<>0,B178=B177),AND(B178<>0,B179=0)),"Amortização",IF(B179=0,0,"Cupão"&ROW()-ROW($C$29)+1-COUNTIF($C$28:C177,"Amortização"))) -> 0 | D178: =IF(AND(C178=0,C179=0),0,IF(B179=0,$C$20*IF(YTM_YTC="YTC Bruta",$F$18,1),$C$20*$C$13*IF(VLOOKUP($F$16,Convencoes,2,0)=1,1/VLOOKUP($F$15,Tabelas!$J$4:$K$8,2,0),YEARFRAC(B177,B178,VLOOKUP($F$16,Convencoes,2,0))))) -> 0 | F178: 0 | G178: 0 | H178: 0 | I178: 0
A179: =+OFFSET(Inputs!$CB$12,tbl_row,ROWS($A$29:A179)) -> 00:00:00 | B179: =IF(OR(B178=0,B178=B177),0,IF(AND(A179<>0,IF(YTM_YTC<>$L$1,A179<=$F$10,TRUE)),A179,IF(YTM_YTC<>$L$1,B178,IF(B178<INDEX(Table3[LAST_CALLABLE_DATE],tbl_row),EDATE(B178,$M$3),B178)))) -> 00:00:00 | C179: =IF(OR(AND(B179<>0,B179=B178),AND(B179<>0,B180=0)),"Amortização",IF(B180=0,0,"Cupão"&ROW()-ROW($C$29)+1-COUNTIF($C$28:C178,"Amortização"))) -> 0 | D179: =IF(AND(C179=0,C180=0),0,IF(B180=0,$C$20*IF(YTM_YTC="YTC Bruta",$F$18,1),$C$20*$C$13*IF(VLOOKUP($F$16,Convencoes,2,0)=1,1/VLOOKUP($F$15,Tabelas!$J$4:$K$8,2,0),YEARFRAC(B178,B179,VLOOKUP($F$16,Convencoes,2,0))))) -> 0 | F179: 0 | G179: 0 | H179: 0 | I179: 0
A180: =+OFFSET(Inputs!$CB$12,tbl_row,ROWS($A$29:A180)) -> 00:00:00 | B180: =IF(OR(B179=0,B179=B178),0,IF(AND(A180<>0,IF(YTM_YTC<>$L$1,A180<=$F$10,TRUE)),A180,IF(YTM_YTC<>$L$1,B179,IF(B179<INDEX(Table3[LAST_CALLABLE_DATE],tbl_row),EDATE(B179,$M$3),B179)))) -> 00:00:00 | C180: =IF(OR(AND(B180<>0,B180=B179),AND(B180<>0,B181=0)),"Amortização",IF(B181=0,0,"Cupão"&ROW()-ROW($C$29)+1-COUNTIF($C$28:C179,"Amortização"))) -> 0 | D180: =IF(AND(C180=0,C181=0),0,IF(B181=0,$C$20*IF(YTM_YTC="YTC Bruta",$F$18,1),$C$20*$C$13*IF(VLOOKUP($F$16,Convencoes,2,0)=1,1/VLOOKUP($F$15,Tabelas!$J$4:$K$8,2,0),YEARFRAC(B179,B180,VLOOKUP($F$16,Convencoes,2,0))))) -> 0 | F180: 0 | G180: 0 | H180: 0 | I180: 0
A181: =+OFFSET(Inputs!$CB$12,tbl_row,ROWS($A$29:A181)) -> 00:00:00 | B181: =IF(OR(B180=0,B180=B179),0,IF(AND(A181<>0,IF(YTM_YTC<>$L$1,A181<=$F$10,TRUE)),A181,IF(YTM_YTC<>$L$1,B180,IF(B180<INDEX(Table3[LAST_CALLABLE_DATE],tbl_row),EDATE(B180,$M$3),B180)))) -> 00:00:00 | C181: =IF(OR(AND(B181<>0,B181=B180),AND(B181<>0,B182=0)),"Amortização",IF(B182=0,0,"Cupão"&ROW()-ROW($C$29)+1-COUNTIF($C$28:C180,"Amortização"))) -> 0 | D181: =IF(AND(C181=0,C182=0),0,IF(B182=0,$C$20*IF(YTM_YTC="YTC Bruta",$F$18,1),$C$20*$C$13*IF(VLOOKUP($F$16,Convencoes,2,0)=1,1/VLOOKUP($F$15,Tabelas!$J$4:$K$8,2,0),YEARFRAC(B180,B181,VLOOKUP($F$16,Convencoes,2,0))))) -> 0 | F181: 0 | G181: 0 | H181: 0 | I181: 0
A182: =+OFFSET(Inputs!$CB$12,tbl_row,ROWS($A$29:A182)) -> 00:00:00 | B182: =IF(OR(B181=0,B181=B180),0,IF(AND(A182<>0,IF(YTM_YTC<>$L$1,A182<=$F$10,TRUE)),A182,IF(YTM_YTC<>$L$1,B181,IF(B181<INDEX(Table3[LAST_CALLABLE_DATE],tbl_row),EDATE(B181,$M$3),B181)))) -> 00:00:00 | C182: =IF(OR(AND(B182<>0,B182=B181),AND(B182<>0,B183=0)),"Amortização",IF(B183=0,0,"Cupão"&ROW()-ROW($C$29)+1-COUNTIF($C$28:C181,"Amortização"))) -> 0 | D182: =IF(AND(C182=0,C183=0),0,IF(B183=0,$C$20*IF(YTM_YTC="YTC Bruta",$F$18,1),$C$20*$C$13*IF(VLOOKUP($F$16,Convencoes,2,0)=1,1/VLOOKUP($F$15,Tabelas!$J$4:$K$8,2,0),YEARFRAC(B181,B182,VLOOKUP($F$16,Convencoes,2,0))))) -> 0 | F182: 0 | G182: 0 | H182: 0 | I182: 0
A183: =+OFFSET(Inputs!$CB$12,tbl_row,ROWS($A$29:A183)) -> 00:00:00 | B183: =IF(OR(B182=0,B182=B181),0,IF(AND(A183<>0,IF(YTM_YTC<>$L$1,A183<=$F$10,TRUE)),A183,IF(YTM_YTC<>$L$1,B182,IF(B182<INDEX(Table3[LAST_CALLABLE_DATE],tbl_row),EDATE(B182,$M$3),B182)))) -> 00:00:00 | C183: =IF(OR(AND(B183<>0,B183=B182),AND(B183<>0,B184=0)),"Amortização",IF(B184=0,0,"Cupão"&ROW()-ROW($C$29)+1-COUNTIF($C$28:C182,"Amortização"))) -> 0 | D183: =IF(AND(C183=0,C184=0),0,IF(B184=0,$C$20*IF(YTM_YTC="YTC Bruta",$F$18,1),$C$20*$C$13*IF(VLOOKUP($F$16,Convencoes,2,0)=1,1/VLOOKUP($F$15,Tabelas!$J$4:$K$8,2,0),YEARFRAC(B182,B183,VLOOKUP($F$16,Convencoes,2,0))))) -> 0 | F183: 0 | G183: 0 | H183: 0 | I183: 0
A184: =+OFFSET(Inputs!$CB$12,tbl_row,ROWS($A$29:A184)) -> 00:00:00 | B184: =IF(OR(B183=0,B183=B182),0,IF(AND(A184<>0,IF(YTM_YTC<>$L$1,A184<=$F$10,TRUE)),A184,IF(YTM_YTC<>$L$1,B183,IF(B183<INDEX(Table3[LAST_CALLABLE_DATE],tbl_row),EDATE(B183,$M$3),B183)))) -> 00:00:00 | C184: =IF(OR(AND(B184<>0,B184=B183),AND(B184<>0,B185=0)),"Amortização",IF(B185=0,0,"Cupão"&ROW()-ROW($C$29)+1-COUNTIF($C$28:C183,"Amortização"))) -> 0 | D184: =IF(AND(C184=0,C185=0),0,IF(B185=0,$C$20*IF(YTM_YTC="YTC Bruta",$F$18,1),$C$20*$C$13*IF(VLOOKUP($F$16,Convencoes,2,0)=1,1/VLOOKUP($F$15,Tabelas!$J$4:$K$8,2,0),YEARFRAC(B183,B184,VLOOKUP($F$16,Convencoes,2,0))))) -> 0 | F184: 0 | G184: 0 | H184: 0 | I184: 0
A185: =+OFFSET(Inputs!$CB$12,tbl_row,ROWS($A$29:A185)) -> 00:00:00 | B185: =IF(OR(B184=0,B184=B183),0,IF(AND(A185<>0,IF(YTM_YTC<>$L$1,A185<=$F$10,TRUE)),A185,IF(YTM_YTC<>$L$1,B184,IF(B184<INDEX(Table3[LAST_CALLABLE_DATE],tbl_row),EDATE(B184,$M$3),B184)))) -> 00:00:00 | C185: =IF(OR(AND(B185<>0,B185=B184),AND(B185<>0,B186=0)),"Amortização",IF(B186=0,0,"Cupão"&ROW()-ROW($C$29)+1-COUNTIF($C$28:C184,"Amortização"))) -> 0 | D185: =IF(AND(C185=0,C186=0),0,IF(B186=0,$C$20*IF(YTM_YTC="YTC Bruta",$F$18,1),$C$20*$C$13*IF(VLOOKUP($F$16,Convencoes,2,0)=1,1/VLOOKUP($F$15,Tabelas!$J$4:$K$8,2,0),YEARFRAC(B184,B185,VLOOKUP($F$16,Convencoes,2,0))))) -> 0 | F185: 0 | G185: 0 | H185: 0 | I185: 0
A186: =+OFFSET(Inputs!$CB$12,tbl_row,ROWS($A$29:A186)) -> 00:00:00 | B186: =IF(OR(B185=0,B185=B184),0,IF(AND(A186<>0,IF(YTM_YTC<>$L$1,A186<=$F$10,TRUE)),A186,IF(YTM_YTC<>$L$1,B185,IF(B185<INDEX(Table3[LAST_CALLABLE_DATE],tbl_row),EDATE(B185,$M$3),B185)))) -> 00:00:00 | C186: =IF(OR(AND(B186<>0,B186=B185),AND(B186<>0,B187=0)),"Amortização",IF(B187=0,0,"Cupão"&ROW()-ROW($C$29)+1-COUNTIF($C$28:C185,"Amortização"))) -> 0 | D186: =IF(AND(C186=0,C187=0),0,IF(B187=0,$C$20*IF(YTM_YTC="YTC Bruta",$F$18,1),$C$20*$C$13*IF(VLOOKUP($F$16,Convencoes,2,0)=1,1/VLOOKUP($F$15,Tabelas!$J$4:$K$8,2,0),YEARFRAC(B185,B186,VLOOKUP($F$16,Convencoes,2,0))))) -> 0 | F186: 0 | G186: 0 | H186: 0 | I186: 0
A187: =+OFFSET(Inputs!$CB$12,tbl_row,ROWS($A$29:A187)) -> 00:00:00 | B187: =IF(OR(B186=0,B186=B185),0,IF(AND(A187<>0,IF(YTM_YTC<>$L$1,A187<=$F$10,TRUE)),A187,IF(YTM_YTC<>$L$1,B186,IF(B186<INDEX(Table3[LAST_CALLABLE_DATE],tbl_row),EDATE(B186,$M$3),B186)))) -> 00:00:00 | C187: =IF(OR(AND(B187<>0,B187=B186),AND(B187<>0,B188=0)),"Amortização",IF(B188=0,0,"Cupão"&ROW()-ROW($C$29)+1-COUNTIF($C$28:C186,"Amortização"))) -> 0 | D187: =IF(AND(C187=0,C188=0),0,IF(B188=0,$C$20*IF(YTM_YTC="YTC Bruta",$F$18,1),$C$20*$C$13*IF(VLOOKUP($F$16,Convencoes,2,0)=1,1/VLOOKUP($F$15,Tabelas!$J$4:$K$8,2,0),YEARFRAC(B186,B187,VLOOKUP($F$16,Convencoes,2,0))))) -> 0 | F187: 0 | G187: 0 | H187: 0 | I187: 0
A188: =+OFFSET(Inputs!$CB$12,tbl_row,ROWS($A$29:A188)) -> 00:00:00 | B188: =IF(OR(B187=0,B187=B186),0,IF(AND(A188<>0,IF(YTM_YTC<>$L$1,A188<=$F$10,TRUE)),A188,IF(YTM_YTC<>$L$1,B187,IF(B187<INDEX(Table3[LAST_CALLABLE_DATE],tbl_row),EDATE(B187,$M$3),B187)))) -> 00:00:00 | C188: =IF(OR(AND(B188<>0,B188=B187),AND(B188<>0,B189=0)),"Amortização",IF(B189=0,0,"Cupão"&ROW()-ROW($C$29)+1-COUNTIF($C$28:C187,"Amortização"))) -> 0 | D188: =IF(AND(C188=0,C189=0),0,IF(B189=0,$C$20*IF(YTM_YTC="YTC Bruta",$F$18,1),$C$20*$C$13*IF(VLOOKUP($F$16,Convencoes,2,0)=1,1/VLOOKUP($F$15,Tabelas!$J$4:$K$8,2,0),YEARFRAC(B187,B188,VLOOKUP($F$16,Convencoes,2,0))))) -> 0 | F188: 0 | G188: 0 | H188: 0 | I188: 0
A189: =+OFFSET(Inputs!$CB$12,tbl_row,ROWS($A$29:A189)) -> 00:00:00 | B189: =IF(OR(B188=0,B188=B187),0,IF(AND(A189<>0,IF(YTM_YTC<>$L$1,A189<=$F$10,TRUE)),A189,IF(YTM_YTC<>$L$1,B188,IF(B188<INDEX(Table3[LAST_CALLABLE_DATE],tbl_row),EDATE(B188,$M$3),B188)))) -> 00:00:00 | C189: =IF(OR(AND(B189<>0,B189=B188),AND(B189<>0,B190=0)),"Amortização",IF(B190=0,0,"Cupão"&ROW()-ROW($C$29)+1-COUNTIF($C$28:C188,"Amortização"))) -> 0 | D189: =IF(AND(C189=0,C190=0),0,IF(B190=0,$C$20*IF(YTM_YTC="YTC Bruta",$F$18,1),$C$20*$C$13*IF(VLOOKUP($F$16,Convencoes,2,0)=1,1/VLOOKUP($F$15,Tabelas!$J$4:$K$8,2,0),YEARFRAC(B188,B189,VLOOKUP($F$16,Convencoes,2,0))))) -> 0 | F189: 0 | G189: 0 | H189: 0 | I189: 0
A190: =+OFFSET(Inputs!$CB$12,tbl_row,ROWS($A$29:A190)) -> 00:00:00 | B190: =IF(OR(B189=0,B189=B188),0,IF(AND(A190<>0,IF(YTM_YTC<>$L$1,A190<=$F$10,TRUE)),A190,IF(YTM_YTC<>$L$1,B189,IF(B189<INDEX(Table3[LAST_CALLABLE_DATE],tbl_row),EDATE(B189,$M$3),B189)))) -> 00:00:00 | C190: =IF(OR(AND(B190<>0,B190=B189),AND(B190<>0,B191=0)),"Amortização",IF(B191=0,0,"Cupão"&ROW()-ROW($C$29)+1-COUNTIF($C$28:C189,"Amortização"))) -> 0 | D190: =IF(AND(C190=0,C191=0),0,IF(B191=0,$C$20*IF(YTM_YTC="YTC Bruta",$F$18,1),$C$20*$C$13*IF(VLOOKUP($F$16,Convencoes,2,0)=1,1/VLOOKUP($F$15,Tabelas!$J$4:$K$8,2,0),YEARFRAC(B189,B190,VLOOKUP($F$16,Convencoes,2,0))))) -> 0 | F190: 0 | G190: 0 | H190: 0 | I190: 0
A191: =+OFFSET(Inputs!$CB$12,tbl_row,ROWS($A$29:A191)) -> 00:00:00 | B191: =IF(OR(B190=0,B190=B189),0,IF(AND(A191<>0,IF(YTM_YTC<>$L$1,A191<=$F$10,TRUE)),A191,IF(YTM_YTC<>$L$1,B190,IF(B190<INDEX(Table3[LAST_CALLABLE_DATE],tbl_row),EDATE(B190,$M$3),B190)))) -> 00:00:00 | C191: =IF(OR(AND(B191<>0,B191=B190),AND(B191<>0,B192=0)),"Amortização",IF(B192=0,0,"Cupão"&ROW()-ROW($C$29)+1-COUNTIF($C$28:C190,"Amortização"))) -> 0 | D191: =IF(AND(C191=0,C192=0),0,IF(B192=0,$C$20*IF(YTM_YTC="YTC Bruta",$F$18,1),$C$20*$C$13*IF(VLOOKUP($F$16,Convencoes,2,0)=1,1/VLOOKUP($F$15,Tabelas!$J$4:$K$8,2,0),YEARFRAC(B190,B191,VLOOKUP($F$16,Convencoes,2,0))))) -> 0 | F191: 0 | G191: 0 | H191: 0 | I191: 0
A192: =+OFFSET(Inputs!$CB$12,tbl_row,ROWS($A$29:A192)) -> 00:00:00 | B192: =IF(OR(B191=0,B191=B190),0,IF(AND(A192<>0,IF(YTM_YTC<>$L$1,A192<=$F$10,TRUE)),A192,IF(YTM_YTC<>$L$1,B191,IF(B191<INDEX(Table3[LAST_CALLABLE_DATE],tbl_row),EDATE(B191,$M$3),B191)))) -> 00:00:00 | C192: =IF(OR(AND(B192<>0,B192=B191),AND(B192<>0,B193=0)),"Amortização",IF(B193=0,0,"Cupão"&ROW()-ROW($C$29)+1-COUNTIF($C$28:C191,"Amortização"))) -> 0 | D192: =IF(AND(C192=0,C193=0),0,IF(B193=0,$C$20*IF(YTM_YTC="YTC Bruta",$F$18,1),$C$20*$C$13*IF(VLOOKUP($F$16,Convencoes,2,0)=1,1/VLOOKUP($F$15,Tabelas!$J$4:$K$8,2,0),YEARFRAC(B191,B192,VLOOKUP($F$16,Convencoes,2,0))))) -> 0 | F192: 0 | G192: 0 | H192: 0 | I192: 0
A193: =+OFFSET(Inputs!$CB$12,tbl_row,ROWS($A$29:A193)) -> 00:00:00 | B193: =IF(OR(B192=0,B192=B191),0,IF(AND(A193<>0,IF(YTM_YTC<>$L$1,A193<=$F$10,TRUE)),A193,IF(YTM_YTC<>$L$1,B192,IF(B192<INDEX(Table3[LAST_CALLABLE_DATE],tbl_row),EDATE(B192,$M$3),B192)))) -> 00:00:00 | C193: =IF(OR(AND(B193<>0,B193=B192),AND(B193<>0,B194=0)),"Amortização",IF(B194=0,0,"Cupão"&ROW()-ROW($C$29)+1-COUNTIF($C$28:C192,"Amortização"))) -> 0 | D193: =IF(AND(C193=0,C194=0),0,IF(B194=0,$C$20*IF(YTM_YTC="YTC Bruta",$F$18,1),$C$20*$C$13*IF(VLOOKUP($F$16,Convencoes,2,0)=1,1/VLOOKUP($F$15,Tabelas!$J$4:$K$8,2,0),YEARFRAC(B192,B193,VLOOKUP($F$16,Convencoes,2,0))))) -> 0 | F193: 0 | G193: 0 | H193: 0 | I193: 0
A194: =+OFFSET(Inputs!$CB$12,tbl_row,ROWS($A$29:A194)) -> 00:00:00 | B194: =IF(OR(B193=0,B193=B192),0,IF(AND(A194<>0,IF(YTM_YTC<>$L$1,A194<=$F$10,TRUE)),A194,IF(YTM_YTC<>$L$1,B193,IF(B193<INDEX(Table3[LAST_CALLABLE_DATE],tbl_row),EDATE(B193,$M$3),B193)))) -> 00:00:00 | C194: =IF(OR(AND(B194<>0,B194=B193),AND(B194<>0,B195=0)),"Amortização",IF(B195=0,0,"Cupão"&ROW()-ROW($C$29)+1-COUNTIF($C$28:C193,"Amortização"))) -> 0 | D194: =IF(AND(C194=0,C195=0),0,IF(B195=0,$C$20*IF(YTM_YTC="YTC Bruta",$F$18,1),$C$20*$C$13*IF(VLOOKUP($F$16,Convencoes,2,0)=1,1/VLOOKUP($F$15,Tabelas!$J$4:$K$8,2,0),YEARFRAC(B193,B194,VLOOKUP($F$16,Convencoes,2,0))))) -> 0 | F194: 0 | G194: 0 | H194: 0 | I194: 0
A195: =+OFFSET(Inputs!$CB$12,tbl_row,ROWS($A$29:A195)) -> 00:00:00 | B195: =IF(OR(B194=0,B194=B193),0,IF(AND(A195<>0,IF(YTM_YTC<>$L$1,A195<=$F$10,TRUE)),A195,IF(YTM_YTC<>$L$1,B194,IF(B194<INDEX(Table3[LAST_CALLABLE_DATE],tbl_row),EDATE(B194,$M$3),B194)))) -> 00:00:00 | C195: =IF(OR(AND(B195<>0,B195=B194),AND(B195<>0,B196=0)),"Amortização",IF(B196=0,0,"Cupão"&ROW()-ROW($C$29)+1-COUNTIF($C$28:C194,"Amortização"))) -> 0 | D195: =IF(AND(C195=0,C196=0),0,IF(B196=0,$C$20*IF(YTM_YTC="YTC Bruta",$F$18,1),$C$20*$C$13*IF(VLOOKUP($F$16,Convencoes,2,0)=1,1/VLOOKUP($F$15,Tabelas!$J$4:$K$8,2,0),YEARFRAC(B194,B195,VLOOKUP($F$16,Convencoes,2,0))))) -> 0 | F195: 0 | G195: 0 | H195: 0 | I195: 0
A196: =+OFFSET(Inputs!$CB$12,tbl_row,ROWS($A$29:A196)) -> 00:00:00 | B196: =IF(OR(B195=0,B195=B194),0,IF(AND(A196<>0,IF(YTM_YTC<>$L$1,A196<=$F$10,TRUE)),A196,IF(YTM_YTC<>$L$1,B195,IF(B195<INDEX(Table3[LAST_CALLABLE_DATE],tbl_row),EDATE(B195,$M$3),B195)))) -> 00:00:00 | C196: =IF(OR(AND(B196<>0,B196=B195),AND(B196<>0,B197=0)),"Amortização",IF(B197=0,0,"Cupão"&ROW()-ROW($C$29)+1-COUNTIF($C$28:C195,"Amortização"))) -> 0 | D196: =IF(AND(C196=0,C197=0),0,IF(B197=0,$C$20*IF(YTM_YTC="YTC Bruta",$F$18,1),$C$20*$C$13*IF(VLOOKUP($F$16,Convencoes,2,0)=1,1/VLOOKUP($F$15,Tabelas!$J$4:$K$8,2,0),YEARFRAC(B195,B196,VLOOKUP($F$16,Convencoes,2,0))))) -> 0 | F196: 0 | G196: 0 | H196: 0 | I196: 0
A197: =+OFFSET(Inputs!$CB$12,tbl_row,ROWS($A$29:A197)) -> 00:00:00 | B197: =IF(OR(B196=0,B196=B195),0,IF(AND(A197<>0,IF(YTM_YTC<>$L$1,A197<=$F$10,TRUE)),A197,IF(YTM_YTC<>$L$1,B196,IF(B196<INDEX(Table3[LAST_CALLABLE_DATE],tbl_row),EDATE(B196,$M$3),B196)))) -> 00:00:00 | C197: =IF(OR(AND(B197<>0,B197=B196),AND(B197<>0,B198=0)),"Amortização",IF(B198=0,0,"Cupão"&ROW()-ROW($C$29)+1-COUNTIF($C$28:C196,"Amortização"))) -> 0 | D197: =IF(AND(C197=0,C198=0),0,IF(B198=0,$C$20*IF(YTM_YTC="YTC Bruta",$F$18,1),$C$20*$C$13*IF(VLOOKUP($F$16,Convencoes,2,0)=1,1/VLOOKUP($F$15,Tabelas!$J$4:$K$8,2,0),YEARFRAC(B196,B197,VLOOKUP($F$16,Convencoes,2,0))))) -> 0 | F197: 0 | G197: 0 | H197: 0 | I197: 0
A198: =+OFFSET(Inputs!$CB$12,tbl_row,ROWS($A$29:A198)) -> 00:00:00 | B198: =IF(OR(B197=0,B197=B196),0,IF(AND(A198<>0,IF(YTM_YTC<>$L$1,A198<=$F$10,TRUE)),A198,IF(YTM_YTC<>$L$1,B197,IF(B197<INDEX(Table3[LAST_CALLABLE_DATE],tbl_row),EDATE(B197,$M$3),B197)))) -> 00:00:00 | C198: =IF(OR(AND(B198<>0,B198=B197),AND(B198<>0,B199=0)),"Amortização",IF(B199=0,0,"Cupão"&ROW()-ROW($C$29)+1-COUNTIF($C$28:C197,"Amortização"))) -> 0 | D198: =IF(AND(C198=0,C199=0),0,IF(B199=0,$C$20*IF(YTM_YTC="YTC Bruta",$F$18,1),$C$20*$C$13*IF(VLOOKUP($F$16,Convencoes,2,0)=1,1/VLOOKUP($F$15,Tabelas!$J$4:$K$8,2,0),YEARFRAC(B197,B198,VLOOKUP($F$16,Convencoes,2,0))))) -> 0 | F198: 0 | G198: 0 | H198: 0 | I198: 0
A199: =+OFFSET(Inputs!$CB$12,tbl_row,ROWS($A$29:A199)) -> 00:00:00 | B199: =IF(OR(B198=0,B198=B197),0,IF(AND(A199<>0,IF(YTM_YTC<>$L$1,A199<=$F$10,TRUE)),A199,IF(YTM_YTC<>$L$1,B198,IF(B198<INDEX(Table3[LAST_CALLABLE_DATE],tbl_row),EDATE(B198,$M$3),B198)))) -> 00:00:00 | C199: =IF(OR(AND(B199<>0,B199=B198),AND(B199<>0,B200=0)),"Amortização",IF(B200=0,0,"Cupão"&ROW()-ROW($C$29)+1-COUNTIF($C$28:C198,"Amortização"))) -> 0 | D199: =IF(AND(C199=0,C200=0),0,IF(B200=0,$C$20*IF(YTM_YTC="YTC Bruta",$F$18,1),$C$20*$C$13*IF(VLOOKUP($F$16,Convencoes,2,0)=1,1/VLOOKUP($F$15,Tabelas!$J$4:$K$8,2,0),YEARFRAC(B198,B199,VLOOKUP($F$16,Convencoes,2,0))))) -> 0 | F199: 0 | G199: 0 | H199: 0 | I199: 0
A200: =+OFFSET(Inputs!$CB$12,tbl_row,ROWS($A$29:A200)) -> 00:00:00 | B200: =IF(OR(B199=0,B199=B198),0,IF(AND(A200<>0,IF(YTM_YTC<>$L$1,A200<=$F$10,TRUE)),A200,IF(YTM_YTC<>$L$1,B199,IF(B199<INDEX(Table3[LAST_CALLABLE_DATE],tbl_row),EDATE(B199,$M$3),B199)))) -> 00:00:00 | C200: =IF(OR(AND(B200<>0,B200=B199),AND(B200<>0,B201=0)),"Amortização",IF(B201=0,0,"Cupão"&ROW()-ROW($C$29)+1-COUNTIF($C$28:C199,"Amortização"))) -> 0 | D200: =IF(AND(C200=0,C201=0),0,IF(B201=0,$C$20*IF(YTM_YTC="YTC Bruta",$F$18,1),$C$20*$C$13*IF(VLOOKUP($F$16,Convencoes,2,0)=1,1/VLOOKUP($F$15,Tabelas!$J$4:$K$8,2,0),YEARFRAC(B199,B200,VLOOKUP($F$16,Convencoes,2,0))))) -> 0 | F200: 0 | G200: 0 | H200: 0 | I200: 0
A201: =+OFFSET(Inputs!$CB$12,tbl_row,ROWS($A$29:A201)) -> 00:00:00 | B201: =IF(OR(B200=0,B200=B199),0,IF(AND(A201<>0,IF(YTM_YTC<>$L$1,A201<=$F$10,TRUE)),A201,IF(YTM_YTC<>$L$1,B200,IF(B200<INDEX(Table3[LAST_CALLABLE_DATE],tbl_row),EDATE(B200,$M$3),B200)))) -> 00:00:00 | C201: =IF(OR(AND(B201<>0,B201=B200),AND(B201<>0,B202=0)),"Amortização",IF(B202=0,0,"Cupão"&ROW()-ROW($C$29)+1-COUNTIF($C$28:C200,"Amortização"))) -> 0 | D201: =IF(AND(C201=0,C202=0),0,IF(B202=0,$C$20*IF(YTM_YTC="YTC Bruta",$F$18,1),$C$20*$C$13*IF(VLOOKUP($F$16,Convencoes,2,0)=1,1/VLOOKUP($F$15,Tabelas!$J$4:$K$8,2,0),YEARFRAC(B200,B201,VLOOKUP($F$16,Convencoes,2,0))))) -> 0 | F201: 0 | G201: 0 | H201: 0 | I201: 0
A202: =+OFFSET(Inputs!$CB$12,tbl_row,ROWS($A$29:A202)) -> 00:00:00 | B202: =IF(OR(B201=0,B201=B200),0,IF(AND(A202<>0,IF(YTM_YTC<>$L$1,A202<=$F$10,TRUE)),A202,IF(YTM_YTC<>$L$1,B201,IF(B201<INDEX(Table3[LAST_CALLABLE_DATE],tbl_row),EDATE(B201,$M$3),B201)))) -> 00:00:00 | C202: =IF(OR(AND(B202<>0,B202=B201),AND(B202<>0,B203=0)),"Amortização",IF(B203=0,0,"Cupão"&ROW()-ROW($C$29)+1-COUNTIF($C$28:C201,"Amortização"))) -> 0 | D202: =IF(AND(C202=0,C203=0),0,IF(B203=0,$C$20*IF(YTM_YTC="YTC Bruta",$F$18,1),$C$20*$C$13*IF(VLOOKUP($F$16,Convencoes,2,0)=1,1/VLOOKUP($F$15,Tabelas!$J$4:$K$8,2,0),YEARFRAC(B201,B202,VLOOKUP($F$16,Convencoes,2,0))))) -> 0 | F202: 0 | G202: 0 | H202: 0 | I202: 0
... 118 more rows

Sheet Tabelas (hidden)
D1: ="D5:D"&ROWS(CUPAO)+4 -> D5:D374 | W1: Feriados Target
AA2: BrockerNamesConvertion | AE2: table3 | AF2: SecuritiesOutsideSimulator | AG2: NotesSifox | AJ2: NotMeant
A3: countUnique | B3: BondType | C3: Country | D3: Bonds | G3: qryCountry | I3: Meses | J3: Periodicidade | M3: Convenções | Q3: Emitentes | AA3: DB | AB3: DAB | AE3: =IF(ISNUMBER(MATCH(AF3,Table3[ISIN],0)),MATCH(AF3,Table3[ISIN],0)) -> FALSE | AF3: XS0720589174 | AG3: =+INDEX(Called_Check_Isin,LARGE((471518=#REF!)*ROW(#REF!),ROWS(AG$3:AG3))) ->  | AJ3: 45979
A4: =SUMPRODUCT((qryCountry<>"")/COUNTIF(qryCountry,qryCountry&"")) -> 1 | B4: Corporate | C4: =+IF(ROWS($C$4:C4)>countUnique,"",INDEX(qryCountry,SMALL(IF(FREQUENCY(IF(qryCountry<>"",MATCH(qryCountry,qryCountry&"",0)),ROW(qryCountry)-ROW($G$4)+1),ROW(qryCountry)-ROW($G$4)+1),ROW()-ROW($C$4)+1))) -> PORTUGAL | D4: =IF(NOT(ISERROR(INDEX(IF(Descricao__1<>"",Descricao__1,""),SMALL(IF(Simulador!$C$7="",1,IF(Simulador!$C$7=CNTRY_OF_RISK,1,999))*IF(Simulador!$C$6="",1,IF(Simulador!$C$5=MARKET_SECTOR,1,999))*(ROW(INDIRECT(D1))-ROW(D5)+1),(ROW(INDIRECT(D1))-ROW(D5)+1))))),INDEX(IF(Descricao__1<>"",Descricao__1,""),SMALL(IF(Simulador!$C$7="",1,IF(Simulador!$C$7=CNTRY_OF_RISK,1,999))*IF(Simulador!$C$6="",1,IF(Simulador!$C$5=MARKET_SECTOR,1,999))*(ROW(INDIRECT(D1))-ROW(D5)+1),(ROW(INDIRECT(D1))-ROW(D5)+1))),"") -> Benfica 2026-2031 | E4: =+OFFSET($C$4,,,COUNTA($C$4:$C$64)-COUNTIF($C$4:$C$64,"")) -> PORTUGAL | G4: =+IF(Inputs!$BC$13:$BC$9140=Simulador!$C$5,Inputs!$AA$13:$AA$9140,"") -> PORTUGAL | I4: 1 | J4: Anual | K4: =+I4 -> 1 | L4: 5 | M4: 30/360 | N4: 4 | Q4: AUSTRALIAN GOVERNMENT | R4: GOVERNO AUSTRALIANO | W4: 2005-03-25 | AA4: ZKB | AB4: ZKB | AE4: =IF(ISNUMBER(MATCH(AF4,Table3[ISIN],0)),MATCH(AF4,Table3[ISIN],0)) -> FALSE | AF4: US46556MAK80 | AG4: =+INDEX(Called_Check_Isin,LARGE((471518=#REF!)*ROW(#REF!),ROWS(AG$3:AG4))) ->  | AJ4: 47240
B5: Government | C5: =+IF(ROWS($C$4:C5)>countUnique,"",INDEX(qryCountry,SMALL(IF(FREQUENCY(IF(qryCountry<>"",MATCH(qryCountry,qryCountry&"",0)),ROW(qryCountry)-ROW($G$4)+1),ROW(qryCountry)-ROW($G$4)+1),ROW()-ROW($C$4)+1))) ->  | I5: 2 | J5: Semestral | K5: 2 | L5: 14 | M5: 30/360 NON-EOM | N5: 4 | Q5: LAND BERLIN | R5: LAND BERLIN | W5: 2005-03-28 | AA5: NOM | AB5: NOMX | AE5: =IF(ISNUMBER(MATCH(AF5,Table3[ISIN],0)),MATCH(AF5,Table3[ISIN],0)) -> FALSE | AF5: XS0365923977 | AG5: =+INDEX(Called_Check_Isin,LARGE((471518=#REF!)*ROW(#REF!),ROWS(AG$3:AG5))) ->  | AJ5: 100514
C6: =+IF(ROWS($C$4:C6)>countUnique,"",INDEX(qryCountry,SMALL(IF(FREQUENCY(IF(qryCountry<>"",MATCH(qryCountry,qryCountry&"",0)),ROW(qryCountry)-ROW($G$4)+1),ROW(qryCountry)-ROW($G$4)+1),ROW()-ROW($C$4)+1))) ->  | I6: 3 | J6: Quadrimestral | K6: 3 | L6: 6 | M6: 30/365 | Q6: BPE FINANCIACIONES SA | R6: BPE FINANCIACIONES SA | W6: 2005-05-01 | AA6: HVB | AB6: HVB | AE6: =IF(ISNUMBER(MATCH(AF6,Table3[ISIN],0)),MATCH(AF6,Table3[ISIN],0)) -> FALSE | AF6: DE000A1TNA39 | AG6: =+INDEX(Called_Check_Isin,LARGE((471518=#REF!)*ROW(#REF!),ROWS(AG$3:AG6))) ->  | AJ6: 101514
C7: =+IF(ROWS($C$4:C7)>countUnique,"",INDEX(qryCountry,SMALL(IF(FREQUENCY(IF(qryCountry<>"",MATCH(qryCountry,qryCountry&"",0)),ROW(qryCountry)-ROW($G$4)+1),ROW(qryCountry)-ROW($G$4)+1),ROW()-ROW($C$4)+1))) ->  | I7: 4 | J7: Trimestral | K7: 4 | L7: 15 | M7: 30/365 NON-EOM | Q7: BUNDESSCHATZANWEISUNGEN | R7: TESOURARIA REPÚBLICA FEDERAL ALEMÃ | W7: 2005-12-25 | AA7: RBSM | AB7: RBSM | AE7: =IF(ISNUMBER(MATCH(AF7,Table3[ISIN],0)),MATCH(AF7,Table3[ISIN],0)) -> FALSE | AF7: PTMOCQOE0006 | AG7: =+INDEX(Called_Check_Isin,LARGE((471518=#REF!)*ROW(#REF!),ROWS(AG$3:AG7))) ->  | AJ7: 102514
C8: =+IF(ROWS($C$4:C8)>countUnique,"",INDEX(qryCountry,SMALL(IF(FREQUENCY(IF(qryCountry<>"",MATCH(qryCountry,qryCountry&"",0)),ROW(qryCountry)-ROW($G$4)+1),ROW(qryCountry)-ROW($G$4)+1),ROW()-ROW($C$4)+1))) ->  | I8: 12 | J8: Mensal | K8: 12 | L8: 4 | M8: 30/ACT | Q8: FED REPUBLIC OF BRAZIL | R8: REPÚBLICA FEDERATIVA DO BRASIL | W8: 2005-12-26 | AA8: EBNP | AB8: EBNP | AE8: =IF(ISNUMBER(MATCH(AF8,Table3[ISIN],0)),MATCH(AF8,Table3[ISIN],0)) -> FALSE | AF8: PTOTENOE0018 | AG8: =+INDEX(Called_Check_Isin,LARGE((471518=#REF!)*ROW(#REF!),ROWS(AG$3:AG8))) ->  | AJ8: 103514
C9: =+IF(ROWS($C$4:C9)>countUnique,"",INDEX(qryCountry,SMALL(IF(FREQUENCY(IF(qryCountry<>"",MATCH(qryCountry,qryCountry&"",0)),ROW(qryCountry)-ROW($G$4)+1),ROW(qryCountry)-ROW($G$4)+1),ROW()-ROW($C$4)+1))) ->  | L9: 13 | M9: 30/ACT NON-EOM | Q9: REPUBLIC OF CYPRUS | R9: REPÚBLICA DE CHIPRE | W9: 2006-01-01 | AA9: BMLX | AB9: BMLX | AE9: =IF(ISNUMBER(MATCH(AF9,Table3[ISIN],0)),MATCH(AF9,Table3[ISIN],0)) -> FALSE | AF9: XS1136802615 | AG9: =+INDEX(Called_Check_Isin,LARGE((471518=#REF!)*ROW(#REF!),ROWS(AG$3:AG9))) ->  | AJ9: 203507
C10: =+IF(ROWS($C$4:C10)>countUnique,"",INDEX(qryCountry,SMALL(IF(FREQUENCY(IF(qryCountry<>"",MATCH(qryCountry,qryCountry&"",0)),ROW(qryCountry)-ROW($G$4)+1),ROW(qryCountry)-ROW($G$4)+1),ROW()-ROW($C$4)+1))) ->  | L10: 2 | M10: ACT/360 | N10: 2 | Q10: BUNDESREPUB. DEUTSCHLAND | R10: REPÚBLICA FEDERAL ALEMÃ | W10: 2006-04-14 | AA10: BAME | AB10: BAME | AE10: =IF(ISNUMBER(MATCH(AF10,Table3[ISIN],0)),MATCH(AF10,Table3[ISIN],0)) -> FALSE | AF10: DE0001135358 | AG10: =+INDEX(Called_Check_Isin,LARGE((471518=#REF!)*ROW(#REF!),ROWS(AG$3:AG10))) ->  | AJ10: 275481
C11: =+IF(ROWS($C$4:C11)>countUnique,"",INDEX(qryCountry,SMALL(IF(FREQUENCY(IF(qryCountry<>"",MATCH(qryCountry,qryCountry&"",0)),ROW(qryCountry)-ROW($G$4)+1),ROW(qryCountry)-ROW($G$4)+1),ROW()-ROW($C$4)+1))) ->  | L11: 11 | M11: ACT/360 NON-EOM | N11: 2 | Q11: INSTITUT CREDITO OFICIAL | R11: INSTITUTO CREDITO OFICIAL | W11: 2006-04-16 | AA11: FRTB | AB11: FRTB | AE11: =IF(ISNUMBER(MATCH(AF11,Table3[ISIN],0)),MATCH(AF11,Table3[ISIN],0)) -> FALSE | AF11: ES0268675024 | AG11: =+INDEX(Called_Check_Isin,LARGE((471518=#REF!)*ROW(#REF!),ROWS(AG$3:AG11))) ->  | AJ11: 345030
C12: =+IF(ROWS($C$4:C12)>countUnique,"",INDEX(qryCountry,SMALL(IF(FREQUENCY(IF(qryCountry<>"",MATCH(qryCountry,qryCountry&"",0)),ROW(qryCountry)-ROW($G$4)+1),ROW(qryCountry)-ROW($G$4)+1),ROW()-ROW($C$4)+1))) ->  | L12: 27 | M12: ACT/364 | Q12: NORWEGIAN GOVERNMENT | R12: GOVERNO NORUEGUÊS | W12: 2006-04-17 | AA12: MLJ | AB12: MLJ | AE12: =IF(ISNUMBER(MATCH(AF12,Table3[ISIN],0)),MATCH(AF12,Table3[ISIN],0)) -> FALSE | AF12: DE000A1TNAP7 | AG12: =+INDEX(Called_Check_Isin,LARGE((471518=#REF!)*ROW(#REF!),ROWS(AG$3:AG12))) ->  | AJ12: 377525
C13: =+IF(ROWS($C$4:C13)>countUnique,"",INDEX(qryCountry,SMALL(IF(FREQUENCY(IF(qryCountry<>"",MATCH(qryCountry,qryCountry&"",0)),ROW(qryCountry)-ROW($G$4)+1),ROW(qryCountry)-ROW($G$4)+1),ROW()-ROW($C$4)+1))) ->  | I13: CurrenciesBloomberg | L13: 30 | M13: ACT/364 NON-EOM | Q13: BUNDESOBLIGATION | R13: REPÚBLICA FEDERAL ALEMÃ | W13: 2006-05-01 | AA13: BMLL | AB13: BMLL | AE13: =IF(ISNUMBER(MATCH(AF13,Table3[ISIN],0)),MATCH(AF13,Table3[ISIN],0)) -> FALSE | AF13: XS0089375249 | AG13: =+INDEX(Called_Check_Isin,LARGE((471518=#REF!)*ROW(#REF!),ROWS(AG$3:AG13))) ->  | AJ13: 900514
C14: =+IF(ROWS($C$4:C14)>countUnique,"",INDEX(qryCountry,SMALL(IF(FREQUENCY(IF(qryCountry<>"",MATCH(qryCountry,qryCountry&"",0)),ROW(qryCountry)-ROW($G$4)+1),ROW(qryCountry)-ROW($G$4)+1),ROW()-ROW($C$4)+1))) ->  | I14: EUR | J14: 1 | L14: 3 | M14: ACT/365 | N14: 3 | Q14: PARPUBLICA | R14: PARPÚBLICA | W14: 2006-12-25 | AA14: DABC | AB14: DABC | AE14: =IF(ISNUMBER(MATCH(AF14,Table3[ISIN],0)),MATCH(AF14,Table3[ISIN],0)) -> FALSE | AF14: XS0955552178 | AG14: =+INDEX(Called_Check_Isin,LARGE((471518=#REF!)*ROW(#REF!),ROWS(AG$3:AG14))) ->  | AJ14: 902514
C15: =+IF(ROWS($C$4:C15)>countUnique,"",INDEX(qryCountry,SMALL(IF(FREQUENCY(IF(qryCountry<>"",MATCH(qryCountry,qryCountry&"",0)),ROW(qryCountry)-ROW($G$4)+1),ROW(qryCountry)-ROW($G$4)+1),ROW()-ROW($C$4)+1))) ->  | I15: USD | J15: =+_xll.BDP("EUR"&I15&" Curncy","PX_LAST") -> 1.1664 | L15: 12 | M15: ACT/365 NON-EOM | N15: 3 | Q15: OBRIGACOES DO TESOURO | R15: REPÚBLICA PORTUGUESA | W15: 2006-12-26 | AA15: HVBT | AB15: HVBT | AE15: =IF(ISNUMBER(MATCH(AF15,Table3[ISIN],0)),MATCH(AF15,Table3[ISIN],0)) -> FALSE | AF15: ES00000121A5 | AG15: =+INDEX(Called_Check_Isin,LARGE((471518=#REF!)*ROW(#REF!),ROWS(AG$3:AG15))) ->  | AJ15: 904514
C16: =+IF(ROWS($C$4:C16)>countUnique,"",INDEX(qryCountry,SMALL(IF(FREQUENCY(IF(qryCountry<>"",MATCH(qryCountry,qryCountry&"",0)),ROW(qryCountry)-ROW($G$4)+1),ROW(qryCountry)-ROW($G$4)+1),ROW()-ROW($C$4)+1))) ->  | I16: GBP | J16: =+_xll.BDP("EUR"&I16&" Curncy","PX_LAST") -> 0.87089 | L16: 1 | M16: ACT/ACT | N16: 1 | Q16: SWEDISH GOVERNMENT | R16: GOVERNO SUECO | W16: 2007-01-01 | AA16: HVBC | AB16: HVBC | AE16: =IF(ISNUMBER(MATCH(AF16,Table3[ISIN],0)),MATCH(AF16,Table3[ISIN],0)) -> FALSE | AF16: IT0004361041 | AG16: =+INDEX(Called_Check_Isin,LARGE((471518=#REF!)*ROW(#REF!),ROWS(AG$3:AG16))) ->  | AJ16: 1120157
C17: =+IF(ROWS($C$4:C17)>countUnique,"",INDEX(qryCountry,SMALL(IF(FREQUENCY(IF(qryCountry<>"",MATCH(qryCountry,qryCountry&"",0)),ROW(qryCountry)-ROW($G$4)+1),ROW(qryCountry)-ROW($G$4)+1),ROW()-ROW($C$4)+1))) ->  | I17: CHF | J17: =+_xll.BDP("EUR"&I17&" Curncy","PX_LAST") -> 0.92305 | L17: 10 | M17: ACT/ACT NON-EOM | N17: 1 | Q17: ANGLO AMERICAN CAPITAL | R17: ANGLO AMERICAN CAPITAL | W17: 2007-04-06 | AA17: BPNI | AB17: BPNI | AE17: =IF(ISNUMBER(MATCH(AF17,Table3[ISIN],0)),MATCH(AF17,Table3[ISIN],0)) -> FALSE | AF17: NL0006380537 | AG17: =+INDEX(Called_Check_Isin,LARGE((471518=#REF!)*ROW(#REF!),ROWS(AG$3:AG17))) ->  | AJ17: 406528
C18: =+IF(ROWS($C$4:C18)>countUnique,"",INDEX(qryCountry,SMALL(IF(FREQUENCY(IF(qryCountry<>"",MATCH(qryCountry,qryCountry&"",0)),ROW(qryCountry)-ROW($G$4)+1),ROW(qryCountry)-ROW($G$4)+1),ROW()-ROW($C$4)+1))) ->  | I18: CAD | J18: =+_xll.BDP("EUR"&I18&" Curncy","PX_LAST") -> 1.61591 | L18: 36 | M18: BUS DAY/252NON-EOM | Q18: ABERTIS INFRAESTRUCTURAS | R18: ABERTIS INFRAESTRUCTURAS | W18: 2007-04-08 | AA18: DABA | AB18: DABA | AE18: =IF(ISNUMBER(MATCH(AF18,Table3[ISIN],0)),MATCH(AF18,Table3[ISIN],0)) -> FALSE | AF18: XS0963868699 | AG18: =+INDEX(Called_Check_Isin,LARGE((471518=#REF!)*ROW(#REF!),ROWS(AG$3:AG18))) ->  | AJ18: 430972
C19: =+IF(ROWS($C$4:C19)>countUnique,"",INDEX(qryCountry,SMALL(IF(FREQUENCY(IF(qryCountry<>"",MATCH(qryCountry,qryCountry&"",0)),ROW(qryCountry)-ROW($G$4)+1),ROW(qryCountry)-ROW($G$4)+1),ROW()-ROW($C$4)+1))) ->  | I19: AUD | J19: =+_xll.BDP("EUR"&I19&" Curncy","PX_LAST") -> 1.66025 | L19: 33 | M19: BUS DAYS/252 | Q19: ABENGOA SA | R19: ABENGOA SA | W19: 2007-04-09 | AA19: NOMC | AB19: NOMC | AE19: =IF(ISNUMBER(MATCH(AF19,Table3[ISIN],0)),MATCH(AF19,Table3[ISIN],0)) -> FALSE | AF19: FR0011568963 | AG19: =+INDEX(Called_Check_Isin,LARGE((471518=#REF!)*ROW(#REF!),ROWS(AG$3:AG19))) ->  | AJ19: 469384
C20: =+IF(ROWS($C$4:C20)>countUnique,"",INDEX(qryCountry,SMALL(IF(FREQUENCY(IF(qryCountry<>"",MATCH(qryCountry,qryCountry&"",0)),ROW(qryCountry)-ROW($G$4)+1),ROW(qryCountry)-ROW($G$4)+1),ROW()-ROW($C$4)+1))) ->  | L20: 38 | M20: GER:30/360 NON-EOM | Q20: ABENGOA FINANCE SAU | R20: ABENGOA FINANCE SAU | W20: 2007-05-01 | AA20: BESR | AB20: BESR | AE20: =IF(ISNUMBER(MATCH(AF20,Table3[ISIN],0)),MATCH(AF20,Table3[ISIN],0)) -> FALSE | AF20: XS1349094471 | AG20: =+INDEX(Called_Check_Isin,LARGE((471518=#REF!)*ROW(#REF!),ROWS(AG$3:AG20))) ->  | AJ20: 472585
C21: =+IF(ROWS($C$4:C21)>countUnique,"",INDEX(qryCountry,SMALL(IF(FREQUENCY(IF(qryCountry<>"",MATCH(qryCountry,qryCountry&"",0)),ROW(qryCountry)-ROW($G$4)+1),ROW(qryCountry)-ROW($G$4)+1),ROW()-ROW($C$4)+1))) ->  | I21: CurrenciesValues | L21: 35 | M21: GERMAN:30/360 | Q21: CA PREFERRED FUND TRUST | R21: CA PREFERRED FUND TRUST | W21: 2007-12-25 | AA21: BPEG | AB21: BPEG | AE21: =IF(ISNUMBER(MATCH(AF21,Table3[ISIN],0)),MATCH(AF21,Table3[ISIN],0)) -> FALSE | AF21: IT0004967698 | AG21: =+INDEX(Called_Check_Isin,LARGE((471518=#REF!)*ROW(#REF!),ROWS(AG$3:AG21))) ->  | AJ21: 484516
C22: =+IF(ROWS($C$4:C22)>countUnique,"",INDEX(qryCountry,SMALL(IF(FREQUENCY(IF(qryCountry<>"",MATCH(qryCountry,qryCountry&"",0)),ROW(qryCountry)-ROW($G$4)+1),ROW(qryCountry)-ROW($G$4)+1),ROW()-ROW($C$4)+1))) ->  | I22: EUR | J22: 1 | L22: 53 | M22: ISDA 30E/360 N-EOM | Q22: CREDIT AGRICOLE SA | R22: CREDIT AGRICOLE SA | W22: 2007-12-26 | AE22: =IF(ISNUMBER(MATCH(AF22,Table3[ISIN],0)),MATCH(AF22,Table3[ISIN],0)) -> FALSE | AG22: =+INDEX(Called_Check_Isin,LARGE((471518=#REF!)*ROW(#REF!),ROWS(AG$3:AG22))) ->  | AJ22: 493828
C23: =+IF(ROWS($C$4:C23)>countUnique,"",INDEX(qryCountry,SMALL(IF(FREQUENCY(IF(qryCountry<>"",MATCH(qryCountry,qryCountry&"",0)),ROW(qryCountry)-ROW($G$4)+1),ROW(qryCountry)-ROW($G$4)+1),ROW()-ROW($C$4)+1))) ->  | I23: USD | J23: 1.3465 | L23: 50 | M23: ISDA 30E/360----- | Q23: AGEAS HYBRID FINANCING | R23: AGEAS HYBRID FINANCING | W23: 2008-01-01 | AE23: =IF(ISNUMBER(MATCH(AF23,Table3[ISIN],0)),MATCH(AF23,Table3[ISIN],0)) -> FALSE | AJ23: 495768
C24: =+IF(ROWS($C$4:C24)>countUnique,"",INDEX(qryCountry,SMALL(IF(FREQUENCY(IF(qryCountry<>"",MATCH(qryCountry,qryCountry&"",0)),ROW(qryCountry)-ROW($G$4)+1),ROW(qryCountry)-ROW($G$4)+1),ROW()-ROW($C$4)+1))) ->  | I24: GBP | J24: 0.7887 | L24: 54 | M24: ISDA 30E/365 N-EOM | Q24: AMERICAN INTL GROUP | R24: AMERICAN INTL GROUP | W24: 2008-03-21 | AE24: =IF(ISNUMBER(MATCH(AF24,Table3[ISIN],0)),MATCH(AF24,Table3[ISIN],0)) -> FALSE | AJ24: 696364
C25: =+IF(ROWS($C$4:C25)>countUnique,"",INDEX(qryCountry,SMALL(IF(FREQUENCY(IF(qryCountry<>"",MATCH(qryCountry,qryCountry&"",0)),ROW(qryCountry)-ROW($G$4)+1),ROW(qryCountry)-ROW($G$4)+1),ROW()-ROW($C$4)+1))) ->  | I25: CHF | J25: 1.21529 | L25: 51 | M25: ISDA 30E/365----- | Q25: BARCLAYS BANK PLC | R25: BARCLAYS BANK PLC | W25: 2008-03-23 | AE25: =IF(ISNUMBER(MATCH(AF25,Table3[ISIN],0)),MATCH(AF25,Table3[ISIN],0)) -> FALSE | AJ25: 720517
C26: =+IF(ROWS($C$4:C26)>countUnique,"",INDEX(qryCountry,SMALL(IF(FREQUENCY(IF(qryCountry<>"",MATCH(qryCountry,qryCountry&"",0)),ROW(qryCountry)-ROW($G$4)+1),ROW(qryCountry)-ROW($G$4)+1),ROW()-ROW($C$4)+1))) ->  | I26: CAD | J26: 1.44306 | L26: 52 | M26: ISDA 30E/ACT----- | Q26: BANCO DO BRASIL (CAYMAN) | R26: BANCO DO BRASIL | W26: 2008-03-24 | AE26: =IF(ISNUMBER(MATCH(AF26,Table3[ISIN],0)),MATCH(AF26,Table3[ISIN],0)) -> FALSE | AJ26: 720614
C27: =+IF(ROWS($C$4:C27)>countUnique,"",INDEX(qryCountry,SMALL(IF(FREQUENCY(IF(qryCountry<>"",MATCH(qryCountry,qryCountry&"",0)),ROW(qryCountry)-ROW($G$4)+1),ROW(qryCountry)-ROW($G$4)+1),ROW()-ROW($C$4)+1))) ->  | I27: AUD | J27: 1.42527 | L27: 44 | M27: ISDA SWAPS:30/360 | N27: 4 | Q27: BBVA INTL PREF UNIPERSON | R27: BBVA INTL PREF UNIPERSON | W27: 2008-05-01 | AE27: =IF(ISNUMBER(MATCH(AF27,Table3[ISIN],0)),MATCH(AF27,Table3[ISIN],0)) -> FALSE | AJ27: 720711
C28: =+IF(ROWS($C$4:C28)>countUnique,"",INDEX(qryCountry,SMALL(IF(FREQUENCY(IF(qryCountry<>"",MATCH(qryCountry,qryCountry&"",0)),ROW(qryCountry)-ROW($G$4)+1),ROW(qryCountry)-ROW($G$4)+1),ROW()-ROW($C$4)+1))) ->  | L28: 45 | M28: ISDA SWAPS:30/365 | Q28: BANCO COMERC PORTUGUES | R28: BANCO COMERCIAL PORTUGUÊS SA | W28: 2008-12-25 | AE28: =IF(ISNUMBER(MATCH(AF28,Table3[ISIN],0)),MATCH(AF28,Table3[ISIN],0)) -> FALSE | AJ28: 720808
C29: =+IF(ROWS($C$4:C29)>countUnique,"",INDEX(qryCountry,SMALL(IF(FREQUENCY(IF(qryCountry<>"",MATCH(qryCountry,qryCountry&"",0)),ROW(qryCountry)-ROW($G$4)+1),ROW(qryCountry)-ROW($G$4)+1),ROW()-ROW($C$4)+1))) ->  | L29: 47 | M29: ISDA30/360 NON-EOM | N29: 4 | Q29: BANCO ESPIRITO SANTO SA | R29: BANCO ESPIRITO SANTO SA | W29: 2008-12-26 | AE29: =IF(ISNUMBER(MATCH(AF29,Table3[ISIN],0)),MATCH(AF29,Table3[ISIN],0)) -> FALSE | AJ29: 795595
C30: =+IF(ROWS($C$4:C30)>countUnique,"",INDEX(qryCountry,SMALL(IF(FREQUENCY(IF(qryCountry<>"",MATCH(qryCountry,qryCountry&"",0)),ROW(qryCountry)-ROW($G$4)+1),ROW(qryCountry)-ROW($G$4)+1),ROW()-ROW($C$4)+1))) ->  | L30: 48 | M30: ISDA30/365 NON-EOM | Q30: BES FINANCE LTD | R30: BES FINANCE LTD | W30: 2009-01-01 | AE30: =IF(ISNUMBER(MATCH(AF30,Table3[ISIN],0)),MATCH(AF30,Table3[ISIN],0)) -> FALSE | AJ30: 813831
C31: =+IF(ROWS($C$4:C31)>countUnique,"",INDEX(qryCountry,SMALL(IF(FREQUENCY(IF(qryCountry<>"",MATCH(qryCountry,qryCountry&"",0)),ROW(qryCountry)-ROW($G$4)+1),ROW(qryCountry)-ROW($G$4)+1),ROW()-ROW($C$4)+1))) ->  | L31: 49 | M31: ISDA30/ACT NON-EOM | Q31: BNP PARIBAS CAP TRST VI | R31: BNP PARIBAS CAP TRUST VI | W31: 2009-04-10 | AE31: =IF(ISNUMBER(MATCH(AF31,Table3[ISIN],0)),MATCH(AF31,Table3[ISIN],0)) -> FALSE | AJ31: 814607
C32: =+IF(ROWS($C$4:C32)>countUnique,"",INDEX(qryCountry,SMALL(IF(FREQUENCY(IF(qryCountry<>"",MATCH(qryCountry,qryCountry&"",0)),ROW(qryCountry)-ROW($G$4)+1),ROW(qryCountry)-ROW($G$4)+1),ROW()-ROW($C$4)+1))) ->  | L32: 20 | M32: ISMA-30/360 | N32: 4 | Q32: BPCE SA | R32: BPCE SA | W32: 2009-04-12 | AE32: =IF(ISNUMBER(MATCH(AF32,Table3[ISIN],0)),MATCH(AF32,Table3[ISIN],0)) -> FALSE | AJ32: 850303
C33: =+IF(ROWS($C$4:C33)>countUnique,"",INDEX(qryCountry,SMALL(IF(FREQUENCY(IF(qryCountry<>"",MATCH(qryCountry,qryCountry&"",0)),ROW(qryCountry)-ROW($G$4)+1),ROW(qryCountry)-ROW($G$4)+1),ROW()-ROW($C$4)+1))) ->  | L33: 23 | M33: ISMA-30/360 NONEOM | N33: 4 | Q33: BANCO BPI SA | R33: BANCO BPI SA | W33: 2009-04-13 | AE33: =IF(ISNUMBER(MATCH(AF33,Table3[ISIN],0)),MATCH(AF33,Table3[ISIN],0)) -> FALSE | AJ33: 905884
C34: =+IF(ROWS($C$4:C34)>countUnique,"",INDEX(qryCountry,SMALL(IF(FREQUENCY(IF(qryCountry<>"",MATCH(qryCountry,qryCountry&"",0)),ROW(qryCountry)-ROW($G$4)+1),ROW(qryCountry)-ROW($G$4)+1),ROW()-ROW($C$4)+1))) ->  | L34: 21 | M34: ISMA-30/365 | Q34: BANCO BRADESCO SA | R34: BANCO BRADESCO SA | W34: 2009-05-01 | AE34: =IF(ISNUMBER(MATCH(AF34,Table3[ISIN],0)),MATCH(AF34,Table3[ISIN],0)) -> FALSE | AJ34: 200985
C35: =+IF(ROWS($C$4:C35)>countUnique,"",INDEX(qryCountry,SMALL(IF(FREQUENCY(IF(qryCountry<>"",MATCH(qryCountry,qryCountry&"",0)),ROW(qryCountry)-ROW($G$4)+1),ROW(qryCountry)-ROW($G$4)+1),ROW()-ROW($C$4)+1))) ->  | L35: 19 | M35: ISMA-30/ACT | Q35: BRISA CONCESSAO RODOV SA | R35: BRISA CONCESSÃO RODOVIÁRIA | W35: 2009-12-25 | AE35: =IF(ISNUMBER(MATCH(AF35,Table3[ISIN],0)),MATCH(AF35,Table3[ISIN],0)) -> FALSE | AJ35: 203507
C36: =+IF(ROWS($C$4:C36)>countUnique,"",INDEX(qryCountry,SMALL(IF(FREQUENCY(IF(qryCountry<>"",MATCH(qryCountry,qryCountry&"",0)),ROW(qryCountry)-ROW($G$4)+1),ROW(qryCountry)-ROW($G$4)+1),ROW()-ROW($C$4)+1))) ->  | L36: 24 | M36: ISMA30/365 NON-EOM | Q36: CEMEX FINANCE EUROPE BV | R36: CEMEX FINANCE EUROPE BV | W36: 2009-12-26 | AE36: =IF(ISNUMBER(MATCH(AF36,Table3[ISIN],0)),MATCH(AF36,Table3[ISIN],0)) -> FALSE | AJ36: 377525
C37: =+IF(ROWS($C$4:C37)>countUnique,"",INDEX(qryCountry,SMALL(IF(FREQUENCY(IF(qryCountry<>"",MATCH(qryCountry,qryCountry&"",0)),ROW(qryCountry)-ROW($G$4)+1),ROW(qryCountry)-ROW($G$4)+1),ROW()-ROW($C$4)+1))) ->  | L37: 22 | M37: ISMA30/ACT NON-EOM | Q37: CONTI-GUMMI FINANCE B.V. | R37: CONTI-GUMMI FINANCE B.V. | W37: 2010-01-01 | AE37: =IF(ISNUMBER(MATCH(AF37,Table3[ISIN],0)),MATCH(AF37,Table3[ISIN],0)) -> FALSE | AJ37: 409729
C38: =+IF(ROWS($C$4:C38)>countUnique,"",INDEX(qryCountry,SMALL(IF(FREQUENCY(IF(qryCountry<>"",MATCH(qryCountry,qryCountry&"",0)),ROW(qryCountry)-ROW($G$4)+1),ROW(qryCountry)-ROW($G$4)+1),ROW()-ROW($C$4)+1))) ->  | L38: 32 | M38: MUNI30/360 NON-EOM | N38: 4 | Q38: CAIXA GERAL DE DEPOSITOS | R38: CAIXA GERAL DE DEPÓSITOS | W38: 2010-04-02 | AE38: =IF(ISNUMBER(MATCH(AF38,Table3[ISIN],0)),MATCH(AF38,Table3[ISIN],0)) -> FALSE
C39: =+IF(ROWS($C$4:C39)>countUnique,"",INDEX(qryCountry,SMALL(IF(FREQUENCY(IF(qryCountry<>"",MATCH(qryCountry,qryCountry&"",0)),ROW(qryCountry)-ROW($G$4)+1),ROW(qryCountry)-ROW($G$4)+1),ROW()-ROW($C$4)+1))) ->  | L39: 8 | M39: NL/360 | Q39: DAIMLER AG | R39: DAIMLER AG | W39: 2010-04-04 | AE39: =IF(ISNUMBER(MATCH(AF39,Table3[ISIN],0)),MATCH(AF39,Table3[ISIN],0)) -> FALSE
C40: =+IF(ROWS($C$4:C40)>countUnique,"",INDEX(qryCountry,SMALL(IF(FREQUENCY(IF(qryCountry<>"",MATCH(qryCountry,qryCountry&"",0)),ROW(qryCountry)-ROW($G$4)+1),ROW(qryCountry)-ROW($G$4)+1),ROW()-ROW($C$4)+1))) ->  | L40: 17 | M40: NL/360 NON-EOM | Q40: DB CONT CAP TRUST IV | R40: DB CONT CAP TRUST IV | W40: 2010-04-05 | AE40: =IF(ISNUMBER(MATCH(AF40,Table3[ISIN],0)),MATCH(AF40,Table3[ISIN],0)) -> FALSE
C41: =+IF(ROWS($C$4:C41)>countUnique,"",INDEX(qryCountry,SMALL(IF(FREQUENCY(IF(qryCountry<>"",MATCH(qryCountry,qryCountry&"",0)),ROW(qryCountry)-ROW($G$4)+1),ROW(qryCountry)-ROW($G$4)+1),ROW()-ROW($C$4)+1))) ->  | L41: 9 | M41: NL/365 | Q41: EDP FINANCE BV | R41: EDP FINANCE BV | W41: 2010-05-01 | AE41: =IF(ISNUMBER(MATCH(AF41,Table3[ISIN],0)),MATCH(AF41,Table3[ISIN],0)) -> FALSE
C42: =+IF(ROWS($C$4:C42)>countUnique,"",INDEX(qryCountry,SMALL(IF(FREQUENCY(IF(qryCountry<>"",MATCH(qryCountry,qryCountry&"",0)),ROW(qryCountry)-ROW($G$4)+1),ROW(qryCountry)-ROW($G$4)+1),ROW()-ROW($C$4)+1))) ->  | L42: 18 | M42: NL/365 NON-EOM | Q42: ENEL FINANCE INTL NV | R42: ENEL FINANCE INTL NV | W42: 2010-12-25 | AE42: =IF(ISNUMBER(MATCH(AF42,Table3[ISIN],0)),MATCH(AF42,Table3[ISIN],0)) -> FALSE
C43: =+IF(ROWS($C$4:C43)>countUnique,"",INDEX(qryCountry,SMALL(IF(FREQUENCY(IF(qryCountry<>"",MATCH(qryCountry,qryCountry&"",0)),ROW(qryCountry)-ROW($G$4)+1),ROW(qryCountry)-ROW($G$4)+1),ROW()-ROW($C$4)+1))) ->  | L43: 7 | M43: NL/ACT | Q43: ESFG INTERNATIONAL LTD | R43: ESFG INTERNATIONAL LTD | W43: 2010-12-26 | AE43: =IF(ISNUMBER(MATCH(AF43,Table3[ISIN],0)),MATCH(AF43,Table3[ISIN],0)) -> FALSE
C44: =+IF(ROWS($C$4:C44)>countUnique,"",INDEX(qryCountry,SMALL(IF(FREQUENCY(IF(qryCountry<>"",MATCH(qryCountry,qryCountry&"",0)),ROW(qryCountry)-ROW($G$4)+1),ROW(qryCountry)-ROW($G$4)+1),ROW()-ROW($C$4)+1))) ->  | L44: 16 | M44: NL/ACT NON-EOM | Q44: ESPIRITO SANTO FIN GRP | R44: ESPIRITO SANTO FIN GRP | W44: 2011-01-01 | AE44: =IF(ISNUMBER(MATCH(AF44,Table3[ISIN],0)),MATCH(AF44,Table3[ISIN],0)) -> FALSE
C45: =+IF(ROWS($C$4:C45)>countUnique,"",INDEX(qryCountry,SMALL(IF(FREQUENCY(IF(qryCountry<>"",MATCH(qryCountry,qryCountry&"",0)),ROW(qryCountry)-ROW($G$4)+1),ROW(qryCountry)-ROW($G$4)+1),ROW()-ROW($C$4)+1))) ->  | L45: 29 | M45: US MUNI: 30/360 | Q45: GE CAPITAL EURO FUNDING | R45: GE CAPITAL EURO FUNDING | W45: 2011-04-22 | AE45: =IF(ISNUMBER(MATCH(AF45,Table3[ISIN],0)),MATCH(AF45,Table3[ISIN],0)) -> FALSE
C46: =+IF(ROWS($C$4:C46)>countUnique,"",INDEX(qryCountry,SMALL(IF(FREQUENCY(IF(qryCountry<>"",MATCH(qryCountry,qryCountry&"",0)),ROW(qryCountry)-ROW($G$4)+1),ROW(qryCountry)-ROW($G$4)+1),ROW()-ROW($C$4)+1))) ->  | L46: 41 | M46: US:WIB ACT/360 | Q46: ING VERZEKERINGEN NV | R46: ING VERZEKERINGEN NV | W46: 2011-04-24 | AE46: =IF(ISNUMBER(MATCH(AF46,Table3[ISIN],0)),MATCH(AF46,Table3[ISIN],0)) -> FALSE
C47: =+IF(ROWS($C$4:C47)>countUnique,"",INDEX(qryCountry,SMALL(IF(FREQUENCY(IF(qryCountry<>"",MATCH(qryCountry,qryCountry&"",0)),ROW(qryCountry)-ROW($G$4)+1),ROW(qryCountry)-ROW($G$4)+1),ROW()-ROW($C$4)+1))) ->  | L47: 40 | M47: US:WIT ACT/ACT | Q47: INTESA SANPAOLO SPA | R47: INTESA SANPAOLO SPA | W47: 2011-04-25 | AE47: =IF(ISNUMBER(MATCH(AF47,Table3[ISIN],0)),MATCH(AF47,Table3[ISIN],0)) -> FALSE
C48: =+IF(ROWS($C$4:C48)>countUnique,"",INDEX(qryCountry,SMALL(IF(FREQUENCY(IF(qryCountry<>"",MATCH(qryCountry,qryCountry&"",0)),ROW(qryCountry)-ROW($G$4)+1),ROW(qryCountry)-ROW($G$4)+1),ROW()-ROW($C$4)+1))) ->  | Q48: KBC BANK NV | R48: KBC BANK NV | W48: 2011-05-01 | AE48: =IF(ISNUMBER(MATCH(AF48,Table3[ISIN],0)),MATCH(AF48,Table3[ISIN],0)) -> FALSE
C49: =+IF(ROWS($C$4:C49)>countUnique,"",INDEX(qryCountry,SMALL(IF(FREQUENCY(IF(qryCountry<>"",MATCH(qryCountry,qryCountry&"",0)),ROW(qryCountry)-ROW($G$4)+1),ROW(qryCountry)-ROW($G$4)+1),ROW()-ROW($C$4)+1))) ->  | Q49: NATIXIS | R49: NATIXIS | W49: 2011-12-25 | AE49: =IF(ISNUMBER(MATCH(AF49,Table3[ISIN],0)),MATCH(AF49,Table3[ISIN],0)) -> FALSE
C50: =+IF(ROWS($C$4:C50)>countUnique,"",INDEX(qryCountry,SMALL(IF(FREQUENCY(IF(qryCountry<>"",MATCH(qryCountry,qryCountry&"",0)),ROW(qryCountry)-ROW($G$4)+1),ROW(qryCountry)-ROW($G$4)+1),ROW()-ROW($C$4)+1))) ->  | Q50: LAFARGE SA | R50: LAFARGE SA | W50: 2011-12-26 | AE50: =IF(ISNUMBER(MATCH(AF50,Table3[ISIN],0)),MATCH(AF50,Table3[ISIN],0)) -> FALSE
C51: =+IF(ROWS($C$4:C51)>countUnique,"",INDEX(qryCountry,SMALL(IF(FREQUENCY(IF(qryCountry<>"",MATCH(qryCountry,qryCountry&"",0)),ROW(qryCountry)-ROW($G$4)+1),ROW(qryCountry)-ROW($G$4)+1),ROW()-ROW($C$4)+1))) ->  | Q51: LLOYDS BANKING GROUP PLC | R51: LLOYDS BANKING GROUP PLC | W51: 2012-01-01 | AE51: =IF(ISNUMBER(MATCH(AF51,Table3[ISIN],0)),MATCH(AF51,Table3[ISIN],0)) -> FALSE
C52: =+IF(ROWS($C$4:C52)>countUnique,"",INDEX(qryCountry,SMALL(IF(FREQUENCY(IF(qryCountry<>"",MATCH(qryCountry,qryCountry&"",0)),ROW(qryCountry)-ROW($G$4)+1),ROW(qryCountry)-ROW($G$4)+1),ROW()-ROW($C$4)+1))) ->  | Q52: PETROBRAS INTL FIN CO | R52: PETROBRAS INTL FIN CO | W52: 2012-04-06 | AE52: =IF(ISNUMBER(MATCH(AF52,Table3[ISIN],0)),MATCH(AF52,Table3[ISIN],0)) -> FALSE
C53: =+IF(ROWS($C$4:C53)>countUnique,"",INDEX(qryCountry,SMALL(IF(FREQUENCY(IF(qryCountry<>"",MATCH(qryCountry,qryCountry&"",0)),ROW(qryCountry)-ROW($G$4)+1),ROW(qryCountry)-ROW($G$4)+1),ROW()-ROW($C$4)+1))) ->  | Q53: BANCO POPULAR ESPANOL | R53: BANCO POPULAR ESPANOL | W53: 2012-04-08 | AE53: =IF(ISNUMBER(MATCH(AF53,Table3[ISIN],0)),MATCH(AF53,Table3[ISIN],0)) -> FALSE
C54: =+IF(ROWS($C$4:C54)>countUnique,"",INDEX(qryCountry,SMALL(IF(FREQUENCY(IF(qryCountry<>"",MATCH(qryCountry,qryCountry&"",0)),ROW(qryCountry)-ROW($G$4)+1),ROW(qryCountry)-ROW($G$4)+1),ROW()-ROW($C$4)+1))) ->  | Q54: PORTUGAL TELECOM INT FIN | R54: PORTUGAL TELECOM INT FIN | W54: 2012-04-09 | AE54: =IF(ISNUMBER(MATCH(AF54,Table3[ISIN],0)),MATCH(AF54,Table3[ISIN],0)) -> FALSE
C55: =+IF(ROWS($C$4:C55)>countUnique,"",INDEX(qryCountry,SMALL(IF(FREQUENCY(IF(qryCountry<>"",MATCH(qryCountry,qryCountry&"",0)),ROW(qryCountry)-ROW($G$4)+1),ROW(qryCountry)-ROW($G$4)+1),ROW()-ROW($C$4)+1))) ->  | Q55: PORTUGAL TELECOM | R55: PORTUGAL TELECOM | W55: 2012-05-01 | AE55: =IF(ISNUMBER(MATCH(AF55,Table3[ISIN],0)),MATCH(AF55,Table3[ISIN],0)) -> FALSE
C56: =+IF(ROWS($C$4:C56)>countUnique,"",INDEX(qryCountry,SMALL(IF(FREQUENCY(IF(qryCountry<>"",MATCH(qryCountry,qryCountry&"",0)),ROW(qryCountry)-ROW($G$4)+1),ROW(qryCountry)-ROW($G$4)+1),ROW()-ROW($C$4)+1))) ->  | Q56: ROYAL BK SCOTLND GRP PLC | R56: ROYAL BK SCOTLND GRP PLC | W56: 2012-12-25 | AE56: =IF(ISNUMBER(MATCH(AF56,Table3[ISIN],0)),MATCH(AF56,Table3[ISIN],0)) -> FALSE
C57: =+IF(ROWS($C$4:C57)>countUnique,"",INDEX(qryCountry,SMALL(IF(FREQUENCY(IF(qryCountry<>"",MATCH(qryCountry,qryCountry&"",0)),ROW(qryCountry)-ROW($G$4)+1),ROW(qryCountry)-ROW($G$4)+1),ROW()-ROW($C$4)+1))) ->  | Q57: REFER-REDE FERROVIARIA | R57: REFER-REDE FERROVIÁRIA | W57: 2012-12-26 | AE57: =IF(ISNUMBER(MATCH(AF57,Table3[ISIN],0)),MATCH(AF57,Table3[ISIN],0)) -> FALSE
C58: =+IF(ROWS($C$4:C58)>countUnique,"",INDEX(qryCountry,SMALL(IF(FREQUENCY(IF(qryCountry<>"",MATCH(qryCountry,qryCountry&"",0)),ROW(qryCountry)-ROW($G$4)+1),ROW(qryCountry)-ROW($G$4)+1),ROW()-ROW($C$4)+1))) ->  | Q58: RENAULT S.A. | R58: RENAULT SA | W58: 2013-01-01 | AE58: =IF(ISNUMBER(MATCH(AF58,Table3[ISIN],0)),MATCH(AF58,Table3[ISIN],0)) -> FALSE
C59: =+IF(ROWS($C$4:C59)>countUnique,"",INDEX(qryCountry,SMALL(IF(FREQUENCY(IF(qryCountry<>"",MATCH(qryCountry,qryCountry&"",0)),ROW(qryCountry)-ROW($G$4)+1),ROW(qryCountry)-ROW($G$4)+1),ROW()-ROW($C$4)+1))) ->  | Q59: REN REDES ENERGETICAS | R59: REN REDES ENERGETICAS | W59: 2013-03-29 | AE59: =IF(ISNUMBER(MATCH(AF59,Table3[ISIN],0)),MATCH(AF59,Table3[ISIN],0)) -> FALSE
C60: =+IF(ROWS($C$4:C60)>countUnique,"",INDEX(qryCountry,SMALL(IF(FREQUENCY(IF(qryCountry<>"",MATCH(qryCountry,qryCountry&"",0)),ROW(qryCountry)-ROW($G$4)+1),ROW(qryCountry)-ROW($G$4)+1),ROW()-ROW($C$4)+1))) ->  | Q60: REPSOL INTL FINANCE | R60: REPSOL INTL FINANCE | W60: 2013-03-31 | AE60: =IF(ISNUMBER(MATCH(AF60,Table3[ISIN],0)),MATCH(AF60,Table3[ISIN],0)) -> FALSE
C61: =+IF(ROWS($C$4:C61)>countUnique,"",INDEX(qryCountry,SMALL(IF(FREQUENCY(IF(qryCountry<>"",MATCH(qryCountry,qryCountry&"",0)),ROW(qryCountry)-ROW($G$4)+1),ROW(qryCountry)-ROW($G$4)+1),ROW()-ROW($C$4)+1))) ->  | Q61: RZB FINANCE JERSEY IV | R61: RZB FINANCE JERSEY IV | W61: 2013-04-01 | AE61: =IF(ISNUMBER(MATCH(AF61,Table3[ISIN],0)),MATCH(AF61,Table3[ISIN],0)) -> FALSE
C62: =+IF(ROWS($C$4:C62)>countUnique,"",INDEX(qryCountry,SMALL(IF(FREQUENCY(IF(qryCountry<>"",MATCH(qryCountry,qryCountry&"",0)),ROW(qryCountry)-ROW($G$4)+1),ROW(qryCountry)-ROW($G$4)+1),ROW()-ROW($C$4)+1))) ->  | Q62: BANCO SANTANDER TOTTA SA | R62: BANCO SANTANDER TOTTA SA | W62: 2013-05-01 | AE62: =IF(ISNUMBER(MATCH(AF62,Table3[ISIN],0)),MATCH(AF62,Table3[ISIN],0)) -> FALSE
C63: =+IF(ROWS($C$4:C63)>countUnique,"",INDEX(qryCountry,SMALL(IF(FREQUENCY(IF(qryCountry<>"",MATCH(qryCountry,qryCountry&"",0)),ROW(qryCountry)-ROW($G$4)+1),ROW(qryCountry)-ROW($G$4)+1),ROW()-ROW($C$4)+1))) ->  | Q63: SEMAPA-SOC INV E GESTAO | R63: SEMAPA-SOC INV. E GESTÃO | W63: 2013-12-25 | AE63: =IF(ISNUMBER(MATCH(AF63,Table3[ISIN],0)),MATCH(AF63,Table3[ISIN],0)) -> FALSE
C64: =+IF(ROWS($C$4:C64)>countUnique,"",INDEX(qryCountry,SMALL(IF(FREQUENCY(IF(qryCountry<>"",MATCH(qryCountry,qryCountry&"",0)),ROW(qryCountry)-ROW($G$4)+1),ROW(qryCountry)-ROW($G$4)+1),ROW()-ROW($C$4)+1))) ->  | Q64: SOCIETE GENERALE | R64: SOCIETE GENERALE | W64: 2013-12-26 | AE64: =IF(ISNUMBER(MATCH(AF64,Table3[ISIN],0)),MATCH(AF64,Table3[ISIN],0)) -> FALSE
Q65: SONAE | R65: SONAE | W65: 2014-01-01 | AE65: =IF(ISNUMBER(MATCH(AF65,Table3[ISIN],0)),MATCH(AF65,Table3[ISIN],0)) -> FALSE
Q66: TELEFONICA EMISIONES SAU | R66: TELEFONICA EMISIONES SAU | W66: 2014-04-18 | AE66: =IF(ISNUMBER(MATCH(AF66,Table3[ISIN],0)),MATCH(AF66,Table3[ISIN],0)) -> FALSE
Q67: UBS CAPITAL SECURITIES L | R67: UBS CAPITAL SECURITIES L | W67: 2014-04-20 | AE67: =IF(ISNUMBER(MATCH(AF67,Table3[ISIN],0)),MATCH(AF67,Table3[ISIN],0)) -> FALSE
Q68: VOLKSWAGEN INTL FIN NV | R68: VOLKSWAGEN INTL FIN NV | W68: 2014-04-21 | AE68: =IF(ISNUMBER(MATCH(AF68,Table3[ISIN],0)),MATCH(AF68,Table3[ISIN],0)) -> FALSE
Q69: ZON MULTIMEDIA SERVICOS | R69: ZON MULTIMEDIA SERVIÇOS | W69: 2014-05-01 | AE69: =IF(ISNUMBER(MATCH(AF69,Table3[ISIN],0)),MATCH(AF69,Table3[ISIN],0)) -> FALSE
Q70: BONOS Y OBLIG DEL ESTADO | R70: REINO DE ESPANHA | W70: 2014-12-25 | AE70: =IF(ISNUMBER(MATCH(AF70,Table3[ISIN],0)),MATCH(AF70,Table3[ISIN],0)) -> FALSE
Q71: BUONI POLIENNALI DEL TES | R71: REPÚBLICA DE ITÁLIA | W71: 2014-12-26 | AE71: =IF(ISNUMBER(MATCH(AF71,Table3[ISIN],0)),MATCH(AF71,Table3[ISIN],0)) -> FALSE
Q72: IBERDROLA FINANZAS SAU | R72: =+Q72 -> IBERDROLA FINANZAS SAU | W72: 2015-01-01 | AE72: =IF(ISNUMBER(MATCH(AF72,Table3[ISIN],0)),MATCH(AF72,Table3[ISIN],0)) -> FALSE
Q73: GAS NATURAL CAPITAL | R73: =+Q73 -> GAS NATURAL CAPITAL | W73: 2015-04-03 | AE73: =IF(ISNUMBER(MATCH(AF73,Table3[ISIN],0)),MATCH(AF73,Table3[ISIN],0)) -> FALSE
Q74: ENEL SPA | R74: =+Q74 -> ENEL SPA | W74: 2015-04-05 | AE74: =IF(ISNUMBER(MATCH(AF74,Table3[ISIN],0)),MATCH(AF74,Table3[ISIN],0)) -> FALSE
Q75: BMW FINANCE NV | R75: =+Q75 -> BMW FINANCE NV | W75: 2015-04-06 | AE75: =IF(ISNUMBER(MATCH(AF75,Table3[ISIN],0)),MATCH(AF75,Table3[ISIN],0)) -> FALSE
Q76: HELLENIC REPUBLIC | R76: REPÚBLICA GREGA | W76: 2015-05-01 | AE76: =IF(ISNUMBER(MATCH(AF76,Table3[ISIN],0)),MATCH(AF76,Table3[ISIN],0)) -> FALSE
Q77: ENERGIAS DE PORTUGAL SA | R77: ENERGIAS DE PORTUGAL SA | W77: 2015-12-25 | AE77: =IF(ISNUMBER(MATCH(AF77,Table3[ISIN],0)),MATCH(AF77,Table3[ISIN],0)) -> FALSE
Q78: SNS BANK NV | R78: SNS BANK NV | W78: 2015-12-26 | AE78: =IF(ISNUMBER(MATCH(AF78,Table3[ISIN],0)),MATCH(AF78,Table3[ISIN],0)) -> FALSE
Q79: DELL INC | R79: DELL INC | W79: 2016-01-01 | AE79: =IF(ISNUMBER(MATCH(AF79,Table3[ISIN],0)),MATCH(AF79,Table3[ISIN],0)) -> FALSE
Q80: IBERDROLA INTL BV | R80: IBERDROLA INTL BV | W80: 2016-03-25 | AE80: =IF(ISNUMBER(MATCH(AF80,Table3[ISIN],0)),MATCH(AF80,Table3[ISIN],0)) -> FALSE
Q81: TELEFONICA EUROPE BV | R81: TELEFONICA EUROPA | W81: 2016-03-27 | AE81: =IF(ISNUMBER(MATCH(AF81,Table3[ISIN],0)),MATCH(AF81,Table3[ISIN],0)) -> FALSE
Q82: ENEL-SOCIETA PER AZIONI | R82: ENEL | W82: 2016-03-28 | AE82: =IF(ISNUMBER(MATCH(AF82,Table3[ISIN],0)),MATCH(AF82,Table3[ISIN],0)) -> FALSE
Q83: TELECOM ITALIA SPA | R83: TELECOM ITALIA SPA | W83: 2016-05-01 | AE83: =IF(ISNUMBER(MATCH(AF83,Table3[ISIN],0)),MATCH(AF83,Table3[ISIN],0)) -> FALSE
Q84: TELECOM ITALIA FIN SA | R84: TELECOM ITALIA FIN SA | W84: 2016-12-25 | AE84: =IF(ISNUMBER(MATCH(AF84,Table3[ISIN],0)),MATCH(AF84,Table3[ISIN],0)) -> FALSE
Q85: TELEFONICA SA | R85: TELEFONICA SA | W85: 2016-12-26 | AE85: =IF(ISNUMBER(MATCH(AF85,Table3[ISIN],0)),MATCH(AF85,Table3[ISIN],0)) -> FALSE
Q86: COMUNIDAD DE MADRID | R86: COMUNIDADE DE MADRID | W86: 2017-01-01 | AE86: =IF(ISNUMBER(MATCH(AF86,Table3[ISIN],0)),MATCH(AF86,Table3[ISIN],0)) -> FALSE
Q87: IRISH TSY 5.4% 2025 | R87: REPÚBLICA IRLANDA | W87: 2017-04-14 | AE87: =IF(ISNUMBER(MATCH(AF87,Table3[ISIN],0)),MATCH(AF87,Table3[ISIN],0)) -> FALSE
Q88: REPUBLIC OF POLAND | R88: REPÚBLICA POLÓNIA | W88: 2017-04-16 | AE88: =IF(ISNUMBER(MATCH(AF88,Table3[ISIN],0)),MATCH(AF88,Table3[ISIN],0)) -> FALSE
Q89: ING BANK NV | R89: BANCO ING | W89: 2017-04-17 | AE89: =IF(ISNUMBER(MATCH(AF89,Table3[ISIN],0)),MATCH(AF89,Table3[ISIN],0)) -> FALSE
Q90: VESTAS WIND SYSTEMS A/S | R90: VESTAS WIND SYSTEMS | W90: 2017-05-01 | AE90: =IF(ISNUMBER(MATCH(AF90,Table3[ISIN],0)),MATCH(AF90,Table3[ISIN],0)) -> FALSE
Q91: THOMAS COOK GROUP PLC | R91: THOMAS COOK GROUP | W91: 2017-12-25 | AE91: =IF(ISNUMBER(MATCH(AF91,Table3[ISIN],0)),MATCH(AF91,Table3[ISIN],0)) -> FALSE
Q92: FIAT FINANCE & TRADE | R92: FIAT FINANCE | W92: 2017-12-26 | AE92: =IF(ISNUMBER(MATCH(AF92,Table3[ISIN],0)),MATCH(AF92,Table3[ISIN],0)) -> FALSE
Q93: FIAT FINANCE NORTH AMERI | R93: FIAT FINANCE NORTH AMERI | W93: 2018-01-01 | AE93: =IF(ISNUMBER(MATCH(AF93,Table3[ISIN],0)),MATCH(AF93,Table3[ISIN],0)) -> FALSE
Q94: BANQUE PSA FINANCE | R94: BANCO PSA FINANCE | W94: 2018-03-30 | AE94: =IF(ISNUMBER(MATCH(AF94,Table3[ISIN],0)),MATCH(AF94,Table3[ISIN],0)) -> FALSE
Q95: PEUGEOT SA | R95: PEUGEOT SA | W95: 2018-04-01 | AE95: =IF(ISNUMBER(MATCH(AF95,Table3[ISIN],0)),MATCH(AF95,Table3[ISIN],0)) -> FALSE
Q96: GIE PSA TRESORERIE | R96: PSA TESOURARIA | W96: 2018-04-02 | AE96: =IF(ISNUMBER(MATCH(AF96,Table3[ISIN],0)),MATCH(AF96,Table3[ISIN],0)) -> FALSE
Q97: KONINKLIJKE KPN NV | R97: KPN | W97: 2018-05-01 | AE97: =IF(ISNUMBER(MATCH(AF97,Table3[ISIN],0)),MATCH(AF97,Table3[ISIN],0)) -> FALSE
Q98: MOTA ENGIL SGPS SA | R98: MOTA ENGIL SGPS SA | W98: 2018-12-25 | AE98: =IF(ISNUMBER(MATCH(AF98,Table3[ISIN],0)),MATCH(AF98,Table3[ISIN],0)) -> FALSE
Q99: LLOYDS TSB BANK PLC | R99: LLOYDS TSB BANK PLC | W99: 2018-12-26 | AE99: =IF(ISNUMBER(MATCH(AF99,Table3[ISIN],0)),MATCH(AF99,Table3[ISIN],0)) -> FALSE
Q100: LLOYDS TSB BANK PLC | R100: LLOYDS TSB BANK PLC | W100: 2019-01-01 | AE100: =IF(ISNUMBER(MATCH(AF100,Table3[ISIN],0)),MATCH(AF100,Table3[ISIN],0)) -> FALSE
Q101: DANSKE BANK A/S | R101: DANSKE BANK A/S | W101: 2019-04-19 | AE101: =IF(ISNUMBER(MATCH(AF101,Table3[ISIN],0)),MATCH(AF101,Table3[ISIN],0)) -> FALSE
Q102: NEW WORLD RESOURCES NV | R102: NEW WORLD RESOURCES NV | W102: 2019-04-21 | AE102: =IF(ISNUMBER(MATCH(AF102,Table3[ISIN],0)),MATCH(AF102,Table3[ISIN],0)) -> FALSE
Q103: PORTUCEL SA | R103: PORTUCEL SA | W103: 2019-04-22 | AE103: =IF(ISNUMBER(MATCH(AF103,Table3[ISIN],0)),MATCH(AF103,Table3[ISIN],0)) -> FALSE
Q104: MORGAN STANLEY | R104: MORGAN STANLEY | W104: 2019-05-01 | AE104: =IF(ISNUMBER(MATCH(AF104,Table3[ISIN],0)),MATCH(AF104,Table3[ISIN],0)) -> FALSE
Q105: REPUBLIC OF TURKEY | R105: REPUBLIC OF TURKEY | W105: 2019-12-25 | AE105: =IF(ISNUMBER(MATCH(AF105,Table3[ISIN],0)),MATCH(AF105,Table3[ISIN],0)) -> FALSE
Q106: BNP PARIBAS | R106: BNP PARIBAS | W106: 2019-12-26 | AE106: =IF(ISNUMBER(MATCH(AF106,Table3[ISIN],0)),MATCH(AF106,Table3[ISIN],0)) -> FALSE
Q107: ING GROEP NV | R107: ING GROEP NV | W107: 2020-01-01 | AE107: =IF(ISNUMBER(MATCH(AF107,Table3[ISIN],0)),MATCH(AF107,Table3[ISIN],0)) -> FALSE
Q108: MERRILL LYNCH & CO | R108: MERRILL LYNCH & CO | W108: 2020-04-10 | AE108: =IF(ISNUMBER(MATCH(AF108,Table3[ISIN],0)),MATCH(AF108,Table3[ISIN],0)) -> FALSE
Q109: NATIONAL AUSTRALIA BANK | R109: NATIONAL AUSTRALIA BANK | W109: 2020-04-12 | AE109: =IF(ISNUMBER(MATCH(AF109,Table3[ISIN],0)),MATCH(AF109,Table3[ISIN],0)) -> FALSE
Q110: UBS AG JERSEY BRANCH | R110: UBS AG JERSEY BRANCH | W110: 2020-04-13 | AE110: =IF(ISNUMBER(MATCH(AF110,Table3[ISIN],0)),MATCH(AF110,Table3[ISIN],0)) -> FALSE
Q111: ALCATEL-LUCENT | R111: ALCATEL-LUCENT | W111: 2020-05-01 | AE111: =IF(ISNUMBER(MATCH(AF111,Table3[ISIN],0)),MATCH(AF111,Table3[ISIN],0)) -> FALSE
Q112: MAGYAR TELECOM BV | R112: MAGYAR TELECOM BV | W112: 2020-12-25 | AE112: =IF(ISNUMBER(MATCH(AF112,Table3[ISIN],0)),MATCH(AF112,Table3[ISIN],0)) -> FALSE
Q113: SPORTING CLUBE PORTUGAL | R113: SPORTING CLUBE PORTUGAL | W113: 2020-12-26 | AE113: =IF(ISNUMBER(MATCH(AF113,Table3[ISIN],0)),MATCH(AF113,Table3[ISIN],0)) -> FALSE
Q114: ESPIRITO SANTO FINANCIER | R114: ESPIRITO SANTO FINANCIER | W114: 2021-01-01 | AE114: =IF(ISNUMBER(MATCH(AF114,Table3[ISIN],0)),MATCH(AF114,Table3[ISIN],0)) -> FALSE
Q115: BANIF BANCO INTER FUN SA | R115: BANIF BANCO INTER FUN SA | W115: 2021-04-02 | AE115: =IF(ISNUMBER(MATCH(AF115,Table3[ISIN],0)),MATCH(AF115,Table3[ISIN],0)) -> FALSE
Q116: GOVT OF FRANCE | R116: GOVT OF FRANCE | W116: 2021-04-04 | AE116: =IF(ISNUMBER(MATCH(AF116,Table3[ISIN],0)),MATCH(AF116,Table3[ISIN],0)) -> FALSE
Q117: FRANCE (GOVT OF) | R117: FRANCE (GOVT OF) | W117: 2021-04-05 | AE117: =IF(ISNUMBER(MATCH(AF117,Table3[ISIN],0)),MATCH(AF117,Table3[ISIN],0)) -> FALSE
Q118: SANTANDER PERPETUAL | R118: SANTANDER PERPETUAL | W118: 2021-05-01 | AE118: =IF(ISNUMBER(MATCH(AF118,Table3[ISIN],0)),MATCH(AF118,Table3[ISIN],0)) -> FALSE
Q119: UNICREDIT SPA | R119: UNICREDIT SPA | W119: 2021-12-25 | AE119: =IF(ISNUMBER(MATCH(AF119,Table3[ISIN],0)),MATCH(AF119,Table3[ISIN],0)) -> FALSE
Q120: BANCO BRADESCO (CAYMAN) | R120: BANCO BRADESCO (CAYMAN) | W120: 2021-12-26 | AE120: =IF(ISNUMBER(MATCH(AF120,Table3[ISIN],0)),MATCH(AF120,Table3[ISIN],0)) -> FALSE
Q121: ZON OPTIMUS SGPS SA | R121: ZON OPTIMUS SGPS SA | W121: 2022-01-01 | AE121: =IF(ISNUMBER(MATCH(AF121,Table3[ISIN],0)),MATCH(AF121,Table3[ISIN],0)) -> FALSE
Q122: RCI BANQUE SA | R122: RCI BANQUE SA | W122: 2022-04-15 | AE122: =IF(ISNUMBER(MATCH(AF122,Table3[ISIN],0)),MATCH(AF122,Table3[ISIN],0)) -> FALSE
Q123: LLOYDS BANK PLC | R123: LLOYDS BANK PLC | W123: 2022-04-17 | AE123: =IF(ISNUMBER(MATCH(AF123,Table3[ISIN],0)),MATCH(AF123,Table3[ISIN],0)) -> FALSE
Q124: BP CAPITAL MARKETS PLC | R124: BP CAPITAL MARKETS PLC | W124: 2022-04-18 | AE124: =IF(ISNUMBER(MATCH(AF124,Table3[ISIN],0)),MATCH(AF124,Table3[ISIN],0)) -> FALSE
Q125: APPLE INC | R125: APPLE INC | W125: 2022-05-01 | AE125: =IF(ISNUMBER(MATCH(AF125,Table3[ISIN],0)),MATCH(AF125,Table3[ISIN],0)) -> FALSE
Q126: MICROSOFT CORP | R126: MICROSOFT CORP | W126: 2022-12-25 | AE126: =IF(ISNUMBER(MATCH(AF126,Table3[ISIN],0)),MATCH(AF126,Table3[ISIN],0)) -> FALSE
Q127: ACHMEA BV | R127: ACHMEA BV | W127: 2022-12-26 | AE127: =IF(ISNUMBER(MATCH(AF127,Table3[ISIN],0)),MATCH(AF127,Table3[ISIN],0)) -> FALSE
Q128: AEGON NV | R128: AEGON NV | W128: 2023-01-01 | AE128: =IF(ISNUMBER(MATCH(AF128,Table3[ISIN],0)),MATCH(AF128,Table3[ISIN],0)) -> FALSE
Q129: ROYAL BK OF SCOTLAND NV | R129: ROYAL BK OF SCOTLAND NV | W129: 2023-04-07 | AE129: =IF(ISNUMBER(MATCH(AF129,Table3[ISIN],0)),MATCH(AF129,Table3[ISIN],0)) -> FALSE
Q130: POSTNL NV | R130: POSTNL NV | W130: 2023-04-09 | AE130: =IF(ISNUMBER(MATCH(AF130,Table3[ISIN],0)),MATCH(AF130,Table3[ISIN],0)) -> FALSE
Q131: PETROBRAS GLOBAL FINANCE | R131: =+Q131 -> PETROBRAS GLOBAL FINANCE | W131: 2023-04-10 | AE131: =IF(ISNUMBER(MATCH(AF131,Table3[ISIN],0)),MATCH(AF131,Table3[ISIN],0)) -> FALSE
Q132: REN Finance BV | R132: REN Finance BV | W132: 2023-05-01 | AE132: =IF(ISNUMBER(MATCH(AF132,Table3[ISIN],0)),MATCH(AF132,Table3[ISIN],0)) -> FALSE
Q133: BCP FINANCE CO | R133: BCP FINANCE CO | W133: 2023-12-25 | AE133: =IF(ISNUMBER(MATCH(AF133,Table3[ISIN],0)),MATCH(AF133,Table3[ISIN],0)) -> FALSE
Q134: BCP FINANCE BANK LTD | R134: BCP FINANCE BANK LTD | W134: 2023-12-26 | AE134: =IF(ISNUMBER(MATCH(AF134,Table3[ISIN],0)),MATCH(AF134,Table3[ISIN],0)) -> FALSE
Q135: CITIGROUP INC | R135: CITIGROUP INC | W135: 2024-01-01 | AE135: =IF(ISNUMBER(MATCH(AF135,Table3[ISIN],0)),MATCH(AF135,Table3[ISIN],0)) -> FALSE
Q136: RWE FINANCE BV | R136: RWE FINANCE BV | W136: 2024-03-29 | AE136: =IF(ISNUMBER(MATCH(AF136,Table3[ISIN],0)),MATCH(AF136,Table3[ISIN],0)) -> FALSE
Q137: PHILIP MORRIS INTL INC | R137: PHILIP MORRIS INTL INC | W137: 2024-03-31 | AE137: =IF(ISNUMBER(MATCH(AF137,Table3[ISIN],0)),MATCH(AF137,Table3[ISIN],0)) -> FALSE
Q138: GALP ENERGIA SGPS SA | R138: GALP ENERGIA SGPS SA | W138: 2024-04-01 | AE138: =IF(ISNUMBER(MATCH(AF138,Table3[ISIN],0)),MATCH(AF138,Table3[ISIN],0)) -> FALSE
Q139: FUTEBOL CLUBE DO PORTO | R139: =+Q139 -> FUTEBOL CLUBE DO PORTO | W139: 2024-05-01 | AE139: =IF(ISNUMBER(MATCH(AF139,Table3[ISIN],0)),MATCH(AF139,Table3[ISIN],0)) -> FALSE
Q140: JOHNSON & JOHNSON | R140: JOHNSON & JOHNSON | W140: 2024-12-25 | AE140: =IF(ISNUMBER(MATCH(AF140,Table3[ISIN],0)),MATCH(AF140,Table3[ISIN],0)) -> FALSE
Q141: SPORT LISBOA BENFICA | R141: SPORT LISBOA BENFICA | W141: 2024-12-26 | AE141: =IF(ISNUMBER(MATCH(AF141,Table3[ISIN],0)),MATCH(AF141,Table3[ISIN],0)) -> FALSE
Q142: PETROLEOS DE VENEZUELA S | R142: PETROLEOS DE VENEZUELA S | W142: 2025-01-01 | AE142: =IF(ISNUMBER(MATCH(AF142,Table3[ISIN],0)),MATCH(AF142,Table3[ISIN],0)) -> FALSE
Q143: METROPOLITANO DE LISBOA | R143: METROPOLITANO DE LISBOA | W143: 2025-04-18 | AE143: =IF(ISNUMBER(MATCH(AF143,Table3[ISIN],0)),MATCH(AF143,Table3[ISIN],0)) -> FALSE
Q144: AG SPRING FIN II LTD | R144: AG SPRING FIN II LTD | W144: 2025-04-20 | AE144: =IF(ISNUMBER(MATCH(AF144,Table3[ISIN],0)),MATCH(AF144,Table3[ISIN],0)) -> FALSE
Q145: AG SPRING FINANCE LTD | R145: AG SPRING FINANCE LTD | W145: 2025-04-21 | AE145: =IF(ISNUMBER(MATCH(AF145,Table3[ISIN],0)),MATCH(AF145,Table3[ISIN],0)) -> FALSE
Q146: NARA CABLE FUNDING II LT | R146: NARA CABLE FUNDING II LT | W146: 2025-05-01 | AE146: =IF(ISNUMBER(MATCH(AF146,Table3[ISIN],0)),MATCH(AF146,Table3[ISIN],0)) -> FALSE
Q147: NARA CABLE FUNDING | R147: NARA CABLE FUNDING | W147: 2025-12-25 | AE147: =IF(ISNUMBER(MATCH(AF147,Table3[ISIN],0)),MATCH(AF147,Table3[ISIN],0)) -> FALSE
Q148: OBRASCON HUARTE LAIN SA | R148: OBRASCON HUARTE LAIN SA | W148: 2025-12-26 | AE148: =IF(ISNUMBER(MATCH(AF148,Table3[ISIN],0)),MATCH(AF148,Table3[ISIN],0)) -> FALSE
Q149: ENCE ENERGIA Y CELULOSA | R149: ENCE ENERGIA Y CELULOSA | W149: 2026-01-01 | AE149: =IF(ISNUMBER(MATCH(AF149,Table3[ISIN],0)),MATCH(AF149,Table3[ISIN],0)) -> FALSE
Q150: CIRSA FUNDING LUXEMBOURG | R150: CIRSA FUNDING LUXEMBOURG | W150: 2026-04-03 | AE150: =IF(ISNUMBER(MATCH(AF150,Table3[ISIN],0)),MATCH(AF150,Table3[ISIN],0)) -> FALSE
Q151: GESTAMP FUND LUX SA | R151: GESTAMP FUND LUX SA | W151: 2026-04-05 | AE151: =IF(ISNUMBER(MATCH(AF151,Table3[ISIN],0)),MATCH(AF151,Table3[ISIN],0)) -> FALSE
Q152: CAMPOFRIO FOOD SA | R152: CAMPOFRIO FOOD SA | W152: 2026-04-06 | AE152: =IF(ISNUMBER(MATCH(AF152,Table3[ISIN],0)),MATCH(AF152,Table3[ISIN],0)) -> FALSE
Q153: BANCO ESPIRITO SANTO LDN | R153: BANCO ESPIRITO SANTO LDN | W153: 2026-05-01 | AE153: =IF(ISNUMBER(MATCH(AF153,Table3[ISIN],0)),MATCH(AF153,Table3[ISIN],0)) -> FALSE
Q154: BANCO ESPIRITO SANTO LDN | R154: BANCO ESPIRITO SANTO LDN | W154: 2026-12-25 | AE154: =IF(ISNUMBER(MATCH(AF154,Table3[ISIN],0)),MATCH(AF154,Table3[ISIN],0)) -> FALSE
Q155: GAZPROM (GAZ CAPITAL SA) | R155: GAZPROM (GAZ CAPITAL SA) | W155: 2026-12-26 | AE155: =IF(ISNUMBER(MATCH(AF155,Table3[ISIN],0)),MATCH(AF155,Table3[ISIN],0)) -> FALSE
Q156: BANCO SANTANDER SA | R156: BANCO SANTANDER SA | W156: 2027-01-01 | AE156: =IF(ISNUMBER(MATCH(AF156,Table3[ISIN],0)),MATCH(AF156,Table3[ISIN],0)) -> FALSE
Q157: REPUBLIC OF VENEZUELA | R157: REPUBLICA DA VENEZUELA | W157: 2027-03-26 | AE157: =IF(ISNUMBER(MATCH(AF157,Table3[ISIN],0)),MATCH(AF157,Table3[ISIN],0)) -> FALSE
Q158: CELULOSE BEIRA INDUSTRIA | R158: CELULOSE BEIRA INDUSTRIA | W158: 2027-03-28 | AE158: =IF(ISNUMBER(MATCH(AF158,Table3[ISIN],0)),MATCH(AF158,Table3[ISIN],0)) -> FALSE
Q159: NN GROUP NV | R159: NN GROUP NV | W159: 2027-03-29 | AE159: =IF(ISNUMBER(MATCH(AF159,Table3[ISIN],0)),MATCH(AF159,Table3[ISIN],0)) -> FALSE
Q160: RENAULT SA | R160: RENAULT SA | W160: 2027-05-01 | AE160: =IF(ISNUMBER(MATCH(AF160,Table3[ISIN],0)),MATCH(AF160,Table3[ISIN],0)) -> FALSE
Q161: EMPRESA DE DESENVOLVIMEN | R161: EMPRESA DE DESENVOLVIMENto | W161: 2027-12-25 | AE161: =IF(ISNUMBER(MATCH(AF161,Table3[ISIN],0)),MATCH(AF161,Table3[ISIN],0)) -> FALSE
Q162: REPUBLIC OF PORTUGAL | R162: REPÚBLICA PORTUGUESA | W162: 2027-12-26 | AE162: =IF(ISNUMBER(MATCH(AF162,Table3[ISIN],0)),MATCH(AF162,Table3[ISIN],0)) -> FALSE
Q163: BANCO BPI SA CAYMAN | R163: BANCO BPI SA, CAYMAN | W163: 2028-01-01 | AE163: =IF(ISNUMBER(MATCH(AF163,Table3[ISIN],0)),MATCH(AF163,Table3[ISIN],0)) -> FALSE
Q164: BANCO BPI SA, CAYMAN | R164: BANCO BPI SA, CAYMAN | W164: 2028-04-14 | AE164: =IF(ISNUMBER(MATCH(AF164,Table3[ISIN],0)),MATCH(AF164,Table3[ISIN],0)) -> FALSE
Q165: BANCO ESPIRITO SANTO | R165: BANCO ESPIRITO SANTO | W165: 2028-04-16 | AE165: =IF(ISNUMBER(MATCH(AF165,Table3[ISIN],0)),MATCH(AF165,Table3[ISIN],0)) -> FALSE
Q166: BANCO POPULAR PORTUGAL | R166: BANCO POPULAR PORTUGAL | W166: 2028-04-17 | AE166: =IF(ISNUMBER(MATCH(AF166,Table3[ISIN],0)),MATCH(AF166,Table3[ISIN],0)) -> FALSE
Q167: ESPIRITO SANTO FIN PORT | R167: ESPIRITO SANTO FIN GRP | W167: 2028-05-01 | AE167: =IF(ISNUMBER(MATCH(AF167,Table3[ISIN],0)),MATCH(AF167,Table3[ISIN],0)) -> FALSE
Q168: AGUAS DE PORTUGAL | R168: AGUAS DE PORTUGAL | W168: 2028-12-25 | AE168: =IF(ISNUMBER(MATCH(AF168,Table3[ISIN],0)),MATCH(AF168,Table3[ISIN],0)) -> FALSE
Q169: CP COMBOIOS DE PORTUGAL | R169: CP COMBOIOS DE PORTUGAL | W169: 2028-12-26 | AE169: =IF(ISNUMBER(MATCH(AF169,Table3[ISIN],0)),MATCH(AF169,Table3[ISIN],0)) -> FALSE
Q170: ASSICURAZIONI GENERALI | R170: ASSICURAZIONI GENERALI | W170: 2029-01-01 | AE170: =IF(ISNUMBER(MATCH(AF170,Table3[ISIN],0)),MATCH(AF170,Table3[ISIN],0)) -> FALSE
Q171: PETROLEOS MEXICANOS | R171: PETROLEOS MEXICANOS | W171: 2029-03-30 | AE171: =IF(ISNUMBER(MATCH(AF171,Table3[ISIN],0)),MATCH(AF171,Table3[ISIN],0)) -> FALSE
Q172: ARENDAL S DE RL CV | R172: ARENDAL | W172: 2029-04-01 | AE172: =IF(ISNUMBER(MATCH(AF172,Table3[ISIN],0)),MATCH(AF172,Table3[ISIN],0)) -> FALSE
Q173: REPUBLIC OF SLOVENIA | R173: REPUBLICA DA ESLOVÉNIA | W173: 2029-04-02 | AE173: =IF(ISNUMBER(MATCH(AF173,Table3[ISIN],0)),MATCH(AF173,Table3[ISIN],0)) -> FALSE
Q174: PT PORTUGAL SGPS SA | R174: PT PORTUGAL SGPS SA | W174: 2029-05-01 | AE174: =IF(ISNUMBER(MATCH(AF174,Table3[ISIN],0)),MATCH(AF174,Table3[ISIN],0)) -> FALSE
Q175: VNESHECONOMBANK(VEB) | R175: VNESHECONOMBANK(VEB) | W175: 2029-12-25 | AE175: =IF(ISNUMBER(MATCH(AF175,Table3[ISIN],0)),MATCH(AF175,Table3[ISIN],0)) -> FALSE
Q176: RUSSIAN FEDERATION | R176: RUSSIAN FEDERATION | W176: 2029-12-26 | AE176: =IF(ISNUMBER(MATCH(AF176,Table3[ISIN],0)),MATCH(AF176,Table3[ISIN],0)) -> FALSE
Q177: SBERBANK (SB CAP SA) | R177: SBERBANK (SB CAP SA) | W177: 2030-01-01 | AE177: =IF(ISNUMBER(MATCH(AF177,Table3[ISIN],0)),MATCH(AF177,Table3[ISIN],0)) -> FALSE
Q178: LUKOIL INTL FINANCE BV | R178: LUKOIL INTL FINANCE BV | W178: 2030-04-19 | AE178: =IF(ISNUMBER(MATCH(AF178,Table3[ISIN],0)),MATCH(AF178,Table3[ISIN],0)) -> FALSE
Q179: VTB BANK (VTB CAPITAL SA | R179: VTB BANK (VTB CAPITAL) SA | W179: 2030-04-21 | AE179: =IF(ISNUMBER(MATCH(AF179,Table3[ISIN],0)),MATCH(AF179,Table3[ISIN],0)) -> FALSE
Q180: AIR FRANCE-KLM | R180: AIR FRANCE-KLM | W180: 2030-04-22 | AE180: =IF(ISNUMBER(MATCH(AF180,Table3[ISIN],0)),MATCH(AF180,Table3[ISIN],0)) -> FALSE
Q181: DEUTSCHE BANK AG | R181: DEUTSCHE BANK AG | W181: 2030-05-01 | AE181: =IF(ISNUMBER(MATCH(AF181,Table3[ISIN],0)),MATCH(AF181,Table3[ISIN],0)) -> FALSE
Q182: ANGLOGOLD HOLDINGS PLC | R182: ANGLOGOLD HOLDINGS PLC | W182: 2030-12-25 | AE182: =IF(ISNUMBER(MATCH(AF182,Table3[ISIN],0)),MATCH(AF182,Table3[ISIN],0)) -> FALSE
Q183: NARA CABLE FUNDING LTD | R183: NARA CABLE FUNDING LTD | W183: 2030-12-26 | AE183: =IF(ISNUMBER(MATCH(AF183,Table3[ISIN],0)),MATCH(AF183,Table3[ISIN],0)) -> FALSE
Q184: NOS SGPS | R184: NOS SGPS | W184: 2031-01-01 | AE184: =IF(ISNUMBER(MATCH(AF184,Table3[ISIN],0)),MATCH(AF184,Table3[ISIN],0)) -> FALSE
Q185: AG SPRING FINANCE II LTD | R185: AG SPRING FINANCE II LTD | W185: 2031-04-11 | AE185: =IF(ISNUMBER(MATCH(AF185,Table3[ISIN],0)),MATCH(AF185,Table3[ISIN],0)) -> FALSE
Q186: NOVO BANCO SA | R186: NOVO BANCO SA | W186: 2031-04-13 | AE186: =IF(ISNUMBER(MATCH(AF186,Table3[ISIN],0)),MATCH(AF186,Table3[ISIN],0)) -> FALSE
Q187: WELLS FARGO & COMPANY | R187: WELLS FARGO & COMPANY | W187: 2031-04-14 | AE187: =IF(ISNUMBER(MATCH(AF187,Table3[ISIN],0)),MATCH(AF187,Table3[ISIN],0)) -> FALSE
Q188: ABENGOA GREENFIELD SA | R188: ABENGOA GREENFIELD SA | W188: 2031-05-01 | AE188: =IF(ISNUMBER(MATCH(AF188,Table3[ISIN],0)),MATCH(AF188,Table3[ISIN],0)) -> FALSE
Q189: FIAT CHRYSLER FINANCE EU | R189: FIAT CHRYSLER FINANCE EU | W189: 2031-12-25 | AE189: =IF(ISNUMBER(MATCH(AF189,Table3[ISIN],0)),MATCH(AF189,Table3[ISIN],0)) -> FALSE
Q190: LIBERTY MUTUAL GROUP INC | R190: LIBERTY MUTUAL GROUP INC | W190: 2031-12-26 | AE190: =IF(ISNUMBER(MATCH(AF190,Table3[ISIN],0)),MATCH(AF190,Table3[ISIN],0)) -> FALSE
Q191: STATOIL ASA | R191: STATOIL ASA | W191: 2032-01-01 | AE191: =IF(ISNUMBER(MATCH(AF191,Table3[ISIN],0)),MATCH(AF191,Table3[ISIN],0)) -> FALSE
Q192: CABLE COMM SYST NV | R192: CABLE COMM SYST NV | W192: 2032-03-26 | AE192: =IF(ISNUMBER(MATCH(AF192,Table3[ISIN],0)),MATCH(AF192,Table3[ISIN],0)) -> FALSE
Q193: YMOBILE CORP | R193: YMOBILE CORP | W193: 2032-03-28 | AE193: =IF(ISNUMBER(MATCH(AF193,Table3[ISIN],0)),MATCH(AF193,Table3[ISIN],0)) -> FALSE
Q194: INEOS FINANCE PLC | R194: INEOS FINANCE PLC | W194: 2032-03-29 | AE194: =IF(ISNUMBER(MATCH(AF194,Table3[ISIN],0)),MATCH(AF194,Table3[ISIN],0)) -> FALSE
Q195: ALTICE SA | R195: ALTICE SA | W195: 2032-05-01 | AE195: =IF(ISNUMBER(MATCH(AF195,Table3[ISIN],0)),MATCH(AF195,Table3[ISIN],0)) -> FALSE
Q196: ADRIA BIDCO BV | R196: ADRIA BIDCO BV | W196: 2032-12-25 | AE196: =IF(ISNUMBER(MATCH(AF196,Table3[ISIN],0)),MATCH(AF196,Table3[ISIN],0)) -> FALSE
Q197: ALBEA BEAUTY HOLDINGS SA | R197: ALBEA BEAUTY HOLDINGS SA | W197: 2032-12-26 | AE197: =IF(ISNUMBER(MATCH(AF197,Table3[ISIN],0)),MATCH(AF197,Table3[ISIN],0)) -> FALSE
Q198: LECTA SA | R198: LECTA SA | W198: 2033-01-01 | AE198: =IF(ISNUMBER(MATCH(AF198,Table3[ISIN],0)),MATCH(AF198,Table3[ISIN],0)) -> FALSE
Q199: GOODYEAR DUNLOP TIRES | R199: GOODYEAR DUNLOP TIRES | W199: 2033-04-15 | AE199: =IF(ISNUMBER(MATCH(AF199,Table3[ISIN],0)),MATCH(AF199,Table3[ISIN],0)) -> FALSE
Q200: UNITED GROUP BV | R200: =+Q200 -> UNITED GROUP BV | W200: 2033-04-17 | AE200: =IF(ISNUMBER(MATCH(AF200,Table3[ISIN],0)),MATCH(AF200,Table3[ISIN],0)) -> FALSE
... 262 more rows

Sheet Disclaimer
B3: Disclaimer
B5: O presente documento é privado e confidencial, tendo sido preparado pelo Banco Invest, S.A. (“Banco Invest”).
B6: A informação contida neste documento tem carácter meramente informativo, sendo divulgada como mera ferramenta de apoio, não podendo desencadear, ou justificar, qualquer acção ou omissão, sustentar qualquer operação, nem substituir qualquer aferição ou julgamento próprios dos destinatários, sendo estes inteiramente responsáveis pelos actos e omissões que adoptem, bem como por toda e qualquer operação efectivada e relacionada, ainda que indirecta e remotamente, com o conteúdo do presente documento.
B7: Adverte-se, igualmente, os destinatários para o facto de este documento ter sido elaborado utilizando informação económica e financeira disponível ao público, e considerada fidedigna, não garantindo o Banco Invest a sua total precisão, sendo o seu conteúdo e as respectivas fontes susceptíveis de alteração em função de um qualquer factor que modifique os pressupostos que serviram de base à apresentação dos mesmos.
B8: O Banco Invest não assume, assim, qualquer responsabilidade por quaisquer eventuais danos ou prejuízos resultantes, directa ou indirectamente da utilização da informação referida neste documento, independentemente da forma ou natureza que possam vir a revestir.
B9: Mais se adverte que a presente informação não foi elaborada com nenhum objectivo específico e concreto de investimento, não assumindo o Banco Invest qualquer obrigação de resultado.
B10: Ademais, declara-se não existirem quaisquer situações de conflitos de interesses tendo por objecto, por um lado, o título e/ou emitente a que se reporta o presente documento e, por outro lado, o autor do presente documento ou o Banco Invest. O Banco Invest, ou os seus colaboradores, poderão deter, a qualquer momento, uma posição sujeita a alterações, em qualquer título referido neste documento.
B11: Não é permitida a reprodução total ou parcial deste documento, sem autorização prévia do Banco Invest
